Workbook

Sheet Main
B10: 2022-10-27
B12: Sheet No. | C12: Template Name | D12: Summary
B13: 1 | C13: Future Intra | D13: For Intraday trading in F&O segment
B14: 2 | C14: Cash Intra | D14: For Intraday trading in cash market segment
B15: 3 | C15: Mid-cap Intra | D15: For Intraday trading in Mid-cap stocks
B16: 4 | C16: Bulk Deals | D16: Reveals Bulk Deals carried on NSE & BSE
B17: 5 | C17: Call Tracker
K27: `

Sheet Future Intra
M5: Back to Main Page
A6: FOR INTRA DAY TRADING | L6: =Main!B10 -> 2022-10-27
A9: Sr.no | B9: Sector | C9: Scrip | D9: Expiry Date | E9: CLOSE RATE | F9: Pivot Point | G9: Supports | J9: Resistances
E10: Point | F10: Point | G10: S1 | H10: S2 | I10: S3 | J10: R1 | K10: R2 | L10: R3 | M10: HIGH | N10: LOW | O10: OI | P10: % Change in OI
A11: 1 | B11: Index | C11: NIFTY | D11: 2022-10-27 | E11: 17654.95 | F11: 17695.85 | G11: 17601.70 | H11: 17548.45 | I11: 17454.30 | J11: 17749.10 | K11: 17843.25 | L11: 17896.50 | M11: 17790 | N11: 17642.6 | O11: 14703800 | P11: -2.49%
A12: 2 | B12: Index | C12: BANKNIFTY | D12: 2022-10-27 | E12: 41111.15 | F12: 41228.92 | G12: 40917.83 | H12: 40724.52 | I12: 40413.43 | J12: 41422.23 | K12: 41733.32 | L12: 41926.63 | M12: 41540 | N12: 41035.6 | O12: 2364375 | P12: 5.29%
A13: 3 | B13: Index | C13: FINNIFTY | D13: 2022-10-25 | E13: 18298.70 | F13: 18351.90 | G13: 18222.45 | H13: 18146.20 | I13: 18016.75 | J13: 18428.15 | K13: 18557.60 | L13: 18633.85 | M13: 18481.35 | N13: 18275.65 | O13: 10240 | P13: -37.10%
A14: 4 | B14: Index | C14: MIDCPNIFTY | D14: 2022-10-25 | E14: 7300.00 | F14: 2433.33 | G14: 4866.67 | H14: 2433.33 | I14: 4866.67 | J14: 4866.67 | K14: 2433.33 | L14: 4866.67 | M14: 0 | N14: 0 | O14: 375 | P14: 0.00%
A15: 5 | B15: Chemical | C15: AARTIIND | D15: 2022-10-27 | E15: 686.35 | F15: 685.23 | G15: 679.12 | H15: 671.88 | I15: 665.77 | J15: 692.47 | K15: 698.58 | L15: 705.82 | M15: 691.35 | N15: 678 | O15: 2544900 | P15: 0.00%
A16: 6 | B16: Capital_Goods | C16: ABB | D16: 2022-10-27 | E16: 3061.55 | F16: 3059.60 | G16: 3031.25 | H16: 3000.95 | I16: 2972.60 | J16: 3089.90 | K16: 3118.25 | L16: 3148.55 | M16: 3087.95 | N16: 3029.3 | O16: 1382750 | P16: 0.22%
A17: 7 | B17: Pharma | C17: ABBOTINDIA | D17: 2022-10-27 | E17: 18490.55 | F17: 18512.52 | G17: 18225.03 | H17: 17959.52 | I17: 17672.03 | J17: 18778.03 | K17: 19065.52 | L17: 19331.03 | M17: 18800 | N17: 18247 | O17: 53240 | P17: -3.55%
A18: 8 | B18: Others | C18: ABCAPITAL | D18: 2022-10-27 | E18: 115.95 | F18: 115.27 | G18: 113.68 | H18: 111.42 | I18: 109.83 | J18: 117.53 | K18: 119.12 | L18: 121.38 | M18: 116.85 | N18: 113 | O18: 21594600 | P18: -6.24%
A19: 9 | B19: Textile | C19: ABFRL | D19: 2022-10-27 | E19: 337.90 | F19: 336.63 | G19: 332.92 | H19: 327.93 | I19: 324.22 | J19: 341.62 | K19: 345.33 | L19: 350.32 | M19: 340.35 | N19: 331.65 | O19: 7371000 | P19: -2.64%
A20: 10 | B20: Cement | C20: ACC | D20: 2022-10-27 | E20: 2251.05 | F20: 2259.63 | G20: 2236.42 | H20: 2221.78 | I20: 2198.57 | J20: 2274.27 | K20: 2297.48 | L20: 2312.12 | M20: 2282.85 | N20: 2245 | O20: 4586000 | P20: -1.69%
A21: 11 | B21: Others | C21: ADANIENT | D21: 2022-10-27 | E21: 3301.50 | F21: 3315.55 | G21: 3283.10 | H21: 3264.70 | I21: 3232.25 | J21: 3333.95 | K21: 3366.40 | L21: 3384.80 | M21: 3348 | N21: 3297.15 | O21: 14550000 | P21: -0.46%
A22: 12 | B22: Others | C22: ADANIPORTS | D22: 2022-10-27 | E22: 801.15 | F22: 803.18 | G22: 794.37 | H22: 787.58 | I22: 778.77 | J22: 809.97 | K22: 818.78 | L22: 825.57 | M22: 812 | N22: 796.4 | O22: 69666250 | P22: -1.55%
A23: 13 | B23: Pharma | C23: ALKEM | D23: 2022-10-27 | E23: 3131.85 | F23: 3128.08 | G23: 3091.87 | H23: 3051.88 | I23: 3015.67 | J23: 3168.07 | K23: 3204.28 | L23: 3244.27 | M23: 3164.3 | N23: 3088.1 | O23: 359400 | P23: -8.60%
A24: 14 | B24: Automobile | C24: AMARAJABAT | D24: 2022-10-27 | E24: 510.25 | F24: 505.40 | G24: 497.45 | H24: 484.65 | I24: 476.70 | J24: 518.20 | K24: 526.15 | L24: 538.95 | M24: 513.35 | N24: 492.6 | O24: 5974000 | P24: 2.63%
A25: 15 | B25: Cement | C25: AMBUJACEM | D25: 2022-10-27 | E25: 514.25 | F25: 516.68 | G25: 510.67 | H25: 507.08 | I25: 501.07 | J25: 520.27 | K25: 526.28 | L25: 529.87 | M25: 522.7 | N25: 513.1 | O25: 67206600 | P25: -0.93%
A26: 16 | B26: Others | C26: APOLLOHOSP | D26: 2022-10-27 | E26: 4408.55 | F26: 4405.95 | G26: 4370.90 | H26: 4333.25 | I26: 4298.20 | J26: 4443.60 | K26: 4478.65 | L26: 4516.30 | M26: 4441 | N26: 4368.3 | O26: 1486375 | P26: -3.74%
A27: 17 | B27: Automobile | C27: APOLLOTYRE | D27: 2022-10-27 | E27: 287.95 | F27: 286.03 | G27: 280.72 | H27: 273.48 | I27: 268.17 | J27: 293.27 | K27: 298.58 | L27: 305.82 | M27: 291.35 | N27: 278.8 | O27: 12915000 | P27: 2.59%
A28: 18 | B28: Automobile | C28: ASHOKLEY | D28: 2022-10-27 | E28: 147.40 | F28: 146.07 | G28: 143.93 | H28: 140.47 | I28: 138.33 | J28: 149.53 | K28: 151.67 | L28: 155.13 | M28: 148.2 | N28: 142.6 | O28: 61700000 | P28: -0.80%
A29: 19 | B29: FMCG | C29: ASIANPAINT | D29: 2022-10-27 | E29: 3093.50 | F29: 3104.82 | G29: 3075.88 | H29: 3058.27 | I29: 3029.33 | J29: 3122.43 | K29: 3151.37 | L29: 3168.98 | M29: 3133.75 | N29: 3087.2 | O29: 6271000 | P29: -2.20%
A30: 20 | B30: Others | C30: ASTRAL | D30: 2022-10-27 | E30: 1990.25 | F30: 2001.40 | G30: 1972.80 | H30: 1955.35 | I30: 1926.75 | J30: 2018.85 | K30: 2047.45 | L30: 2064.90 | M30: 2030 | N30: 1983.95 | O30: 1433575 | P30: -5.22%
A31: 21 | B31: Others | C31: ATUL | D31: 2022-10-27 | E31: 8115.45 | F31: 8185.70 | G31: 8027.45 | H31: 7939.45 | I31: 7781.20 | J31: 8273.70 | K31: 8431.95 | L31: 8519.95 | M31: 8343.95 | N31: 8097.7 | O31: 183075 | P31: 0.74%
A32: 22 | B32: Banking | C32: AUBANK | D32: 2022-10-27 | E32: 570.00 | F32: 571.13 | G32: 562.82 | H32: 555.63 | I32: 547.32 | J32: 578.32 | K32: 586.63 | L32: 593.82 | M32: 579.45 | N32: 563.95 | O32: 7982000 | P32: 3.25%
A33: 23 | B33: Pharma | C33: AUROPHARMA | D33: 2022-10-27 | E33: 521.05 | F33: 521.88 | G33: 518.02 | H33: 514.98 | I33: 511.12 | J33: 524.92 | K33: 528.78 | L33: 531.82 | M33: 525.75 | N33: 518.85 | O33: 13595000 | P33: -2.58%
A34: 24 | B34: Banking | C34: AXISBANK | D34: 2022-10-27 | E34: 899.85 | F34: 899.85 | G34: 891.75 | H34: 883.65 | I34: 875.55 | J34: 907.95 | K34: 916.05 | L34: 924.15 | M34: 907.95 | N34: 891.75 | O34: 55273200 | P34: -7.54%
A35: 25 | B35: Automobile | C35: BAJAJ-AUTO | D35: 2022-10-27 | E35: 3665.85 | F35: 3684.77 | G35: 3636.43 | H35: 3607.02 | I35: 3558.68 | J35: 3714.18 | K35: 3762.52 | L35: 3791.93 | M35: 3733.1 | N35: 3655.35 | O35: 1863000 | P35: -3.83%
A36: 26 | B36: Finance | C36: BAJAJFINSV | D36: 2022-10-27 | E36: 1663.00 | F36: 1674.77 | G36: 1647.48 | H36: 1631.97 | I36: 1604.68 | J36: 1690.28 | K36: 1717.57 | L36: 1733.08 | M36: 1702.05 | N36: 1659.25 | O36: 6631000 | P36: 1.85%
A37: 27 | B37: Finance | C37: BAJFINANCE | D37: 2022-10-27 | E37: 7102.45 | F37: 7138.75 | G37: 7048.05 | H37: 6993.65 | I37: 6902.95 | J37: 7193.15 | K37: 7283.85 | L37: 7338.25 | M37: 7229.45 | N37: 7084.35 | O37: 5211750 | P37: -3.19%
A38: 28 | B38: Automobile | C38: BALKRISIND | D38: 2022-10-27 | E38: 1953.95 | F38: 1945.93 | G38: 1931.87 | H38: 1909.78 | I38: 1895.72 | J38: 1968.02 | K38: 1982.08 | L38: 2004.17 | M38: 1960 | N38: 1923.85 | O38: 2128200 | P38: -1.88%
A39: 29 | B39: Others | C39: BALRAMCHIN | D39: 2022-10-27 | E39: 332.95 | F39: 333.48 | G39: 329.47 | H39: 325.98 | I39: 321.97 | J39: 336.97 | K39: 340.98 | L39: 344.47 | M39: 337.5 | N39: 330 | O39: 8052800 | P39: -0.02%
A40: 30 | B40: Banking | C40: BANDHANBNK | D40: 2022-10-27 | E40: 267.80 | F40: 265.97 | G40: 262.03 | H40: 256.27 | I40: 252.33 | J40: 271.73 | K40: 275.67 | L40: 281.43 | M40: 269.9 | N40: 260.2 | O40: 27666000 | P40: -0.82%
A41: 31 | B41: Banking | C41: BANKBARODA | D41: 2022-10-27 | E41: 147.80 | F41: 147.27 | G41: 142.88 | H41: 137.97 | I41: 133.58 | J41: 152.18 | K41: 156.57 | L41: 161.48 | M41: 151.65 | N41: 142.35 | O41: 121832100 | P41: 0.67%
A42: 32 | B42: FMCG | C42: BATAINDIA | D42: 2022-10-27 | E42: 1797.35 | F42: 1802.00 | G42: 1783.00 | H42: 1768.65 | I42: 1749.65 | J42: 1816.35 | K42: 1835.35 | L42: 1849.70 | M42: 1821 | N42: 1787.65 | O42: 1589500 | P42: -5.56%
A43: 33 | B43: Capital_Goods | C43: BEL | D43: 2022-10-27 | E43: 105.30 | F43: 104.80 | G43: 104.00 | H43: 102.70 | I43: 101.90 | J43: 106.10 | K43: 106.90 | L43: 108.20 | M43: 105.6 | N43: 103.5 | O43: 87324000 | P43: 3.10%
A44: 34 | B44: FMCG | C44: BERGEPAINT | D44: 2022-10-27 | E44: 583.35 | F44: 585.52 | G44: 579.08 | H44: 574.82 | I44: 568.38 | J44: 589.78 | K44: 596.22 | L44: 600.48 | M44: 591.95 | N44: 581.25 | O44: 9071700 | P44: 1.69%
A45: 35 | B45: Automobile | C45: BHARATFORG | D45: 2022-10-27 | E45: 808.65 | F45: 800.30 | G45: 786.10 | H45: 763.55 | I45: 749.35 | J45: 822.85 | K45: 837.05 | L45: 859.60 | M45: 814.5 | N45: 777.75 | O45: 8656000 | P45: 4.40%
A46: 36 | B46: Telecom | C46: BHARTIARTL | D46: 2022-10-27 | E46: 798.60 | F46: 798.87 | G46: 794.88 | H46: 791.17 | I46: 787.18 | J46: 802.58 | K46: 806.57 | L46: 810.28 | M46: 802.85 | N46: 795.15 | O46: 44774450 | P46: -4.50%
A47: 37 | B47: Capital_Goods | C47: BHEL | D47: 2022-10-27 | E47: 71.10 | F47: 69.87 | G47: 67.78 | H47: 64.47 | I47: 62.38 | J47: 73.18 | K47: 75.27 | L47: 78.58 | M47: 71.95 | N47: 66.55 | O47: 148228500 | P47: 17.84%
A48: 38 | B48: Pharma | C48: BIOCON | D48: 2022-10-27 | E48: 272.15 | F48: 270.98 | G48: 268.17 | H48: 264.18 | I48: 261.37 | J48: 274.97 | K48: 277.78 | L48: 281.77 | M48: 273.8 | N48: 267 | O48: 25166600 | P48: -2.17%
A49: 39 | B49: Automobile | C49: BOSCHLTD | D49: 2022-10-27 | E49: 15640.85 | F49: 15618.58 | G49: 15522.22 | H49: 15403.58 | I49: 15307.22 | J49: 15737.22 | K49: 15833.58 | L49: 15952.22 | M49: 15714.95 | N49: 15499.95 | O49: 194300 | P49: -3.81%
A50: 40 | B50: Oil_Gas | C50: BPCL | D50: 2022-10-27 | E50: 303.70 | F50: 302.67 | G50: 299.23 | H50: 294.77 | I50: 291.33 | J50: 307.13 | K50: 310.57 | L50: 315.03 | M50: 306.1 | N50: 298.2 | O50: 19530000 | P50: -3.72%
A51: 41 | B51: FMCG | C51: BRITANNIA | D51: 2022-10-27 | E51: 3716.15 | F51: 3737.50 | G51: 3669.30 | H51: 3622.45 | I51: 3554.25 | J51: 3784.35 | K51: 3852.55 | L51: 3899.40 | M51: 3805.7 | N51: 3690.65 | O51: 1546600 | P51: 2.23%
A52: 42 | B52: Technology | C52: BSOFT | D52: 2022-10-27 | E52: 273.80 | F52: 275.10 | G52: 270.10 | H52: 266.40 | I52: 261.40 | J52: 278.80 | K52: 283.80 | L52: 287.50 | M52: 280.1 | N52: 271.4 | O52: 9865700 | P52: -0.41%
A53: 43 | B53: Banking | C53: CANBK | D53: 2022-10-27 | E53: 284.00 | F53: 279.67 | G53: 271.13 | H53: 258.27 | I53: 249.73 | J53: 292.53 | K53: 301.07 | L53: 313.93 | M53: 288.2 | N53: 266.8 | O53: 50274000 | P53: 5.55%
A54: 44 | B54: Finance | C54: CANFINHOME | D54: 2022-10-27 | E54: 525.05 | F54: 522.35 | G54: 516.80 | H54: 508.55 | I54: 503.00 | J54: 530.60 | K54: 536.15 | L54: 544.40 | M54: 527.9 | N54: 514.1 | O54: 5187975 | P54: -9.66%
A55: 45 | B55: Others | C55: CHAMBLFERT | D55: 2022-10-27 | E55: 327.65 | F55: 328.70 | G55: 324.65 | H55: 321.65 | I55: 317.60 | J55: 331.70 | K55: 335.75 | L55: 338.75 | M55: 332.75 | N55: 325.7 | O55: 5868000 | P55: -3.46%
A56: 46 | B56: Finance | C56: CHOLAFIN | D56: 2022-10-27 | E56: 714.90 | F56: 715.25 | G56: 708.10 | H56: 701.30 | I56: 694.15 | J56: 722.05 | K56: 729.20 | L56: 736.00 | M56: 722.4 | N56: 708.45 | O56: 7655000 | P56: 1.29%
A57: 47 | B57: Pharma | C57: CIPLA | D57: 2022-10-27 | E57: 1150.10 | F57: 1151.60 | G57: 1141.45 | H57: 1132.80 | I57: 1122.65 | J57: 1160.25 | K57: 1170.40 | L57: 1179.05 | M57: 1161.75 | N57: 1142.95 | O57: 8771100 | P57: -6.76%
A58: 48 | B58: Others | C58: COALINDIA | D58: 2022-10-27 | E58: 240.55 | F58: 240.15 | G58: 238.60 | H58: 236.65 | I58: 235.10 | J58: 242.10 | K58: 243.65 | L58: 245.60 | M58: 241.7 | N58: 238.2 | O58: 28295400 | P58: -3.56%
A59: 49 | B59: Technology | C59: COFORGE | D59: 2022-10-27 | E59: 3897.65 | F59: 3891.97 | G59: 3847.78 | H59: 3797.92 | I59: 3753.73 | J59: 3941.83 | K59: 3986.02 | L59: 4035.88 | M59: 3936.15 | N59: 3842.1 | O59: 793650 | P59: -6.95%
A60: 50 | B60: FMCG | C60: COLPAL | D60: 2022-10-27 | E60: 1617.65 | F60: 1611.63 | G60: 1601.47 | H60: 1585.28 | I60: 1575.12 | J60: 1627.82 | K60: 1637.98 | L60: 1654.17 | M60: 1621.8 | N60: 1595.45 | O60: 2286200 | P60: -5.62%
A61: 51 | B61: Others | C61: CONCOR | D61: 2022-10-27 | E61: 758.05 | F61: 756.67 | G61: 748.88 | H61: 739.72 | I61: 731.93 | J61: 765.83 | K61: 773.62 | L61: 782.78 | M61: 764.45 | N61: 747.5 | O61: 7380000 | P61: -4.03%
A62: 52 | B62: Others | C62: COROMANDEL | D62: 2022-10-27 | E62: 982.10 | F62: 989.52 | G62: 969.73 | H62: 957.37 | I62: 937.58 | J62: 1001.88 | K62: 1021.67 | L62: 1034.03 | M62: 1009.3 | N62: 977.15 | O62: 1117900 | P62: -5.22%
A63: 53 | B63: Capital_Goods | C63: CROMPTON | D63: 2022-10-27 | E63: 378.80 | F63: 376.68 | G63: 370.62 | H63: 362.43 | I63: 356.37 | J63: 384.87 | K63: 390.93 | L63: 399.12 | M63: 382.75 | N63: 368.5 | O63: 5266500 | P63: -5.26%
A64: 54 | B64: Banking | C64: CUB | D64: 2022-10-27 | E64: 186.60 | F64: 186.58 | G64: 184.87 | H64: 183.13 | I64: 181.42 | J64: 188.32 | K64: 190.03 | L64: 191.77 | M64: 188.3 | N64: 184.85 | O64: 10445000 | P64: -8.34%
A65: 55 | B65: Capital_Goods | C65: CUMMINSIND | D65: 2022-10-27 | E65: 1224.85 | F65: 1213.23 | G65: 1195.27 | H65: 1165.68 | I65: 1147.72 | J65: 1242.82 | K65: 1260.78 | L65: 1290.37 | M65: 1231.2 | N65: 1183.65 | O65: 2879400 | P65: -1.84%
A66: 56 | B66: FMCG | C66: DABUR | D66: 2022-10-27 | E66: 533.25 | F66: 534.53 | G66: 530.47 | H66: 527.68 | I66: 523.62 | J66: 537.32 | K66: 541.38 | L66: 544.17 | M66: 538.6 | N66: 531.75 | O66: 14081250 | P66: 1.81%
A67: 57 | B67: Cement | C67: DALBHARAT | D67: 2022-10-27 | E67: 1533.80 | F67: 1543.40 | G67: 1514.45 | H67: 1495.10 | I67: 1466.15 | J67: 1562.75 | K67: 1591.70 | L67: 1611.05 | M67: 1572.35 | N67: 1524.05 | O67: 1395000 | P67: -8.52%
A68: 58 | B68: Chemical | C68: DEEPAKNTR | D68: 2022-10-27 | E68: 2253.35 | F68: 2246.93 | G68: 2231.27 | H68: 2209.18 | I68: 2193.52 | J68: 2269.02 | K68: 2284.68 | L68: 2306.77 | M68: 2262.6 | N68: 2224.85 | O68: 1659250 | P68: -2.91%
A69: 59 | B69: Others | C69: DELTACORP | D69: 2022-10-27 | E69: 221.80 | F69: 223.67 | G69: 219.13 | H69: 216.47 | I69: 211.93 | J69: 226.33 | K69: 230.87 | L69: 233.53 | M69: 228.2 | N69: 221 | O69: 15755000 | P69: -16.68%
A70: 60 | B70: Pharma | C70: DIVISLAB | D70: 2022-10-27 | E70: 3594.85 | F70: 3595.80 | G70: 3571.60 | H70: 3548.35 | I70: 3524.15 | J70: 3619.05 | K70: 3643.25 | L70: 3666.50 | M70: 3620 | N70: 3572.55 | O70: 2317050 | P70: -1.20%
A71: 61 | B71: Others | C71: DIXON | D71: 2022-10-27 | E71: 4324.75 | F71: 4319.97 | G71: 4283.88 | H71: 4243.02 | I71: 4206.93 | J71: 4360.83 | K71: 4396.92 | L71: 4437.78 | M71: 4356.05 | N71: 4279.1 | O71: 549625 | P71: -7.14%
A72: 62 | B72: Realty | C72: DLF | D72: 2022-10-27 | E72: 370.20 | F72: 371.12 | G72: 366.03 | H72: 361.87 | I72: 356.78 | J72: 375.28 | K72: 380.37 | L72: 384.53 | M72: 376.2 | N72: 366.95 | O72: 45924450 | P72: -3.43%
A73: 63 | B73: Pharma | C73: DRREDDY | D73: 2022-10-27 | E73: 4451.75 | F73: 4433.78 | G73: 4379.57 | H73: 4307.38 | I73: 4253.17 | J73: 4505.97 | K73: 4560.18 | L73: 4632.37 | M73: 4488 | N73: 4361.6 | O73: 1594625 | P73: -3.80%
A74: 64 | B74: Automobile | C74: EICHERMOT | D74: 2022-10-27 | E74: 3709.60 | F74: 3694.30 | G74: 3664.35 | H74: 3619.10 | I74: 3589.15 | J74: 3739.55 | K74: 3769.50 | L74: 3814.75 | M74: 3724.25 | N74: 3649.05 | O74: 3068450 | P74: -4.56%
A75: 65 | B75: Automobile | C75: ESCORTS | D75: 2022-10-27 | E75: 2000.00 | F75: 1997.10 | G75: 1980.05 | H75: 1960.10 | I75: 1943.05 | J75: 2017.05 | K75: 2034.10 | L75: 2054.05 | M75: 2014.15 | N75: 1977.15 | O75: 1101650 | P75: -0.89%
A76: 66 | B76: Automobile | C76: EXIDEIND | D76: 2022-10-27 | E76: 164.55 | F76: 163.47 | G76: 160.43 | H76: 156.32 | I76: 153.28 | J76: 167.58 | K76: 170.62 | L76: 174.73 | M76: 166.5 | N76: 159.35 | O76: 26866800 | P76: -4.26%
A77: 67 | B77: Banking | C77: FEDERALBNK | D77: 2022-10-27 | E77: 133.90 | F77: 133.87 | G77: 132.73 | H77: 131.57 | I77: 130.43 | J77: 135.03 | K77: 136.17 | L77: 137.33 | M77: 135 | N77: 132.7 | O77: 103100000 | P77: -0.02%
A78: 68 | B78: Technology | C78: FSL | D78: 2022-10-27 | E78: 106.10 | F78: 105.70 | G78: 104.30 | H78: 102.50 | I78: 101.10 | J78: 107.50 | K78: 108.90 | L78: 110.70 | M78: 107.1 | N78: 103.9 | O78: 14991600 | P78: -6.40%
A79: 69 | B79: Oil_Gas | C79: GAIL | D79: 2022-10-27 | E79: 86.70 | F79: 86.85 | G79: 85.95 | H79: 85.20 | I79: 84.30 | J79: 87.60 | K79: 88.50 | L79: 89.25 | M79: 87.75 | N79: 86.1 | O79: 57937800 | P79: -2.60%
A80: 70 | B80: Pharma | C80: GLENMARK | D80: 2022-10-27 | E80: 402.75 | F80: 402.82 | G80: 396.83 | H80: 390.92 | I80: 384.93 | J80: 408.73 | K80: 414.72 | L80: 420.63 | M80: 408.8 | N80: 396.9 | O80: 7869450 | P80: -2.78%
A81: 71 | B81: Infrastructure | C81: GMRINFRA | D81: 2022-10-27 | E81: 35.55 | F81: 35.32 | G81: 34.78 | H81: 34.02 | I81: 33.48 | J81: 36.08 | K81: 36.62 | L81: 37.38 | M81: 35.85 | N81: 34.55 | O81: 147937500 | P81: 3.30%
A82: 72 | B82: Others | C82: GNFC | D82: 2022-10-27 | E82: 722.45 | F82: 726.43 | G82: 716.87 | H82: 711.28 | I82: 701.72 | J82: 732.02 | K82: 741.58 | L82: 747.17 | M82: 736 | N82: 720.85 | O82: 5539300 | P82: -1.16%
A83: 73 | B83: FMCG | C83: GODREJCP | D83: 2022-10-27 | E83: 822.05 | F83: 819.68 | G83: 815.37 | H83: 808.68 | I83: 804.37 | J83: 826.37 | K83: 830.68 | L83: 837.37 | M83: 824 | N83: 813 | O83: 6513000 | P83: -0.43%
A84: 74 | B84: Realty | C84: GODREJPROP | D84: 2022-10-27 | E84: 1213.10 | F84: 1208.12 | G84: 1196.58 | H84: 1180.07 | I84: 1168.53 | J84: 1224.63 | K84: 1236.17 | L84: 1252.68 | M84: 1219.65 | N84: 1191.6 | O84: 4648800 | P84: -3.58%
A85: 75 | B85: Pharma | C85: GRANULES | D85: 2022-10-27 | E85: 354.75 | F85: 352.03 | G85: 345.47 | H85: 336.18 | I85: 329.62 | J85: 361.32 | K85: 367.88 | L85: 377.17 | M85: 358.6 | N85: 342.75 | O85: 7994000 | P85: -2.96%
A86: 76 | B86: Cement | C86: GRASIM | D86: 2022-10-27 | E86: 1718.15 | F86: 1715.85 | G86: 1700.70 | H86: 1683.25 | I86: 1668.10 | J86: 1733.30 | K86: 1748.45 | L86: 1765.90 | M86: 1731 | N86: 1698.4 | O86: 7464625 | P86: 1.91%
A87: 77 | B87: Oil_Gas | C87: GSPL | D87: 2022-10-27 | E87: 219.40 | F87: 220.02 | G87: 217.58 | H87: 215.77 | I87: 213.33 | J87: 221.83 | K87: 224.27 | L87: 226.08 | M87: 222.45 | N87: 218.2 | O87: 5525000 | P87: -2.26%
A88: 78 | B88: Oil_Gas | C88: GUJGASLTD | D88: 2022-10-27 | E88: 517.30 | F88: 517.28 | G88: 505.02 | H88: 492.73 | I88: 480.47 | J88: 529.57 | K88: 541.83 | L88: 554.12 | M88: 529.55 | N88: 505 | O88: 5928750 | P88: -5.01%
A89: 79 | B89: Others | C89: HAL | D89: 2022-10-27 | E89: 2504.85 | F89: 2477.85 | G89: 2437.55 | H89: 2370.25 | I89: 2329.95 | J89: 2545.15 | K89: 2585.45 | L89: 2652.75 | M89: 2518.15 | N89: 2410.55 | O89: 4777075 | P89: -0.38%
A90: 80 | B90: Capital_Goods | C90: HAVELLS | D90: 2022-10-27 | E90: 1178.80 | F90: 1175.37 | G90: 1165.03 | H90: 1151.27 | I90: 1140.93 | J90: 1189.13 | K90: 1199.47 | L90: 1213.23 | M90: 1185.7 | N90: 1161.6 | O90: 4499000 | P90: -4.98%
A91: 81 | B91: Technology | C91: HCLTECH | D91: 2022-10-27 | E91: 1024.60 | F91: 1027.93 | G91: 1019.27 | H91: 1013.93 | I91: 1005.27 | J91: 1033.27 | K91: 1041.93 | L91: 1047.27 | M91: 1036.6 | N91: 1022.6 | O91: 17899700 | P91: 0.08%
A92: 82 | B92: Finance | C92: HDFC | D92: 2022-10-27 | E92: 2360.30 | F92: 2374.05 | G92: 2342.70 | H92: 2325.10 | I92: 2293.75 | J92: 2391.65 | K92: 2423.00 | L92: 2440.60 | M92: 2405.4 | N92: 2356.45 | O92: 19055700 | P92: 2.23%
A93: 83 | B93: Finance | C93: HDFCAMC | D93: 2022-10-27 | E93: 2061.90 | F93: 2059.65 | G93: 2042.30 | H93: 2022.70 | I93: 2005.35 | J93: 2079.25 | K93: 2096.60 | L93: 2116.20 | M93: 2077 | N93: 2040.05 | O93: 1971600 | P93: -4.49%
A94: 84 | B94: Banking | C94: HDFCBANK | D94: 2022-10-27 | E94: 1451.65 | F94: 1455.65 | G94: 1442.50 | H94: 1433.35 | I94: 1420.20 | J94: 1464.80 | K94: 1477.95 | L94: 1487.10 | M94: 1468.8 | N94: 1446.5 | O94: 64953900 | P94: 1.83%
A95: 85 | B95: Finance | C95: HDFCLIFE | D95: 2022-10-27 | E95: 533.80 | F95: 536.63 | G95: 529.27 | H95: 524.73 | I95: 517.37 | J95: 541.17 | K95: 548.53 | L95: 553.07 | M95: 544 | N95: 532.1 | O95: 22089100 | P95: 2.13%
A96: 86 | B96: Automobile | C96: HEROMOTOCO | D96: 2022-10-27 | E96: 2587.90 | F96: 2583.48 | G96: 2568.52 | H96: 2549.13 | I96: 2534.17 | J96: 2602.87 | K96: 2617.83 | L96: 2637.22 | M96: 2598.45 | N96: 2564.1 | O96: 2826300 | P96: -4.10%
A97: 87 | B97: Metals | C97: HINDALCO | D97: 2022-10-27 | E97: 398.40 | F97: 397.48 | G97: 392.17 | H97: 385.93 | I97: 380.62 | J97: 403.72 | K97: 409.03 | L97: 415.27 | M97: 402.8 | N97: 391.25 | O97: 30712750 | P97: 0.77%
A98: 88 | B98: Metals | C98: HINDCOPPER | D98: 2022-10-27 | E98: 106.15 | F98: 105.93 | G98: 104.37 | H98: 102.58 | I98: 101.02 | J98: 107.72 | K98: 109.28 | L98: 111.07 | M98: 107.5 | N98: 104.15 | O98: 18068600 | P98: -7.30%
A99: 89 | B99: Oil_Gas | C99: HINDPETRO | D99: 2022-10-27 | E99: 209.60 | F99: 208.45 | G99: 206.30 | H99: 203.00 | I99: 200.85 | J99: 211.75 | K99: 213.90 | L99: 217.20 | M99: 210.6 | N99: 205.15 | O99: 20871000 | P99: -4.98%
A100: 90 | B100: FMCG | C100: HINDUNILVR | D100: 2022-10-27 | E100: 2504.05 | F100: 2527.90 | G100: 2473.65 | H100: 2443.25 | I100: 2389.00 | J100: 2558.30 | K100: 2612.55 | L100: 2642.95 | M100: 2582.15 | N100: 2497.5 | O100: 8459100 | P100: 7.74%
A101: 91 | B101: Others | C101: HONAUT | D101: 2022-10-27 | E101: 38114.95 | F101: 38026.55 | G101: 37483.75 | H101: 36852.55 | I101: 36309.75 | J101: 38657.75 | K101: 39200.55 | L101: 39831.75 | M101: 38569.35 | N101: 37395.35 | O101: 21060 | P101: -7.93%
A102: 92 | B102: Finance | C102: IBULHSGFIN | D102: 2022-10-27 | E102: 127.15 | F102: 126.62 | G102: 123.63 | H102: 120.12 | I102: 117.13 | J102: 130.13 | K102: 133.12 | L102: 136.63 | M102: 129.6 | N102: 123.1 | O102: 40400000 | P102: -4.23%
A103: 93 | B103: Banking | C103: ICICIBANK | D103: 2022-10-27 | E103: 925.15 | F103: 930.27 | G103: 918.38 | H103: 911.62 | I103: 899.73 | J103: 937.03 | K103: 948.92 | L103: 955.68 | M103: 942.15 | N103: 923.5 | O103: 82442250 | P103: 0.99%
A104: 94 | B104: Finance | C104: ICICIGI | D104: 2022-10-27 | E104: 1148.60 | F104: 1151.43 | G104: 1142.12 | H104: 1135.63 | I104: 1126.32 | J104: 1157.92 | K104: 1167.23 | L104: 1173.72 | M104: 1160.75 | N104: 1144.95 | O104: 5139525 | P104: -9.85%
A105: 95 | B105: Finance | C105: ICICIPRULI | D105: 2022-10-27 | E105: 505.15 | F105: 506.07 | G105: 501.13 | H105: 497.12 | I105: 492.18 | J105: 510.08 | K105: 515.02 | L105: 519.03 | M105: 511 | N105: 502.05 | O105: 7200000 | P105: -2.74%
A106: 96 | B106: Telecom | C106: IDEA | D106: 2022-10-27 | E106: 8.65 | F106: 8.67 | G106: 8.53 | H106: 8.42 | I106: 8.28 | J106: 8.78 | K106: 8.92 | L106: 9.03 | M106: 8.8 | N106: 8.55 | O106: 621180000 | P106: -2.91%
A107: 97 | B107: Finance | C107: IDFC | D107: 2022-10-27 | E107: 76.20 | F107: 77.17 | G107: 75.03 | H107: 73.87 | I107: 71.73 | J107: 78.33 | K107: 80.47 | L107: 81.63 | M107: 79.3 | N107: 76 | O107: 129240000 | P107: 4.23%
A108: 98 | B108: Banking | C108: IDFCFIRSTB | D108: 2022-10-27 | E108: 56.40 | F108: 56.93 | G108: 55.62 | H108: 54.83 | I108: 53.52 | J108: 57.72 | K108: 59.03 | L108: 59.82 | M108: 58.25 | N108: 56.15 | O108: 199395000 | P108: -13.43%
A109: 99 | B109: Others | C109: IEX | D109: 2022-10-27 | E109: 139.15 | F109: 137.68 | G109: 135.27 | H109: 131.38 | I109: 128.97 | J109: 141.57 | K109: 143.98 | L109: 147.87 | M109: 140.1 | N109: 133.8 | O109: 51345000 | P109: -3.90%
A110: 100 | B110: Oil_Gas | C110: IGL | D110: 2022-10-27 | E110: 407.45 | F110: 399.88 | G110: 387.22 | H110: 366.98 | I110: 354.32 | J110: 420.12 | K110: 432.78 | L110: 453.02 | M110: 412.55 | N110: 379.65 | O110: 12368125 | P110: -10.27%
A111: 101 | B111: Infrastructure | C111: INDHOTEL | D111: 2022-10-27 | E111: 319.50 | F111: 318.58 | G111: 315.82 | H111: 312.13 | I111: 309.37 | J111: 322.27 | K111: 325.03 | L111: 328.72 | M111: 321.35 | N111: 314.9 | O111: 28833718 | P111: -4.71%
A112: 102 | B112: Cement | C112: INDIACEM | D112: 2022-10-27 | E112: 241.40 | F112: 240.38 | G112: 234.92 | H112: 228.43 | I112: 222.97 | J112: 246.87 | K112: 252.33 | L112: 258.82 | M112: 245.85 | N112: 233.9 | O112: 12133600 | P112: -10.45%
A113: 103 | B113: Others | C113: INDIAMART | D113: 2022-10-27 | E113: 4384.90 | F113: 4385.28 | G113: 4329.67 | H113: 4274.43 | I113: 4218.82 | J113: 4440.52 | K113: 4496.13 | L113: 4551.37 | M113: 4440.9 | N113: 4330.05 | O113: 277650 | P113: -14.50%
A114: 104 | B114: Others | C114: INDIGO | D114: 2022-10-27 | E114: 1771.40 | F114: 1779.27 | G114: 1757.53 | H114: 1743.67 | I114: 1721.93 | J114: 1793.13 | K114: 1814.87 | L114: 1828.73 | M114: 1801 | N114: 1765.4 | O114: 4018200 | P114: 5.56%
A115: 105 | B115: Banking | C115: INDUSINDBK | D115: 2022-10-27 | E115: 1137.05 | F115: 1136.98 | G115: 1122.47 | H115: 1107.88 | I115: 1093.37 | J115: 1151.57 | K115: 1166.08 | L115: 1180.67 | M115: 1151.5 | N115: 1122.4 | O115: 30063600 | P115: 4.95%
A116: 106 | B116: Telecom | C116: INDUSTOWER | D116: 2022-10-27 | E116: 187.85 | F116: 189.95 | G116: 185.00 | H116: 182.15 | I116: 177.20 | J116: 192.80 | K116: 197.75 | L116: 200.60 | M116: 194.9 | N116: 187.1 | O116: 17096800 | P116: 7.54%
A117: 107 | B117: Technology | C117: INFY | D117: 2022-10-27 | E117: 1513.15 | F117: 1512.42 | G117: 1507.13 | H117: 1501.12 | I117: 1495.83 | J117: 1518.43 | K117: 1523.72 | L117: 1529.73 | M117: 1517.7 | N117: 1506.4 | O117: 35960100 | P117: 0.21%
A118: 108 | B118: Technology | C118: INTELLECT | D118: 2022-10-27 | E118: 500.70 | F118: 504.18 | G118: 495.27 | H118: 489.83 | I118: 480.92 | J118: 509.62 | K118: 518.53 | L118: 523.97 | M118: 513.1 | N118: 498.75 | O118: 1878000 | P118: -3.28%
A119: 109 | B119: Oil_Gas | C119: IOC | D119: 2022-10-27 | E119: 68.15 | F119: 67.92 | G119: 67.33 | H119: 66.52 | I119: 65.93 | J119: 68.73 | K119: 69.32 | L119: 70.13 | M119: 68.5 | N119: 67.1 | O119: 90109500 | P119: -6.52%
A120: 110 | B120: Pharma | C120: IPCALAB | D120: 2022-10-27 | E120: 933.75 | F120: 921.42 | G120: 902.43 | H120: 871.12 | I120: 852.13 | J120: 952.73 | K120: 971.72 | L120: 1003.03 | M120: 940.4 | N120: 890.1 | O120: 1255150 | P120: -6.81%
A121: 111 | B121: Others | C121: IRCTC | D121: 2022-10-27 | E121: 742.05 | F121: 741.35 | G121: 735.65 | H121: 729.25 | I121: 723.55 | J121: 747.75 | K121: 753.45 | L121: 759.85 | M121: 747.05 | N121: 734.95 | O121: 15234625 | P121: -4.83%
A122: 112 | B122: FMCG | C122: ITC | D122: 2022-10-27 | E122: 345.60 | F122: 346.37 | G122: 343.23 | H122: 340.87 | I122: 337.73 | J122: 348.73 | K122: 351.87 | L122: 354.23 | M122: 349.5 | N122: 344 | O122: 80640000 | P122: 0.14%
A123: 113 | B123: Metals | C123: JINDALSTEL | D123: 2022-10-27 | E123: 451.40 | F123: 448.03 | G123: 439.22 | H123: 427.03 | I123: 418.22 | J123: 460.22 | K123: 469.03 | L123: 481.22 | M123: 456.85 | N123: 435.85 | O123: 28753750 | P123: 3.27%
A124: 114 | B124: Cement | C124: JKCEMENT | D124: 2022-10-27 | E124: 2637.10 | F124: 2659.05 | G124: 2584.75 | H124: 2532.40 | I124: 2458.10 | J124: 2711.40 | K124: 2785.70 | L124: 2838.05 | M124: 2733.35 | N124: 2606.7 | O124: 406250 | P124: 4.57%
A125: 115 | B125: Metals | C125: JSWSTEEL | D125: 2022-10-27 | E125: 646.20 | F125: 641.43 | G125: 630.37 | H125: 614.53 | I125: 603.47 | J125: 657.27 | K125: 668.33 | L125: 684.17 | M125: 652.5 | N125: 625.6 | O125: 28404000 | P125: -5.05%
A126: 116 | B126: Others | C126: JUBLFOOD | D126: 2022-10-27 | E126: 593.35 | F126: 592.38 | G126: 585.62 | H126: 577.88 | I126: 571.12 | J126: 600.12 | K126: 606.88 | L126: 614.62 | M126: 599.15 | N126: 584.65 | O126: 11506250 | P126: -12.00%
A127: 117 | B127: Banking | C127: KOTAKBANK | D127: 2022-10-27 | E127: 1851.10 | F127: 1869.58 | G127: 1826.77 | H127: 1802.43 | I127: 1759.62 | J127: 1893.92 | K127: 1936.73 | L127: 1961.07 | M127: 1912.4 | N127: 1845.25 | O127: 24010000 | P127: 3.82%
A128: 118 | B128: Finance | C128: L&TFH | D128: 2022-10-27 | E128: 80.25 | F128: 80.32 | G128: 78.98 | H128: 77.72 | I128: 76.38 | J128: 81.58 | K128: 82.92 | L128: 84.18 | M128: 81.65 | N128: 79.05 | O128: 56631704 | P128: -5.03%
A129: 119 | B129: Others | C129: LALPATHLAB | D129: 2022-10-27 | E129: 2598.00 | F129: 2591.17 | G129: 2570.08 | H129: 2542.17 | I129: 2521.08 | J129: 2619.08 | K129: 2640.17 | L129: 2668.08 | M129: 2612.25 | N129: 2563.25 | O129: 1049500 | P129: -3.65%
A130: 120 | B130: Pharma | C130: LAURUSLABS | D130: 2022-10-27 | E130: 453.60 | F130: 462.13 | G130: 442.27 | H130: 430.93 | I130: 411.07 | J130: 473.47 | K130: 493.33 | L130: 504.67 | M130: 482 | N130: 450.8 | O130: 7589700 | P130: 4.61%
A131: 121 | B131: Finance | C131: LICHSGFIN | D131: 2022-10-27 | E131: 420.65 | F131: 419.13 | G131: 413.97 | H131: 407.28 | I131: 402.12 | J131: 425.82 | K131: 430.98 | L131: 437.67 | M131: 424.3 | N131: 412.45 | O131: 13562000 | P131: 2.15%
A132: 122 | B132: Capital_Goods | C132: LT | D132: 2022-10-27 | E132: 1946.85 | F132: 1931.68 | G132: 1910.37 | H132: 1873.88 | I132: 1852.57 | J132: 1968.17 | K132: 1989.48 | L132: 2025.97 | M132: 1953 | N132: 1895.2 | O132: 9397800 | P132: 2.08%
A133: 123 | B133: Technology | C133: LTI | D133: 2022-10-27 | E133: 4813.25 | F133: 4788.58 | G133: 4746.17 | H133: 4679.08 | I133: 4636.67 | J133: 4855.67 | K133: 4898.08 | L133: 4965.17 | M133: 4831 | N133: 4721.5 | O133: 1149450 | P133: -1.43%
A134: 124 | B134: Technology | C134: LTTS | D134: 2022-10-27 | E134: 3556.20 | F134: 3535.78 | G134: 3489.92 | H134: 3423.63 | I134: 3377.77 | J134: 3602.07 | K134: 3647.93 | L134: 3714.22 | M134: 3581.65 | N134: 3469.5 | O134: 1144200 | P134: -10.12%
A135: 125 | B135: Pharma | C135: LUPIN | D135: 2022-10-27 | E135: 686.60 | F135: 684.55 | G135: 678.95 | H135: 671.30 | I135: 665.70 | J135: 692.20 | K135: 697.80 | L135: 705.45 | M135: 690.15 | N135: 676.9 | O135: 7033750 | P135: -6.03%
A136: 126 | B136: Automobile | C136: M&M | D136: 2022-10-27 | E136: 1277.80 | F136: 1274.55 | G136: 1264.30 | H136: 1250.80 | I136: 1240.55 | J136: 1288.05 | K136: 1298.30 | L136: 1311.80 | M136: 1284.8 | N136: 1261.05 | O136: 10854900 | P136: -2.11%
A137: 127 | B137: Finance | C137: M&MFIN | D137: 2022-10-27 | E137: 204.25 | F137: 204.15 | G137: 201.10 | H137: 197.95 | I137: 194.90 | J137: 207.30 | K137: 210.35 | L137: 213.50 | M137: 207.2 | N137: 201 | O137: 19552000 | P137: -3.80%
A138: 128 | B138: Finance | C138: MANAPPURAM | D138: 2022-10-27 | E138: 103.80 | F138: 103.95 | G138: 102.75 | H138: 101.70 | I138: 100.50 | J138: 105.00 | K138: 106.20 | L138: 107.25 | M138: 105.15 | N138: 102.9 | O138: 25986000 | P138: -1.88%
A139: 129 | B139: FMCG | C139: MARICO | D139: 2022-10-27 | E139: 516.15 | F139: 517.75 | G139: 512.55 | H139: 508.95 | I139: 503.75 | J139: 521.35 | K139: 526.55 | L139: 530.15 | M139: 522.95 | N139: 514.15 | O139: 9111600 | P139: -2.37%
A140: 130 | B140: Automobile | C140: MARUTI | D140: 2022-10-27 | E140: 8987.95 | F140: 8929.97 | G140: 8857.93 | H140: 8727.92 | I140: 8655.88 | J140: 9059.98 | K140: 9132.02 | L140: 9262.03 | M140: 9002 | N140: 8799.95 | O140: 3073100 | P140: 0.03%
A141: 131 | B141: FMCG | C141: MCDOWELL-N | D141: 2022-10-27 | E141: 863.60 | F141: 857.73 | G141: 841.52 | H141: 819.43 | I141: 803.22 | J141: 879.82 | K141: 896.03 | L141: 918.12 | M141: 873.95 | N141: 835.65 | O141: 19693125 | P141: -7.65%
A142: 132 | B142: Others | C142: MCX | D142: 2022-10-27 | E142: 1494.40 | F142: 1460.42 | G142: 1419.98 | H142: 1345.57 | I142: 1305.13 | J142: 1534.83 | K142: 1575.27 | L142: 1649.68 | M142: 1500.85 | N142: 1386 | O142: 2706800 | P142: 6.25%
A143: 133 | B143: Pharma | C143: METROPOLIS | D143: 2022-10-27 | E143: 1631.45 | F143: 1627.23 | G143: 1597.77 | H143: 1564.08 | I143: 1534.62 | J143: 1660.92 | K143: 1690.38 | L143: 1724.07 | M143: 1656.7 | N143: 1593.55 | O143: 636900 | P143: -12.60%
A144: 134 | B144: Finance | C144: MFSL | D144: 2022-10-27 | E144: 682.00 | F144: 687.65 | G144: 671.65 | H144: 661.30 | I144: 645.30 | J144: 698.00 | K144: 714.00 | L144: 724.35 | M144: 703.65 | N144: 677.3 | O144: 2495350 | P144: -9.90%
A145: 135 | B145: Oil_Gas | C145: MGL | D145: 2022-10-27 | E145: 839.90 | F145: 822.00 | G145: 801.70 | H145: 763.50 | I145: 743.20 | J145: 860.20 | K145: 880.50 | L145: 918.70 | M145: 842.3 | N145: 783.8 | O145: 3779200 | P145: -0.44%
A146: 136 | B146: Technology | C146: MINDTREE | D146: 2022-10-27 | E146: 3470.25 | F146: 3455.47 | G146: 3418.43 | H146: 3366.62 | I146: 3329.58 | J146: 3507.28 | K146: 3544.32 | L146: 3596.13 | M146: 3492.5 | N146: 3403.65 | O146: 2751000 | P146: 0.62%
A147: 137 | B147: Automobile | C147: MOTHERSON | D147: 2022-10-27 | E147: 62.15 | F147: 62.32 | G147: 61.63 | H147: 61.12 | I147: 60.43 | J147: 62.83 | K147: 63.52 | L147: 64.03 | M147: 63 | N147: 61.8 | O147: 106359750 | P147: 9.29%
A148: 138 | B148: Technology | C148: MPHASIS | D148: 2022-10-27 | E148: 2039.60 | F148: 2039.55 | G148: 2019.10 | H148: 1998.60 | I148: 1978.15 | J148: 2060.05 | K148: 2080.50 | L148: 2101.00 | M148: 2060 | N148: 2019.05 | O148: 2183125 | P148: -3.26%
A149: 139 | B149: Automobile | C149: MRF | D149: 2022-10-27 | E149: 87284.75 | F149: 86979.50 | G149: 86397.80 | H149: 85510.85 | I149: 84929.15 | J149: 87866.45 | K149: 88448.15 | L149: 89335.10 | M149: 87561.2 | N149: 86092.55 | O149: 52720 | P149: -13.39%
A150: 140 | B150: Finance | C150: MUTHOOTFIN | D150: 2022-10-27 | E150: 1055.75 | F150: 1050.85 | G150: 1037.50 | H150: 1019.25 | I150: 1005.90 | J150: 1069.10 | K150: 1082.45 | L150: 1100.70 | M150: 1064.2 | N150: 1032.6 | O150: 7087875 | P150: 2.52%
A151: 141 | B151: Metals | C151: NATIONALUM | D151: 2022-10-27 | E151: 69.80 | F151: 69.92 | G151: 69.43 | H151: 69.07 | I151: 68.58 | J151: 70.28 | K151: 70.77 | L151: 71.13 | M151: 70.4 | N151: 69.55 | O151: 76580750 | P151: -5.13%
A152: 142 | B152: Others | C152: NAUKRI | D152: 2022-10-27 | E152: 3813.00 | F152: 3842.90 | G152: 3770.85 | H152: 3728.70 | I152: 3656.65 | J152: 3885.05 | K152: 3957.10 | L152: 3999.25 | M152: 3914.95 | N152: 3800.75 | O152: 1827375 | P152: 5.26%
A153: 143 | B153: Chemical | C153: NAVINFLUOR | D153: 2022-10-27 | E153: 4441.00 | F153: 4427.85 | G153: 4380.95 | H153: 4320.90 | I153: 4274.00 | J153: 4487.90 | K153: 4534.80 | L153: 4594.85 | M153: 4474.75 | N153: 4367.8 | O153: 545175 | P153: -6.56%
A154: 144 | B154: FMCG | C154: NESTLEIND | D154: 2022-10-27 | E154: 20282.70 | F154: 20519.35 | G154: 19985.10 | H154: 19687.50 | I154: 19153.25 | J154: 20816.95 | K154: 21351.20 | L154: 21648.80 | M154: 21053.6 | N154: 20221.75 | O154: 261400 | P154: -8.43%
A155: 145 | B155: Metals | C155: NMDC | D155: 2022-10-27 | E155: 130.75 | F155: 130.47 | G155: 128.43 | H155: 126.12 | I155: 124.08 | J155: 132.78 | K155: 134.82 | L155: 137.13 | M155: 132.5 | N155: 128.15 | O155: 23426550 | P155: -42.05%
A156: 146 | B156: Power | C156: NTPC | D156: 2022-10-27 | E156: 169.25 | F156: 168.23 | G156: 166.92 | H156: 164.58 | I156: 163.27 | J156: 170.57 | K156: 171.88 | L156: 174.22 | M156: 169.55 | N156: 165.9 | O156: 61588500 | P156: -3.67%
A157: 147 | B157: Realty | C157: OBEROIRLTY | D157: 2022-10-27 | E157: 865.30 | F157: 864.90 | G157: 856.90 | H157: 848.50 | I157: 840.50 | J157: 873.30 | K157: 881.30 | L157: 889.70 | M157: 872.9 | N157: 856.5 | O157: 6309100 | P157: -1.53%
A158: 148 | B158: Technology | C158: OFSS | D158: 2022-10-27 | E158: 2918.35 | F158: 2920.05 | G158: 2909.40 | H158: 2900.45 | I158: 2889.80 | J158: 2929.00 | K158: 2939.65 | L158: 2948.60 | M158: 2930.7 | N158: 2911.1 | O158: 590400 | P158: -0.20%
A159: 149 | B159: Oil_Gas | C159: ONGC | D159: 2022-10-27 | E159: 131.10 | F159: 131.47 | G159: 129.68 | H159: 128.27 | I159: 126.48 | J159: 132.88 | K159: 134.67 | L159: 136.08 | M159: 133.25 | N159: 130.05 | O159: 42280700 | P159: 2.61%
A160: 150 | B160: Textile | C160: PAGEIND | D160: 2022-10-27 | E160: 52132.70 | F160: 52589.27 | G160: 51377.13 | H160: 50621.57 | I160: 49409.43 | J160: 53344.83 | K160: 54556.97 | L160: 55312.53 | M160: 53801.4 | N160: 51833.7 | O160: 83820 | P160: -2.05%
A161: 151 | B161: Pharma | C161: PEL | D161: 2022-10-27 | E161: 833.00 | F161: 835.82 | G161: 825.58 | H161: 818.17 | I161: 807.93 | J161: 843.23 | K161: 853.47 | L161: 860.88 | M161: 846.05 | N161: 828.4 | O161: 5308050 | P161: -1.91%
A162: 152 | B162: Technology | C162: PERSISTENT | D162: 2022-10-27 | E162: 3828.80 | F162: 3797.60 | G162: 3733.20 | H162: 3637.60 | I162: 3573.20 | J162: 3893.20 | K162: 3957.60 | L162: 4053.20 | M162: 3862 | N162: 3702 | O162: 577050 | P162: -5.71%
A163: 153 | B163: Oil_Gas | C163: PETRONET | D163: 2022-10-27 | E163: 203.50 | F163: 202.80 | G163: 200.90 | H163: 198.30 | I163: 196.40 | J163: 205.40 | K163: 207.30 | L163: 209.90 | M163: 204.7 | N163: 200.2 | O163: 14472000 | P163: -2.21%
A164: 154 | B164: Finance | C164: PFC | D164: 2022-10-27 | E164: 106.30 | F164: 106.02 | G164: 105.33 | H164: 104.37 | I164: 103.68 | J164: 106.98 | K164: 107.67 | L164: 108.63 | M164: 106.7 | N164: 105.05 | O164: 75082000 | P164: -3.42%
A165: 155 | B165: FMCG | C165: PIDILITIND | D165: 2022-10-27 | E165: 2619.65 | F165: 2616.20 | G165: 2602.50 | H165: 2585.35 | I165: 2571.65 | J165: 2633.35 | K165: 2647.05 | L165: 2664.20 | M165: 2629.9 | N165: 2599.05 | O165: 3061250 | P165: -2.79%
A166: 156 | B166: Chemical | C166: PIIND | D166: 2022-10-27 | E166: 3119.35 | F166: 3122.92 | G166: 3098.88 | H166: 3078.42 | I166: 3054.38 | J166: 3143.38 | K166: 3167.42 | L166: 3187.88 | M166: 3146.95 | N166: 3102.45 | O166: 1656500 | P166: -3.79%
A167: 157 | B167: Banking | C167: PNB | D167: 2022-10-27 | E167: 43.30 | F167: 42.63 | G167: 41.17 | H167: 39.03 | I167: 37.57 | J167: 44.77 | K167: 46.23 | L167: 48.37 | M167: 44.1 | N167: 40.5 | O167: 318016000 | P167: 5.63%
A168: 158 | B168: Others | C168: POLYCAB | D168: 2022-10-27 | E168: 2769.50 | F168: 2750.43 | G168: 2706.87 | H168: 2644.23 | I168: 2600.67 | J168: 2813.07 | K168: 2856.63 | L168: 2919.27 | M168: 2794 | N168: 2687.8 | O168: 834000 | P168: -13.72%
A169: 159 | B169: Power | C169: POWERGRID | D169: 2022-10-27 | E169: 218.95 | F169: 217.85 | G169: 215.95 | H169: 212.95 | I169: 211.05 | J169: 220.85 | K169: 222.75 | L169: 225.75 | M169: 219.75 | N169: 214.85 | O169: 38626200 | P169: -9.87%
A170: 160 | B170: Media | C170: PVR | D170: 2022-10-27 | E170: 1726.05 | F170: 1726.75 | G170: 1699.30 | H170: 1672.55 | I170: 1645.10 | J170: 1753.50 | K170: 1780.95 | L170: 1807.70 | M170: 1754.2 | N170: 1700 | O170: 3134714 | P170: -8.70%
A171: 161 | B171: Others | C171: RAIN | D171: 2022-10-27 | E171: 164.05 | F171: 164.38 | G171: 161.77 | H171: 159.48 | I171: 156.87 | J171: 166.67 | K171: 169.28 | L171: 171.57 | M171: 167 | N171: 162.1 | O171: 11756500 | P171: -4.08%
A172: 162 | B172: Cement | C172: RAMCOCEM | D172: 2022-10-27 | E172: 711.95 | F172: 709.48 | G172: 704.97 | H172: 697.98 | I172: 693.47 | J172: 716.47 | K172: 720.98 | L172: 727.97 | M172: 714 | N172: 702.5 | O172: 3133950 | P172: -7.13%
A173: 163 | B173: Banking | C173: RBLBANK | D173: 2022-10-27 | E173: 124.10 | F173: 123.73 | G173: 119.87 | H173: 115.63 | I173: 111.77 | J173: 127.97 | K173: 131.83 | L173: 136.07 | M173: 127.6 | N173: 119.5 | O173: 50260000 | P173: 2.46%
A174: 164 | B174: Power | C174: RECLTD | D174: 2022-10-27 | E174: 94.65 | F174: 94.33 | G174: 93.67 | H174: 92.68 | I174: 92.02 | J174: 95.32 | K174: 95.98 | L174: 96.97 | M174: 95 | N174: 93.35 | O174: 52288000 | P174: -1.64%
A175: 165 | B175: Oil_Gas | C175: RELIANCE | D175: 2022-10-27 | E175: 2443.75 | F175: 2460.15 | G175: 2423.55 | H175: 2403.35 | I175: 2366.75 | J175: 2480.35 | K175: 2516.95 | L175: 2537.15 | M175: 2496.75 | N175: 2439.95 | O175: 34284500 | P175: 2.52%
A176: 166 | B176: Metals | C176: SAIL | D176: 2022-10-27 | E176: 79.55 | F176: 79.12 | G176: 77.98 | H176: 76.42 | I176: 75.28 | J176: 80.68 | K176: 81.82 | L176: 83.38 | M176: 80.25 | N176: 77.55 | O176: 105972000 | P176: -1.62%
A177: 167 | B177: Banking | C177: SBICARD | D177: 2022-10-27 | E177: 843.45 | F177: 843.87 | G177: 834.43 | H177: 825.42 | I177: 815.98 | J177: 852.88 | K177: 862.32 | L177: 871.33 | M177: 853.3 | N177: 834.85 | O177: 6451200 | P177: 5.65%
A178: 168 | B178: Finance | C178: SBILIFE | D178: 2022-10-27 | E178: 1252.45 | F178: 1257.73 | G178: 1236.77 | H178: 1221.08 | I178: 1200.12 | J178: 1273.42 | K178: 1294.38 | L178: 1310.07 | M178: 1278.7 | N178: 1242.05 | O178: 5448000 | P178: -8.84%
A179: 169 | B179: Banking | C179: SBIN | D179: 2022-10-27 | E179: 579.30 | F179: 578.05 | G179: 569.70 | H179: 560.10 | I179: 551.75 | J179: 587.65 | K179: 596.00 | L179: 605.60 | M179: 586.4 | N179: 568.45 | O179: 63072000 | P179: 6.82%
A180: 170 | B180: Cement | C180: SHREECEM | D180: 2022-10-27 | E180: 21357.85 | F180: 21267.65 | G180: 21145.85 | H180: 20933.85 | I180: 20812.05 | J180: 21479.65 | K180: 21601.45 | L180: 21813.45 | M180: 21389.45 | N180: 21055.65 | O180: 355475 | P180: -15.09%
A181: 171 | B181: Capital_Goods | C181: SIEMENS | D181: 2022-10-27 | E181: 2836.50 | F181: 2829.32 | G181: 2809.63 | H181: 2782.77 | I181: 2763.08 | J181: 2856.18 | K181: 2875.87 | L181: 2902.73 | M181: 2849 | N181: 2802.45 | O181: 1461075 | P181: -1.17%
A182: 172 | B182: Textile | C182: SRF | D182: 2022-10-27 | E182: 2504.70 | F182: 2518.57 | G182: 2486.13 | H182: 2467.57 | I182: 2435.13 | J182: 2537.13 | K182: 2569.57 | L182: 2588.13 | M182: 2551 | N182: 2500 | O182: 3769875 | P182: -4.64%
A183: 173 | B183: Finance | C183: SRTRANSFIN | D183: 2022-10-27 | E183: 1220.55 | F183: 1216.45 | G183: 1189.55 | H183: 1158.55 | I183: 1131.65 | J183: 1247.45 | K183: 1274.35 | L183: 1305.35 | M183: 1243.35 | N183: 1185.45 | O183: 4091400 | P183: -10.17%
A184: 174 | B184: Pharma | C184: SUNPHARMA | D184: 2022-10-27 | E184: 989.75 | F184: 989.53 | G184: 983.52 | H184: 977.28 | I184: 971.27 | J184: 995.77 | K184: 1001.78 | L184: 1008.02 | M184: 995.55 | N184: 983.3 | O184: 21192500 | P184: 0.96%
A185: 175 | B185: Media | C185: SUNTV | D185: 2022-10-27 | E185: 524.70 | F185: 523.72 | G185: 518.43 | H185: 512.17 | I185: 506.88 | J185: 529.98 | K185: 535.27 | L185: 541.53 | M185: 529 | N185: 517.45 | O185: 10239000 | P185: 1.43%
A186: 176 | B186: Pharma | C186: SYNGENE | D186: 2022-10-27 | E186: 587.70 | F186: 584.90 | G186: 577.80 | H186: 567.90 | I186: 560.80 | J186: 594.80 | K186: 601.90 | L186: 611.80 | M186: 592 | N186: 575 | O186: 2679000 | P186: -7.43%
A187: 177 | B187: Chemical | C187: TATACHEM | D187: 2022-10-27 | E187: 1181.25 | F187: 1173.75 | G187: 1159.50 | H187: 1137.75 | I187: 1123.50 | J187: 1195.50 | K187: 1209.75 | L187: 1231.50 | M187: 1188 | N187: 1152 | O187: 8714000 | P187: 1.41%
A188: 178 | B188: Telecom | C188: TATACOMM | D188: 2022-10-27 | E188: 1232.70 | F188: 1230.05 | G188: 1214.20 | H188: 1195.70 | I188: 1179.85 | J188: 1248.55 | K188: 1264.40 | L188: 1282.90 | M188: 1245.9 | N188: 1211.55 | O188: 2703500 | P188: -2.72%
A189: 179 | B189: FMCG | C189: TATACONSUM | D189: 2022-10-27 | E189: 768.85 | F189: 771.12 | G189: 764.08 | H189: 759.32 | I189: 752.28 | J189: 775.88 | K189: 782.92 | L189: 787.68 | M189: 778.15 | N189: 766.35 | O189: 8775900 | P189: -0.66%
A190: 180 | B190: Automobile | C190: TATAMOTORS | D190: 2022-10-27 | E190: 405.70 | F190: 406.82 | G190: 402.33 | H190: 398.97 | I190: 394.48 | J190: 410.18 | K190: 414.67 | L190: 418.03 | M190: 411.3 | N190: 403.45 | O190: 70984950 | P190: -2.16%
A191: 181 | B191: Power | C191: TATAPOWER | D191: 2022-10-27 | E191: 220.90 | F191: 220.72 | G191: 217.93 | H191: 214.97 | I191: 212.18 | J191: 223.68 | K191: 226.47 | L191: 229.43 | M191: 223.5 | N191: 217.75 | O191: 97702875 | P191: -4.68%
A192: 182 | B192: Metals | C192: TATASTEEL | D192: 2022-10-27 | E192: 101.35 | F192: 101.53 | G192: 100.37 | H192: 99.38 | I192: 98.22 | J192: 102.52 | K192: 103.68 | L192: 104.67 | M192: 102.7 | N192: 100.55 | O192: 216014750 | P192: 0.88%
A193: 183 | B193: Technology | C193: TCS | D193: 2022-10-27 | E193: 3168.55 | F193: 3168.78 | G193: 3157.57 | H193: 3146.58 | I193: 3135.37 | J193: 3179.77 | K193: 3190.98 | L193: 3201.97 | M193: 3180 | N193: 3157.8 | O193: 11123700 | P193: -1.94%
A194: 184 | B194: Technology | C194: TECHM | D194: 2022-10-27 | E194: 1082.20 | F194: 1073.88 | G194: 1059.97 | H194: 1037.73 | I194: 1023.82 | J194: 1096.12 | K194: 1110.03 | L194: 1132.27 | M194: 1087.8 | N194: 1051.65 | O194: 16064400 | P194: -5.08%
A195: 185 | B195: FMCG | C195: TITAN | D195: 2022-10-27 | E195: 2678.40 | F195: 2678.62 | G195: 2665.73 | H195: 2653.07 | I195: 2640.18 | J195: 2691.28 | K195: 2704.17 | L195: 2716.83 | M195: 2691.5 | N195: 2665.95 | O195: 4903500 | P195: -3.08%
A196: 186 | B196: Pharma | C196: TORNTPHARM | D196: 2022-10-27 | E196: 1582.85 | F196: 1579.63 | G196: 1569.92 | H196: 1556.98 | I196: 1547.27 | J196: 1592.57 | K196: 1602.28 | L196: 1615.22 | M196: 1589.35 | N196: 1566.7 | O196: 1595500 | P196: -1.60%
A197: 187 | B197: Power | C197: TORNTPOWER | D197: 2022-10-27 | E197: 508.25 | F197: 500.95 | G197: 492.70 | H197: 477.15 | I197: 468.90 | J197: 516.50 | K197: 524.75 | L197: 540.30 | M197: 509.2 | N197: 485.4 | O197: 4414500 | P197: -8.86%
A198: 188 | B198: Others | C198: TRENT | D198: 2022-10-27 | E198: 1433.95 | F198: 1431.23 | G198: 1420.92 | H198: 1407.88 | I198: 1397.57 | J198: 1444.27 | K198: 1454.58 | L198: 1467.62 | M198: 1441.55 | N198: 1418.2 | O198: 4342025 | P198: -4.80%
A199: 189 | B199: Automobile | C199: TVSMOTOR | D199: 2022-10-27 | E199: 1153.95 | F199: 1151.63 | G199: 1144.67 | H199: 1135.38 | I199: 1128.42 | J199: 1160.92 | K199: 1167.88 | L199: 1177.17 | M199: 1158.6 | N199: 1142.35 | O199: 7397600 | P199: 2.76%
A200: 190 | B200: FMCG | C200: UBL | D200: 2022-10-27 | E200: 1618.10 | F200: 1613.30 | G200: 1600.20 | H200: 1582.30 | I200: 1569.20 | J200: 1631.20 | K200: 1644.30 | L200: 1662.20 | M200: 1626.4 | N200: 1595.4 | O200: 1144400 | P200: -15.90%
A201: 191 | B201: Cement | C201: ULTRACEMCO | D201: 2022-10-27 | E201: 6410.85 | F201: 6427.05 | G201: 6375.30 | H201: 6339.75 | I201: 6288.00 | J201: 6462.60 | K201: 6514.35 | L201: 6549.90 | M201: 6478.8 | N201: 6391.5 | O201: 2093400 | P201: -3.35%
A202: 192 | B202: Chemical | C202: UPL | D202: 2022-10-27 | E202: 694.85 | F202: 697.90 | G202: 688.90 | H202: 682.95 | I202: 673.95 | J202: 703.85 | K202: 712.85 | L202: 718.80 | M202: 706.9 | N202: 691.95 | O202: 23852400 | P202: -2.94%
A203: 193 | B203: Metals | C203: VEDL | D203: 2022-10-27 | E203: 280.75 | F203: 280.80 | G203: 278.75 | H203: 276.75 | I203: 274.70 | J203: 282.80 | K203: 284.85 | L203: 286.85 | M203: 282.85 | N203: 278.8 | O203: 31252650 | P203: 0.45%
A204: 194 | B204: Capital_Goods | C204: VOLTAS | D204: 2022-10-27 | E204: 870.10 | F204: 869.82 | G204: 862.58 | H204: 855.07 | I204: 847.83 | J204: 877.33 | K204: 884.57 | L204: 892.08 | M204: 877.05 | N204: 862.3 | O204: 4138000 | P204: -5.29%
A205: 195 | B205: Capital_Goods | C205: WHIRLPOOL | D205: 2022-10-27 | E205: 1562.85 | F205: 1569.08 | G205: 1535.82 | H205: 1508.78 | I205: 1475.52 | J205: 1596.12 | K205: 1629.38 | L205: 1656.42 | M205: 1602.35 | N205: 1542.05 | O205: 616000 | P205: 0.51%
A206: 196 | B206: Technology | C206: WIPRO | D206: 2022-10-27 | E206: 384.75 | F206: 384.92 | G206: 383.63 | H206: 382.52 | I206: 381.23 | J206: 386.03 | K206: 387.32 | L206: 388.43 | M206: 386.2 | N206: 383.8 | O206: 43969000 | P206: -1.54%
... 17 more rows

Sheet Cash Intra
M5: Back to Main Page
A6: FOR INTRA DAY TRADING | K6: =Main!B10 -> 2022-10-27
A8: Sr.no | C8: CLOSE RATE | D8: Pivot Point | E8: Supports | H8: Resistances
E9: S1 | F9: S2 | G9: S3 | H9: R1 | I9: R2 | J9: R3 | K9: HIGH | L9: LOW | M9: Total Trade Quanity in Lakhs
A10: 1 | B10: Nifty 50 | C10: 17656.35 | D10: 17701.62 | E10: 17591.73 | F10: 17527.12 | G10: 17417.23 | H10: 17766.23 | I10: 17876.12 | J10: 17940.73 | K10: 17811.50 | L10: 17637.00
A11: 2 | B11: Nifty Bank | C11: 41122.75 | D11: 41224.95 | E11: 40919.25 | F11: 40715.75 | G11: 40410.05 | H11: 41428.45 | I11: 41734.15 | J11: 41937.65 | K11: 41530.65 | L11: 41021.45
A12: 3 | B12: Nifty CPSE | C12: 2735.25 | D12: 2725.32 | E12: 2711.33 | F12: 2687.42 | G12: 2673.43 | H12: 2749.23 | I12: 2763.22 | J12: 2787.13 | K12: 2739.30 | L12: 2701.40
A13: 4 | B13: Nifty Infra | C13: 5058.85 | D13: 5056.75 | E13: 5041.80 | F13: 5024.75 | G13: 5009.80 | H13: 5073.80 | I13: 5088.75 | J13: 5105.80 | K13: 5071.70 | L13: 5039.70
A14: 5 | B14: Nifty IT | C14: 28722.85 | D14: 28695.88 | E14: 28571.62 | F14: 28420.38 | G14: 28296.12 | H14: 28847.12 | I14: 28971.38 | J14: 29122.62 | K14: 28820.15 | L14: 28544.65
A15: 6 | B15: Nifty PSE | C15: 4170.90 | D15: 4153.88 | E15: 4130.97 | F15: 4091.03 | G15: 4068.12 | H15: 4193.82 | I15: 4216.73 | J15: 4256.67 | K15: 4176.80 | L15: 4113.95
A16: 7 | B16: Nifty Midcap 50 | C16: 8537.05 | D16: 8511.10 | E16: 8459.95 | F16: 8382.85 | G16: 8331.70 | H16: 8588.20 | I16: 8639.35 | J16: 8716.45 | K16: 8562.25 | L16: 8434.00
A17: 8 | B17: ABB | C17: 3055.25 | D17: 3054.03 | E17: 3021.82 | F17: 2988.38 | G17: 2956.17 | H17: 3087.47 | I17: 3119.68 | J17: 3153.12 | K17: 3086.25 | L17: 3020.6 | M17: 2.63091
A18: 9 | B18: ACC | C18: 2247.5 | D18: 2256.40 | E18: 2233.90 | F18: 2220.30 | G18: 2197.80 | H18: 2270.00 | I18: 2292.50 | J18: 2306.10 | K18: 2278.9 | L18: 2242.8 | M18: 3.83657
A19: 10 | B19: AUBANK | C19: 574.9 | D19: 574.72 | E19: 567.68 | F19: 560.47 | G19: 553.43 | H19: 581.93 | I19: 588.97 | J19: 596.18 | K19: 581.75 | L19: 567.5 | M19: 14.69741
A20: 11 | B20: ABBOTINDIA | C20: 18478.6 | D20: 18507.53 | E20: 18232.72 | F20: 17986.83 | G20: 17712.02 | H20: 18753.42 | I20: 19028.23 | J20: 19274.12 | K20: 18782.35 | L20: 18261.65 | M20: 0.12937
A21: 12 | B21: ADANIENT | C21: 3300.5 | D21: 3313.17 | E21: 3281.33 | F21: 3262.17 | G21: 3230.33 | H21: 3332.33 | I21: 3364.17 | J21: 3383.33 | K21: 3345 | L21: 3294 | M21: 8.79424
A22: 13 | B22: ADANIGREEN | C22: 2079.9 | D22: 2097.45 | E22: 2053.65 | F22: 2027.40 | G22: 1983.60 | H22: 2123.70 | I22: 2167.50 | J22: 2193.75 | K22: 2141.25 | L22: 2071.2 | M22: 9.60922
A23: 14 | B23: ADANIPORTS | C23: 800.35 | D23: 803.40 | E23: 794.05 | F23: 787.75 | G23: 778.40 | H23: 809.70 | I23: 819.05 | J23: 825.35 | K23: 812.75 | L23: 797.1 | M23: 44.8505
A24: 15 | B24: ATGL | C24: 3382.95 | D24: 3355.97 | E24: 3277.98 | F24: 3173.02 | G24: 3095.03 | H24: 3460.93 | I24: 3538.92 | J24: 3643.88 | K24: 3433.95 | L24: 3251 | M24: 2.1633
A25: 16 | B25: ADANITRANS | C25: 3188.45 | D25: 3221.13 | E25: 3117.32 | F25: 3046.18 | G25: 2942.37 | H25: 3292.27 | I25: 3396.08 | J25: 3467.22 | K25: 3324.95 | L25: 3150 | M25: 5.41744
A26: 17 | B26: AWL | C26: 678.4 | D26: 680.82 | E26: 672.63 | F26: 666.87 | G26: 658.68 | H26: 686.58 | I26: 694.77 | J26: 700.53 | K26: 689 | L26: 675.05 | M26: 10.75083
A27: 18 | B27: ABCAPITAL | C27: 115.9 | D27: 115.20 | E27: 113.60 | F27: 111.30 | G27: 109.70 | H27: 117.50 | I27: 119.10 | J27: 121.40 | K27: 116.8 | L27: 112.9 | M27: 31.39193
A28: 19 | B28: ABFRL | C28: 338.45 | D28: 336.97 | E28: 333.28 | F28: 328.12 | G28: 324.43 | H28: 342.13 | I28: 345.82 | J28: 350.98 | K28: 340.65 | L28: 331.8 | M28: 13.89735
A29: 20 | B29: ALKEM | C29: 3121.1 | D29: 3118.97 | E29: 3086.18 | F29: 3051.27 | G29: 3018.48 | H29: 3153.88 | I29: 3186.67 | J29: 3221.58 | K29: 3151.75 | L29: 3084.05 | M29: 1.24788
A30: 21 | B30: AMBUJACEM | C30: 513.1 | D30: 515.52 | E30: 509.23 | F30: 505.37 | G30: 499.08 | H30: 519.38 | I30: 525.67 | J30: 529.53 | K30: 521.8 | L30: 511.65 | M30: 50.07924
A31: 22 | B31: APOLLOHOSP | C31: 4404.05 | D31: 4408.65 | E31: 4367.40 | F31: 4330.75 | G31: 4289.50 | H31: 4445.30 | I31: 4486.55 | J31: 4523.20 | K31: 4449.9 | L31: 4372 | M31: 4.74364
A32: 23 | B32: ASHOKLEY | C32: 147.25 | D32: 145.87 | E32: 143.73 | F32: 140.22 | G32: 138.08 | H32: 149.38 | I32: 151.52 | J32: 155.03 | K32: 148 | L32: 142.35 | M32: 101.44571
A33: 24 | B33: ASIANPAINT | C33: 3084.9 | D33: 3099.93 | E33: 3064.87 | F33: 3044.83 | G33: 3009.77 | H33: 3119.97 | I33: 3155.03 | J33: 3175.07 | K33: 3135 | L33: 3079.9 | M33: 10.16316
A34: 25 | B34: ASTRAL | C34: 1986.65 | D34: 1998.65 | E34: 1969.30 | F34: 1951.95 | G34: 1922.60 | H34: 2016.00 | I34: 2045.35 | J34: 2062.70 | K34: 2028 | L34: 1981.3 | M34: 2.6726
A35: 26 | B35: AUROPHARMA | C35: 519.9 | D35: 521.38 | E35: 516.87 | F35: 513.83 | G35: 509.32 | H35: 524.42 | I35: 528.93 | J35: 531.97 | K35: 525.9 | L35: 518.35 | M35: 7.47337
A36: 27 | B36: DMART | C36: 4235.6 | D36: 4216.70 | E36: 4183.90 | F36: 4132.20 | G36: 4099.40 | H36: 4268.40 | I36: 4301.20 | J36: 4352.90 | K36: 4249.5 | L36: 4165 | M36: 1.60107
A37: 28 | B37: AXISBANK | C37: 902.85 | D37: 901.68 | E37: 892.77 | F37: 882.68 | G37: 873.77 | H37: 911.77 | I37: 920.68 | J37: 930.77 | K37: 910.6 | L37: 891.6 | M37: 131.87308
A38: 29 | B38: BAJAJ-AUTO | C38: 3654.1 | D38: 3675.03 | E38: 3623.07 | F38: 3592.03 | G38: 3540.07 | H38: 3706.07 | I38: 3758.03 | J38: 3789.07 | K38: 3727 | L38: 3644 | M38: 3.51456
A39: 30 | B39: BAJFINANCE | C39: 7102.9 | D39: 7145.15 | E39: 7047.75 | F39: 6992.60 | G39: 6895.20 | H39: 7200.30 | I39: 7297.70 | J39: 7352.85 | K39: 7242.55 | L39: 7090 | M39: 9.09899
A40: 31 | B40: BAJAJFINSV | C40: 1658.55 | D40: 1671.48 | E40: 1642.07 | F40: 1625.58 | G40: 1596.17 | H40: 1687.97 | I40: 1717.38 | J40: 1733.87 | K40: 1700.9 | L40: 1655 | M40: 18.70289
A41: 32 | B41: BAJAJHLDNG | C41: 6497.45 | D41: 6497.53 | E41: 6420.07 | F41: 6342.68 | G41: 6265.22 | H41: 6574.92 | I41: 6652.38 | J41: 6729.77 | K41: 6575 | L41: 6420.15 | M41: 1.28602
A42: 33 | B42: BALKRISIND | C42: 1947.2 | D42: 1940.08 | E42: 1925.17 | F42: 1903.13 | G42: 1888.22 | H42: 1962.12 | I42: 1977.03 | J42: 1999.07 | K42: 1955 | L42: 1918.05 | M42: 2.30136
A43: 34 | B43: BANDHANBNK | C43: 267.75 | D43: 265.80 | E43: 262.20 | F43: 256.65 | G43: 253.05 | H43: 271.35 | I43: 274.95 | J43: 280.50 | K43: 269.4 | L43: 260.25 | M43: 69.66245
A44: 35 | B44: BANKBARODA | C44: 148.35 | D44: 147.48 | E44: 143.37 | F44: 138.38 | G44: 134.27 | H44: 152.47 | I44: 156.58 | J44: 161.57 | K44: 151.6 | L44: 142.5 | M44: 427.82169
A45: 36 | B45: BANKINDIA | C45: 56.45 | D45: 54.83 | E45: 52.12 | F45: 47.78 | G45: 45.07 | H45: 59.17 | I45: 61.88 | J45: 66.22 | K45: 57.55 | L45: 50.5 | M45: 337.92078
A46: 37 | B46: BATAINDIA | C46: 1804.2 | D46: 1805.03 | E46: 1791.22 | F46: 1778.23 | G46: 1764.42 | H46: 1818.02 | I46: 1831.83 | J46: 1844.82 | K46: 1818.85 | L46: 1792.05 | M46: 1.49646
A47: 38 | B47: BERGEPAINT | C47: 583.35 | D47: 586.75 | E47: 578.60 | F47: 573.85 | G47: 565.70 | H47: 591.50 | I47: 599.65 | J47: 604.40 | K47: 594.9 | L47: 582 | M47: 7.54247
A48: 39 | B48: BEL | C48: 105.05 | D48: 104.70 | E48: 103.90 | F48: 102.75 | G48: 101.95 | H48: 105.85 | I48: 106.65 | J48: 107.80 | K48: 105.5 | L48: 103.55 | M48: 132.17298
A49: 40 | B49: BHARATFORG | C49: 806.65 | D49: 798.27 | E49: 783.73 | F49: 760.82 | G49: 746.28 | H49: 821.18 | I49: 835.72 | J49: 858.63 | K49: 812.8 | L49: 775.35 | M49: 30.21828
A50: 41 | B50: BHEL | C50: 71.1 | D50: 69.78 | E50: 67.82 | F50: 64.53 | G50: 62.57 | H50: 73.07 | I50: 75.03 | J50: 78.32 | K50: 71.75 | L50: 66.5 | M50: 1332.72405
A51: 42 | B51: BPCL | C51: 302.6 | D51: 301.65 | E51: 298.30 | F51: 294.00 | G51: 290.65 | H51: 305.95 | I51: 309.30 | J51: 313.60 | K51: 305 | L51: 297.35 | M51: 28.42331
A52: 43 | B52: BHARTIARTL | C52: 802.3 | D52: 802.45 | E52: 798.55 | F52: 794.80 | G52: 790.90 | H52: 806.20 | I52: 810.10 | J52: 813.85 | K52: 806.35 | L52: 798.7 | M52: 31.84277
A53: 44 | B53: BIOCON | C53: 272 | D53: 270.98 | E53: 268.17 | F53: 264.33 | G53: 261.52 | H53: 274.82 | I53: 277.63 | J53: 281.47 | K53: 273.8 | L53: 267.15 | M53: 19.4141
A54: 45 | B54: BOSCHLTD | C54: 15646.35 | D54: 15624.78 | E54: 15564.57 | F54: 15482.78 | G54: 15422.57 | H54: 15706.57 | I54: 15766.78 | J54: 15848.57 | K54: 15685 | L54: 15543 | M54: 0.08065
A55: 46 | B55: BRITANNIA | C55: 3713.1 | D55: 3736.00 | E55: 3667.10 | F55: 3621.10 | G55: 3552.20 | H55: 3782.00 | I55: 3850.90 | J55: 3896.90 | K55: 3804.9 | L55: 3690 | M55: 2.28569
A56: 47 | B56: CANBK | C56: 284.2 | D56: 279.67 | E56: 271.33 | F56: 258.47 | G56: 250.13 | H56: 292.53 | I56: 300.87 | J56: 313.73 | K56: 288 | L56: 266.8 | M56: 358.75913
A57: 48 | B57: CHOLAFIN | C57: 715.75 | D57: 715.87 | E57: 709.13 | F57: 702.52 | G57: 695.78 | H57: 722.48 | I57: 729.22 | J57: 735.83 | K57: 722.6 | L57: 709.25 | M57: 9.28958
A58: 49 | B58: CIPLA | C58: 1155.9 | D58: 1155.88 | E58: 1146.92 | F58: 1137.93 | G58: 1128.97 | H58: 1164.87 | I58: 1173.83 | J58: 1182.82 | K58: 1164.85 | L58: 1146.9 | M58: 22.10622
A59: 50 | B59: CLEAN | C59: 1633.05 | D59: 1642.55 | E59: 1610.05 | F59: 1587.05 | G59: 1554.55 | H59: 1665.55 | I59: 1698.05 | J59: 1721.05 | K59: 1675.05 | L59: 1619.55 | M59: 0.60291
A60: 51 | B60: COALINDIA | C60: 239.95 | D60: 239.62 | E60: 238.28 | F60: 236.62 | G60: 235.28 | H60: 241.28 | I60: 242.62 | J60: 244.28 | K60: 240.95 | L60: 237.95 | M60: 69.76548
A61: 52 | B61: COFORGE | C61: 3895.3 | D61: 3890.05 | E61: 3850.25 | F61: 3805.20 | G61: 3765.40 | H61: 3935.10 | I61: 3974.90 | J61: 4019.95 | K61: 3929.85 | L61: 3845 | M61: 1.80109
A62: 53 | B62: COLPAL | C62: 1616.6 | D62: 1609.90 | E62: 1599.80 | F62: 1583.00 | G62: 1572.90 | H62: 1626.70 | I62: 1636.80 | J62: 1653.60 | K62: 1620 | L62: 1593.1 | M62: 2.60588
A63: 54 | B63: CONCOR | C63: 759.35 | D63: 757.08 | E63: 749.27 | F63: 739.18 | G63: 731.37 | H63: 767.17 | I63: 774.98 | J63: 785.07 | K63: 764.9 | L63: 747 | M63: 25.6379
A64: 55 | B64: COROMANDEL | C64: 979.75 | D64: 988.43 | E64: 965.92 | F64: 952.08 | G64: 929.57 | H64: 1002.27 | I64: 1024.78 | J64: 1038.62 | K64: 1010.95 | L64: 974.6 | M64: 4.23662
A65: 56 | B65: CROMPTON | C65: 377.9 | D65: 376.27 | E65: 370.63 | F65: 363.37 | G65: 357.73 | H65: 383.53 | I65: 389.17 | J65: 396.43 | K65: 381.9 | L65: 369 | M65: 9.72561
A66: 57 | B66: CUMMINSIND | C66: 1224.7 | D66: 1213.58 | E66: 1196.22 | F66: 1167.73 | G66: 1150.37 | H66: 1242.07 | I66: 1259.43 | J66: 1287.92 | K66: 1230.95 | L66: 1185.1 | M66: 2.92659
A67: 58 | B67: DLF | C67: 369.75 | D67: 370.78 | E67: 366.07 | F67: 362.38 | G67: 357.67 | H67: 374.47 | I67: 379.18 | J67: 382.87 | K67: 375.5 | L67: 367.1 | M67: 29.97168
A68: 59 | B68: DABUR | C68: 532.15 | D68: 533.63 | E68: 529.27 | F68: 526.38 | G68: 522.02 | H68: 536.52 | I68: 540.88 | J68: 543.77 | K68: 538 | L68: 530.75 | M68: 12.31137
A69: 60 | B69: DALBHARAT | C69: 1532.2 | D69: 1541.92 | E69: 1510.98 | F69: 1489.77 | G69: 1458.83 | H69: 1563.13 | I69: 1594.07 | J69: 1615.28 | K69: 1572.85 | L69: 1520.7 | M69: 2.30807
A70: 61 | B70: DEEPAKNTR | C70: 2253 | D70: 2244.43 | E70: 2230.12 | F70: 2207.23 | G70: 2192.92 | H70: 2267.32 | I70: 2281.63 | J70: 2304.52 | K70: 2258.75 | L70: 2221.55 | M70: 2.9777
A71: 62 | B71: DELHIVERY | C71: 383.4 | D71: 387.80 | E71: 373.60 | F71: 363.80 | G71: 349.60 | H71: 397.60 | I71: 411.80 | J71: 421.60 | K71: 402 | L71: 378 | M71: 36.47705
A72: 63 | B72: DIVISLAB | C72: 3597.15 | D72: 3594.47 | E72: 3570.03 | F72: 3542.92 | G72: 3518.48 | H72: 3621.58 | I72: 3646.02 | J72: 3673.13 | K72: 3618.9 | L72: 3567.35 | M72: 2.11326
A73: 64 | B73: DIXON | C73: 4324.95 | D73: 4315.73 | E73: 4284.47 | F73: 4243.98 | G73: 4212.72 | H73: 4356.22 | I73: 4387.48 | J73: 4427.97 | K73: 4347 | L73: 4275.25 | M73: 1.29945
A74: 65 | B74: LALPATHLAB | C74: 2624.9 | D74: 2608.42 | E74: 2581.83 | F74: 2538.77 | G74: 2512.18 | H74: 2651.48 | I74: 2678.07 | J74: 2721.13 | K74: 2635 | L74: 2565.35 | M74: 2.75975
A75: 66 | B75: DRREDDY | C75: 4442.35 | D75: 4430.28 | E75: 4383.07 | F75: 4323.78 | G75: 4276.57 | H75: 4489.57 | I75: 4536.78 | J75: 4596.07 | K75: 4477.5 | L75: 4371 | M75: 6.23655
A76: 67 | B76: EICHERMOT | C76: 3710.65 | D76: 3694.88 | E76: 3665.77 | F76: 3620.88 | G76: 3591.77 | H76: 3739.77 | I76: 3768.88 | J76: 3813.77 | K76: 3724 | L76: 3650 | M76: 5.71186
A77: 68 | B77: EMAMILTD | C77: 476.65 | D77: 479.22 | E77: 469.48 | F77: 462.32 | G77: 452.58 | H77: 486.38 | I77: 496.12 | J77: 503.28 | K77: 488.95 | L77: 472.05 | M77: 1.65693
A78: 69 | B78: ESCORTS | C78: 2000.85 | D78: 1995.77 | E78: 1980.28 | F78: 1959.72 | G78: 1944.23 | H78: 2016.33 | I78: 2031.82 | J78: 2052.38 | K78: 2011.25 | L78: 1975.2 | M78: 1.82177
A79: 70 | B79: NYKAA | C79: 1111.3 | D79: 1122.28 | E79: 1097.02 | F79: 1082.73 | G79: 1057.47 | H79: 1136.57 | I79: 1161.83 | J79: 1176.12 | K79: 1147.55 | L79: 1108 | M79: 5.03028
A80: 71 | B80: FEDERALBNK | C80: 134.2 | D80: 134.30 | E80: 133.05 | F80: 131.90 | G80: 130.65 | H80: 135.45 | I80: 136.70 | J80: 137.85 | K80: 135.55 | L80: 133.15 | M80: 115.65536
A81: 72 | B81: FORTIS | C81: 265.75 | D81: 269.25 | E81: 261.50 | F81: 257.25 | G81: 249.50 | H81: 273.50 | I81: 281.25 | J81: 285.50 | K81: 277 | L81: 265 | M81: 11.1271
A82: 73 | B82: GAIL | C82: 86.55 | D82: 86.67 | E82: 85.78 | F82: 85.02 | G82: 84.13 | H82: 87.43 | I82: 88.32 | J82: 89.08 | K82: 87.55 | L82: 85.9 | M82: 70.86629
A83: 74 | B83: GLAND | C83: 2225.3 | D83: 2207.78 | E83: 2177.57 | F83: 2129.83 | G83: 2099.62 | H83: 2255.52 | I83: 2285.73 | J83: 2333.47 | K83: 2238 | L83: 2160.05 | M83: 2.28975
A84: 75 | B84: GODREJCP | C84: 821 | D84: 819.33 | E84: 814.67 | F84: 808.33 | G84: 803.67 | H84: 825.67 | I84: 830.33 | J84: 836.67 | K84: 824 | L84: 813 | M84: 8.10608
A85: 76 | B85: GODREJPROP | C85: 1212.05 | D85: 1207.05 | E85: 1195.10 | F85: 1178.15 | G85: 1166.20 | H85: 1224.00 | I85: 1235.95 | J85: 1252.90 | K85: 1219 | L85: 1190.1 | M85: 3.39382
A86: 77 | B86: GRASIM | C86: 1714.7 | D86: 1712.20 | E86: 1695.40 | F86: 1676.10 | G86: 1659.30 | H86: 1731.50 | I86: 1748.30 | J86: 1767.60 | K86: 1729 | L86: 1692.9 | M86: 7.05866
A87: 78 | B87: GUJGASLTD | C87: 517.2 | D87: 516.20 | E87: 504.10 | F87: 491.00 | G87: 478.90 | H87: 529.30 | I87: 541.40 | J87: 554.50 | K87: 528.3 | L87: 503.1 | M87: 14.55173
A88: 79 | B88: GSPL | C88: 218.75 | D88: 219.68 | E88: 217.12 | F88: 215.48 | G88: 212.92 | H88: 221.32 | I88: 223.88 | J88: 225.52 | K88: 222.25 | L88: 218.05 | M88: 6.4276
A89: 80 | B89: HCLTECH | C89: 1026.5 | D89: 1028.22 | E89: 1019.18 | F89: 1011.87 | G89: 1002.83 | H89: 1035.53 | I89: 1044.57 | J89: 1051.88 | K89: 1037.25 | L89: 1020.9 | M89: 30.68136
A90: 81 | B90: HDFCAMC | C90: 2060.15 | D90: 2056.92 | E90: 2041.08 | F90: 2022.02 | G90: 2006.18 | H90: 2075.98 | I90: 2091.82 | J90: 2110.88 | K90: 2072.75 | L90: 2037.85 | M90: 1.64332
A91: 82 | B91: HDFCBANK | C91: 1450.9 | D91: 1454.57 | E91: 1441.33 | F91: 1431.77 | G91: 1418.53 | H91: 1464.13 | I91: 1477.37 | J91: 1486.93 | K91: 1467.8 | L91: 1445 | M91: 68.86697
A92: 83 | B92: HDFCLIFE | C92: 533.45 | D92: 536.58 | E92: 528.37 | F92: 523.28 | G92: 515.07 | H92: 541.67 | I92: 549.88 | J92: 554.97 | K92: 544.8 | L92: 531.5 | M92: 23.62781
A93: 84 | B93: HAVELLS | C93: 1175.75 | D93: 1174.20 | E93: 1162.70 | F93: 1149.65 | G93: 1138.15 | H93: 1187.25 | I93: 1198.75 | J93: 1211.80 | K93: 1185.7 | L93: 1161.15 | M93: 7.64317
A94: 85 | B94: HEROMOTOCO | C94: 2585.6 | D94: 2584.55 | E94: 2567.10 | F94: 2548.60 | G94: 2531.15 | H94: 2603.05 | I94: 2620.50 | J94: 2639.00 | K94: 2602 | L94: 2566.05 | M94: 4.10336
A95: 86 | B95: HINDALCO | C95: 398.4 | D95: 397.57 | E95: 392.33 | F95: 386.27 | G95: 381.03 | H95: 403.63 | I95: 408.87 | J95: 414.93 | K95: 402.8 | L95: 391.5 | M95: 61.56624
A96: 87 | B96: HAL | C96: 2503.85 | D96: 2475.62 | E96: 2435.23 | F96: 2366.62 | G96: 2326.23 | H96: 2544.23 | I96: 2584.62 | J96: 2653.23 | K96: 2516 | L96: 2407 | M96: 12.9594
A97: 88 | B97: HINDPETRO | C97: 209.8 | D97: 208.35 | E97: 206.20 | F97: 202.60 | G97: 200.45 | H97: 211.95 | I97: 214.10 | J97: 217.70 | K97: 210.5 | L97: 204.75 | M97: 27.51784
A98: 89 | B98: HINDUNILVR | C98: 2505.4 | D98: 2530.47 | E98: 2474.93 | F98: 2444.47 | G98: 2388.93 | H98: 2560.93 | I98: 2616.47 | J98: 2646.93 | K98: 2586 | L98: 2500 | M98: 29.23789
A99: 90 | B99: HINDZINC | C99: 284.2 | D99: 283.15 | E99: 281.60 | F99: 279.00 | G99: 277.45 | H99: 285.75 | I99: 287.30 | J99: 289.90 | K99: 284.7 | L99: 280.55 | M99: 2.87573
A100: 91 | B100: HONAUT | C100: 38091.2 | D100: 37991.35 | E100: 37482.70 | F100: 36874.20 | G100: 36365.55 | H100: 38599.85 | I100: 39108.50 | J100: 39717.00 | K100: 38500 | L100: 37382.85 | M100: 0.02913
A101: 92 | B101: HDFC | C101: 2356.7 | D101: 2370.15 | E101: 2339.30 | F101: 2321.90 | G101: 2291.05 | H101: 2387.55 | I101: 2418.40 | J101: 2435.80 | K101: 2401 | L101: 2352.75 | M101: 37.31718
A102: 93 | B102: ICICIBANK | C102: 925.05 | D102: 930.42 | E102: 917.58 | F102: 910.12 | G102: 897.28 | H102: 937.88 | I102: 950.72 | J102: 958.18 | K102: 943.25 | L102: 922.95 | M102: 158.3812
A103: 94 | B103: ICICIGI | C103: 1153.95 | D103: 1156.78 | E103: 1146.82 | F103: 1139.68 | G103: 1129.72 | H103: 1163.92 | I103: 1173.88 | J103: 1181.02 | K103: 1166.75 | L103: 1149.65 | M103: 5.94839
A104: 95 | B104: ICICIPRULI | C104: 503.8 | D104: 505.92 | E104: 498.88 | F104: 493.97 | G104: 486.93 | H104: 510.83 | I104: 517.87 | J104: 522.78 | K104: 512.95 | L104: 501 | M104: 22.2148
A105: 96 | B105: ISEC | C105: 509.6 | D105: 509.33 | E105: 504.67 | F105: 499.73 | G105: 495.07 | H105: 514.27 | I105: 518.93 | J105: 523.87 | K105: 514 | L105: 504.4 | M105: 1.19432
A106: 97 | B106: IDFCFIRSTB | C106: 56.5 | D106: 57.08 | E106: 55.77 | F106: 55.03 | G106: 53.72 | H106: 57.82 | I106: 59.13 | J106: 59.87 | K106: 58.4 | L106: 56.35 | M106: 566.48342
A107: 98 | B107: ITC | C107: 346.3 | D107: 346.48 | E107: 343.47 | F107: 340.63 | G107: 337.62 | H107: 349.32 | I107: 352.33 | J107: 355.17 | K107: 349.5 | L107: 343.65 | M107: 172.42211
A108: 99 | B108: INDIAMART | C108: 4391.85 | D108: 4392.05 | E108: 4346.10 | F108: 4300.35 | G108: 4254.40 | H108: 4437.80 | I108: 4483.75 | J108: 4529.50 | K108: 4438 | L108: 4346.3 | M108: 0.98538
A109: 100 | B109: INDIANB | C109: 233.25 | D109: 233.68 | E109: 227.77 | F109: 222.28 | G109: 216.37 | H109: 239.17 | I109: 245.08 | J109: 250.57 | K109: 239.6 | L109: 228.2 | M109: 59.97054
A110: 101 | B110: IEX | C110: 139.2 | D110: 137.65 | E110: 135.40 | F110: 131.60 | G110: 129.35 | H110: 141.45 | I110: 143.70 | J110: 147.50 | K110: 139.9 | L110: 133.85 | M110: 69.25845
A111: 102 | B111: INDHOTEL | C111: 319.75 | D111: 318.63 | E111: 315.87 | F111: 311.98 | G111: 309.22 | H111: 322.52 | I111: 325.28 | J111: 329.17 | K111: 321.4 | L111: 314.75 | M111: 36.16795
A112: 103 | B112: IOC | C112: 67.9 | D112: 67.78 | E112: 67.32 | F112: 66.73 | G112: 66.27 | H112: 68.37 | I112: 68.83 | J112: 69.42 | K112: 68.25 | L112: 67.2 | M112: 126.0917
A113: 104 | B113: IRCTC | C113: 740.4 | D113: 741.00 | E113: 735.00 | F113: 729.60 | G113: 723.60 | H113: 746.40 | I113: 752.40 | J113: 757.80 | K113: 747 | L113: 735.6 | M113: 15.44325
A114: 105 | B114: IGL | C114: 407.65 | D114: 399.73 | E114: 387.07 | F114: 366.48 | G114: 353.82 | H114: 420.32 | I114: 432.98 | J114: 453.57 | K114: 412.4 | L114: 379.15 | M114: 68.25606
A115: 106 | B115: INDUSTOWER | C115: 187.05 | D115: 189.50 | E115: 184.05 | F115: 181.05 | G115: 175.60 | H115: 192.50 | I115: 197.95 | J115: 200.95 | K115: 194.95 | L115: 186.5 | M115: 52.53149
A116: 107 | B116: INDUSINDBK | C116: 1137.45 | D116: 1137.43 | E116: 1121.82 | F116: 1106.18 | G116: 1090.57 | H116: 1153.07 | I116: 1168.68 | J116: 1184.32 | K116: 1153.05 | L116: 1121.8 | M116: 35.14202
A117: 108 | B117: NAUKRI | C117: 3806 | D117: 3836.22 | E117: 3766.98 | F117: 3727.97 | G117: 3658.73 | H117: 3875.23 | I117: 3944.47 | J117: 3983.48 | K117: 3905.45 | L117: 3797.2 | M117: 4.14747
A118: 109 | B118: INFY | C118: 1526.3 | D118: 1526.75 | E118: 1520.60 | F118: 1514.90 | G118: 1508.75 | H118: 1532.45 | I118: 1538.60 | J118: 1544.30 | K118: 1532.9 | L118: 1521.05 | M118: 39.14341
A119: 110 | B119: INDIGO | C119: 1768.6 | D119: 1777.52 | E119: 1753.08 | F119: 1737.57 | G119: 1713.13 | H119: 1793.03 | I119: 1817.47 | J119: 1832.98 | K119: 1801.95 | L119: 1762 | M119: 4.92471
A120: 111 | B120: IPCALAB | C120: 936.1 | D120: 922.38 | E120: 904.77 | F120: 873.43 | G120: 855.82 | H120: 953.72 | I120: 971.33 | J120: 1002.67 | K120: 940 | L120: 891.05 | M120: 3.07939
A121: 112 | B121: JSWENERGY | C121: 310.4 | D121: 312.70 | E121: 306.15 | F121: 301.90 | G121: 295.35 | H121: 316.95 | I121: 323.50 | J121: 327.75 | K121: 319.25 | L121: 308.45 | M121: 4.54295
A122: 113 | B122: JSWSTEEL | C122: 644.35 | D122: 639.83 | E122: 628.72 | F122: 613.08 | G122: 601.97 | H122: 655.47 | I122: 666.58 | J122: 682.22 | K122: 650.95 | L122: 624.2 | M122: 47.87246
A123: 114 | B123: JINDALSTEL | C123: 451.25 | D123: 448.08 | E123: 440.17 | F123: 429.08 | G123: 421.17 | H123: 459.17 | I123: 467.08 | J123: 478.17 | K123: 456 | L123: 437 | M123: 57.75004
A124: 115 | B124: JUBLFOOD | C124: 591.35 | D124: 591.57 | E124: 584.13 | F124: 576.92 | G124: 569.48 | H124: 598.78 | I124: 606.22 | J124: 613.43 | K124: 599 | L124: 584.35 | M124: 24.77103
A125: 116 | B125: KOTAKBANK | C125: 1846.6 | D125: 1866.73 | E125: 1821.87 | F125: 1797.13 | G125: 1752.27 | H125: 1891.47 | I125: 1936.33 | J125: 1961.07 | K125: 1911.6 | L125: 1842 | M125: 35.1165
A126: 117 | B126: L&TFH | C126: 80 | D126: 80.15 | E126: 78.85 | F126: 77.70 | G126: 76.40 | H126: 81.30 | I126: 82.60 | J126: 83.75 | K126: 81.45 | L126: 79 | M126: 69.74636
A127: 118 | B127: LTTS | C127: 3563.1 | D127: 3544.23 | E127: 3503.47 | F127: 3443.83 | G127: 3403.07 | H127: 3603.87 | I127: 3644.63 | J127: 3704.27 | K127: 3585 | L127: 3484.6 | M127: 2.30424
A128: 119 | B128: LICHSGFIN | C128: 419.9 | D128: 418.35 | E128: 413.25 | F128: 406.60 | G128: 401.50 | H128: 425.00 | I128: 430.10 | J128: 436.75 | K128: 423.45 | L128: 411.7 | M128: 28.97171
A129: 120 | B129: LTI | C129: 4809.7 | D129: 4781.57 | E129: 4743.13 | F129: 4676.57 | G129: 4638.13 | H129: 4848.13 | I129: 4886.57 | J129: 4953.13 | K129: 4820 | L129: 4715 | M129: 2.23452
A130: 121 | B130: LT | C130: 1949.1 | D130: 1931.77 | E130: 1908.88 | F130: 1868.67 | G130: 1845.78 | H130: 1971.98 | I130: 1994.87 | J130: 2035.08 | K130: 1954.65 | L130: 1891.55 | M130: 21.36147
A131: 122 | B131: LAURUSLABS | C131: 452.9 | D131: 461.70 | E131: 441.20 | F131: 429.50 | G131: 409.00 | H131: 473.40 | I131: 493.90 | J131: 505.60 | K131: 482.2 | L131: 450 | M131: 68.67117
A132: 123 | B132: LICI | C132: 595.55 | D132: 596.95 | E132: 592.90 | F132: 590.25 | G132: 586.20 | H132: 599.60 | I132: 603.65 | J132: 606.30 | K132: 601 | L132: 594.3 | M132: 5.36666
A133: 124 | B133: LINDEINDIA | C133: 3049.9 | D133: 3070.38 | E133: 3014.52 | F133: 2979.13 | G133: 2923.27 | H133: 3105.77 | I133: 3161.63 | J133: 3197.02 | K133: 3126.25 | L133: 3035 | M133: 0.17529
A134: 125 | B134: LUPIN | C134: 684.5 | D134: 683.83 | E134: 676.72 | F134: 668.93 | G134: 661.82 | H134: 691.62 | I134: 698.73 | J134: 706.52 | K134: 690.95 | L134: 676.05 | M134: 9.31457
A135: 126 | B135: MRF | C135: 87342.85 | D135: 87050.15 | E135: 86400.30 | F135: 85457.75 | G135: 84807.90 | H135: 87992.70 | I135: 88642.55 | J135: 89585.10 | K135: 87700 | L135: 86107.6 | M135: 0.14532
A136: 127 | B136: M&MFIN | C136: 204.25 | D136: 204.12 | E136: 201.38 | F136: 198.52 | G136: 195.78 | H136: 206.98 | I136: 209.72 | J136: 212.58 | K136: 206.85 | L136: 201.25 | M136: 13.3836
A137: 128 | B137: M&M | C137: 1281.4 | D137: 1274.95 | E137: 1266.05 | F137: 1250.70 | G137: 1241.80 | H137: 1290.30 | I137: 1299.20 | J137: 1314.55 | K137: 1283.85 | L137: 1259.6 | M137: 28.09493
A138: 129 | B138: MARICO | C138: 516.4 | D138: 517.70 | E138: 512.65 | F138: 508.90 | G138: 503.85 | H138: 521.45 | I138: 526.50 | J138: 530.25 | K138: 522.75 | L138: 513.95 | M138: 7.20882
A139: 130 | B139: MARUTI | C139: 9005 | D139: 8939.80 | E139: 8862.60 | F139: 8720.20 | G139: 8643.00 | H139: 9082.20 | I139: 9159.40 | J139: 9301.80 | K139: 9017 | L139: 8797.4 | M139: 7.27441
A140: 131 | B140: MFSL | C140: 681.3 | D140: 686.87 | E140: 670.43 | F140: 659.57 | G140: 643.13 | H140: 697.73 | I140: 714.17 | J140: 725.03 | K140: 703.3 | L140: 676 | M140: 3.62919
A141: 132 | B141: MAXHEALTH | C141: 424.85 | D141: 420.63 | E141: 413.77 | F141: 402.68 | G141: 395.82 | H141: 431.72 | I141: 438.58 | J141: 449.67 | K141: 427.5 | L141: 409.55 | M141: 17.05603
A142: 133 | B142: MSUMI | C142: 86.3 | D142: 86.42 | E142: 85.58 | F142: 84.87 | G142: 84.03 | H142: 87.13 | I142: 87.97 | J142: 88.68 | K142: 87.25 | L142: 85.7 | M142: 10.95353
A143: 134 | B143: MPHASIS | C143: 2034.4 | D143: 2036.47 | E143: 2017.93 | F143: 2001.47 | G143: 1982.93 | H143: 2052.93 | I143: 2071.47 | J143: 2087.93 | K143: 2055 | L143: 2020 | M143: 3.35214
A144: 135 | B144: MUTHOOTFIN | C144: 1052.05 | D144: 1047.90 | E144: 1035.80 | F144: 1019.55 | G144: 1007.45 | H144: 1064.15 | I144: 1076.25 | J144: 1092.50 | K144: 1060 | L144: 1031.65 | M144: 5.17421
A145: 136 | B145: NTPC | C145: 169.35 | D145: 168.17 | E145: 166.63 | F145: 163.92 | G145: 162.38 | H145: 170.88 | I145: 172.42 | J145: 175.13 | K145: 169.7 | L145: 165.45 | M145: 81.3138
A146: 137 | B146: NATIONALUM | C146: 69.6 | D146: 69.78 | E146: 69.27 | F146: 68.93 | G146: 68.42 | H146: 70.12 | I146: 70.63 | J146: 70.97 | K146: 70.3 | L146: 69.45 | M146: 102.41432
A147: 138 | B147: NAVINFLUOR | C147: 4448.7 | D147: 4441.97 | E147: 4411.13 | F147: 4373.57 | G147: 4342.73 | H147: 4479.53 | I147: 4510.37 | J147: 4547.93 | K147: 4472.8 | L147: 4404.4 | M147: 1.2048
A148: 139 | B148: NESTLEIND | C148: 20282.4 | D148: 20516.07 | E148: 19983.33 | F148: 19684.27 | G148: 19151.53 | H148: 20815.13 | I148: 21347.87 | J148: 21646.93 | K148: 21048.8 | L148: 20217 | M148: 0.71353
A149: 140 | B149: NAM-INDIA | C149: 268.15 | D149: 269.02 | E149: 266.13 | F149: 264.12 | G149: 261.23 | H149: 271.03 | I149: 273.92 | J149: 275.93 | K149: 271.9 | L149: 267 | M149: 2.81311
A150: 141 | B150: OBEROIRLTY | C150: 866.4 | D150: 864.82 | E150: 857.58 | F150: 848.77 | G150: 841.53 | H150: 873.63 | I150: 880.87 | J150: 889.68 | K150: 872.05 | L150: 856 | M150: 5.96256
A151: 142 | B151: ONGC | C151: 130.75 | D151: 131.17 | E151: 129.43 | F151: 128.12 | G151: 126.38 | H151: 132.48 | I151: 134.22 | J151: 135.53 | K151: 132.9 | L151: 129.85 | M151: 102.32002
A152: 143 | B152: OIL | C152: 187.35 | D152: 188.93 | E152: 184.97 | F152: 182.58 | G152: 178.62 | H152: 191.32 | I152: 195.28 | J152: 197.67 | K152: 192.9 | L152: 186.55 | M152: 11.29298
A153: 144 | B153: PAYTM | C153: 656.35 | D153: 648.97 | E153: 638.43 | F153: 620.52 | G153: 609.98 | H153: 666.88 | I153: 677.42 | J153: 695.33 | K153: 659.5 | L153: 631.05 | M153: 12.12999
A154: 145 | B154: OFSS | C154: 2915 | D154: 2919.92 | E154: 2907.33 | F154: 2899.67 | G154: 2887.08 | H154: 2927.58 | I154: 2940.17 | J154: 2947.83 | K154: 2932.5 | L154: 2912.25 | M154: 0.91366
A155: 146 | B155: POLICYBZR | C155: 384.25 | D155: 387.67 | E155: 377.58 | F155: 370.92 | G155: 360.83 | H155: 394.33 | I155: 404.42 | J155: 411.08 | K155: 397.75 | L155: 381 | M155: 7.97729
A156: 147 | B156: PIIND | C156: 3125.35 | D156: 3127.38 | E156: 3105.17 | F156: 3084.98 | G156: 3062.77 | H156: 3147.57 | I156: 3169.78 | J156: 3189.97 | K156: 3149.6 | L156: 3107.2 | M156: 1.3909
A157: 148 | B157: PAGEIND | C157: 51964.75 | D157: 52418.28 | E157: 51261.47 | F157: 50558.18 | G157: 49401.37 | H157: 53121.57 | I157: 54278.38 | J157: 54981.67 | K157: 53575.1 | L157: 51715 | M157: 0.1541
A158: 149 | B158: PATANJALI | C158: 1445.75 | D158: 1438.08 | E158: 1426.17 | F158: 1406.58 | G158: 1394.67 | H158: 1457.67 | I158: 1469.58 | J158: 1489.17 | K158: 1450 | L158: 1418.5 | M158: 2.41989
A159: 150 | B159: PERSISTENT | C159: 3829.3 | D159: 3796.27 | E159: 3738.58 | F159: 3647.87 | G159: 3590.18 | H159: 3886.98 | I159: 3944.67 | J159: 4035.38 | K159: 3853.95 | L159: 3705.55 | M159: 4.63767
A160: 151 | B160: PETRONET | C160: 202.6 | D160: 202.07 | E160: 200.08 | F160: 197.57 | G160: 195.58 | H160: 204.58 | I160: 206.57 | J160: 209.08 | K160: 204.05 | L160: 199.55 | M160: 32.25606
A161: 152 | B161: PIDILITIND | C161: 2618.3 | D161: 2616.10 | E161: 2597.20 | F161: 2576.10 | G161: 2557.20 | H161: 2637.20 | I161: 2656.10 | J161: 2677.20 | K161: 2635 | L161: 2595 | M161: 2.68752
A162: 153 | B162: POLYCAB | C162: 2765.4 | D162: 2749.98 | E162: 2710.07 | F162: 2654.73 | G162: 2614.82 | H162: 2805.32 | I162: 2845.23 | J162: 2900.57 | K162: 2789.9 | L162: 2694.65 | M162: 4.78836
A163: 154 | B163: POONAWALLA | C163: 313.3 | D163: 313.37 | E163: 306.93 | F163: 300.57 | G163: 294.13 | H163: 319.73 | I163: 326.17 | J163: 332.53 | K163: 319.8 | L163: 307 | M163: 32.54362
A164: 155 | B164: PFC | C164: 106.2 | D164: 105.92 | E164: 105.28 | F164: 104.37 | G164: 103.73 | H164: 106.83 | I164: 107.47 | J164: 108.38 | K164: 106.55 | L164: 105 | M164: 70.82766
A165: 156 | B165: POWERGRID | C165: 218.5 | D165: 217.38 | E165: 215.37 | F165: 212.23 | G165: 210.22 | H165: 220.52 | I165: 222.53 | J165: 225.67 | K165: 219.4 | L165: 214.25 | M165: 154.67016
A166: 157 | B166: PRESTIGE | C166: 441.35 | D166: 442.07 | E166: 437.78 | F166: 434.22 | G166: 429.93 | H166: 445.63 | I166: 449.92 | J166: 453.48 | K166: 446.35 | L166: 438.5 | M166: 1.65277
A167: 158 | B167: PGHH | C167: 14106.95 | D167: 14054.32 | E167: 13959.68 | F167: 13812.42 | G167: 13717.78 | H167: 14201.58 | I167: 14296.22 | J167: 14443.48 | K167: 14148.95 | L167: 13907.05 | M167: 0.02472
A168: 159 | B168: PNB | C168: 43.3 | D168: 42.60 | E168: 41.20 | F168: 39.10 | G168: 37.70 | H168: 44.70 | I168: 46.10 | J168: 48.20 | K168: 44 | L168: 40.5 | M168: 1695.73666
A169: 160 | B169: RECLTD | C169: 94.4 | D169: 94.22 | E169: 93.33 | F169: 92.27 | G169: 91.38 | H169: 95.28 | I169: 96.17 | J169: 97.23 | K169: 95.1 | L169: 93.15 | M169: 90.0125
A170: 161 | B170: RELIANCE | C170: 2441.55 | D170: 2459.52 | E170: 2420.03 | F170: 2398.52 | G170: 2359.03 | H170: 2481.03 | I170: 2520.52 | J170: 2542.03 | K170: 2499 | L170: 2438 | M170: 56.45639
A171: 162 | B171: SBICARD | C171: 844.85 | D171: 846.60 | E171: 834.95 | F171: 825.05 | G171: 813.40 | H171: 856.50 | I171: 868.15 | J171: 878.05 | K171: 858.25 | L171: 836.7 | M171: 15.60814
A172: 163 | B172: SBILIFE | C172: 1254.85 | D172: 1258.88 | E172: 1239.17 | F172: 1223.48 | G172: 1203.77 | H172: 1274.57 | I172: 1294.28 | J172: 1309.97 | K172: 1278.6 | L172: 1243.2 | M172: 12.60061
A173: 164 | B173: SRF | C173: 2500.35 | D173: 2520.78 | E173: 2474.57 | F173: 2448.78 | G173: 2402.57 | H173: 2546.57 | I173: 2592.78 | J173: 2618.57 | K173: 2567 | L173: 2495 | M173: 6.80152
A174: 165 | B174: MOTHERSON | C174: 62.1 | D174: 62.32 | E174: 61.58 | F174: 61.07 | G174: 60.33 | H174: 62.83 | I174: 63.57 | J174: 64.08 | K174: 63.05 | L174: 61.8 | M174: 261.34447
A175: 166 | B175: SHREECEM | C175: 21299.65 | D175: 21216.00 | E175: 21082.00 | F175: 20864.35 | G175: 20730.35 | H175: 21433.65 | I175: 21567.65 | J175: 21785.30 | K175: 21350 | L175: 20998.35 | M175: 0.93534
A176: 167 | B176: SRTRANSFIN | C176: 1217.1 | D176: 1214.10 | E176: 1188.20 | F176: 1159.30 | G176: 1133.40 | H176: 1243.00 | I176: 1268.90 | J176: 1297.80 | K176: 1240 | L176: 1185.2 | M176: 9.43687
A177: 168 | B177: SIEMENS | C177: 2834.05 | D177: 2828.30 | E177: 2809.05 | F177: 2784.05 | G177: 2764.80 | H177: 2853.30 | I177: 2872.55 | J177: 2897.55 | K177: 2847.55 | L177: 2803.3 | M177: 1.06724
A178: 169 | B178: SONACOMS | C178: 482.15 | D178: 485.37 | E178: 477.23 | F178: 472.32 | G178: 464.18 | H178: 490.28 | I178: 498.42 | J178: 503.33 | K178: 493.5 | L178: 480.45 | M178: 7.14531
A179: 170 | B179: SBIN | C179: 578.55 | D179: 577.58 | E179: 568.97 | F179: 559.38 | G179: 550.77 | H179: 587.17 | I179: 595.78 | J179: 605.37 | K179: 586.2 | L179: 568 | M179: 198.99324
A180: 171 | B180: SAIL | C180: 79.35 | D180: 78.95 | E180: 77.90 | F180: 76.45 | G180: 75.40 | H180: 80.40 | I180: 81.45 | J180: 82.90 | K180: 80 | L180: 77.5 | M180: 148.35434
A181: 172 | B181: SUNPHARMA | C181: 991.55 | D181: 991.47 | E181: 985.58 | F181: 979.62 | G181: 973.73 | H181: 997.43 | I181: 1003.32 | J181: 1009.28 | K181: 997.35 | L181: 985.5 | M181: 21.19595
A182: 173 | B182: SUNTV | C182: 525.35 | D182: 523.67 | E182: 518.93 | F182: 512.52 | G182: 507.78 | H182: 530.08 | I182: 534.82 | J182: 541.23 | K182: 528.4 | L182: 517.25 | M182: 6.32465
A183: 174 | B183: SYNGENE | C183: 589.3 | D183: 585.62 | E183: 578.73 | F183: 568.17 | G183: 561.28 | H183: 596.18 | I183: 603.07 | J183: 613.63 | K183: 592.5 | L183: 575.05 | M183: 3.65323
A184: 175 | B184: TVSMOTOR | C184: 1156.95 | D184: 1154.65 | E184: 1147.85 | F184: 1138.75 | G184: 1131.95 | H184: 1163.75 | I184: 1170.55 | J184: 1179.65 | K184: 1161.45 | L184: 1145.55 | M184: 9.52625
A185: 176 | B185: TATACHEM | C185: 1180.65 | D185: 1172.55 | E185: 1159.10 | F185: 1137.55 | G185: 1124.10 | H185: 1194.10 | I185: 1207.55 | J185: 1229.10 | K185: 1186 | L185: 1151 | M185: 16.67372
A186: 177 | B186: TATACOMM | C186: 1233.7 | D186: 1228.25 | E186: 1213.50 | F186: 1193.30 | G186: 1178.55 | H186: 1248.45 | I186: 1263.20 | J186: 1283.40 | K186: 1243 | L186: 1208.05 | M186: 2.98589
A187: 178 | B187: TCS | C187: 3162.1 | D187: 3165.83 | E187: 3147.42 | F187: 3132.73 | G187: 3114.32 | H187: 3180.52 | I187: 3198.93 | J187: 3213.62 | K187: 3184.25 | L187: 3151.15 | M187: 20.69643
A188: 179 | B188: TATACONSUM | C188: 766.95 | D188: 769.47 | E188: 762.13 | F188: 757.32 | G188: 749.98 | H188: 774.28 | I188: 781.62 | J188: 786.43 | K188: 776.8 | L188: 764.65 | M188: 8.71995
A189: 180 | B189: TATAELXSI | C189: 7186.4 | D189: 7235.53 | E189: 7126.12 | F189: 7065.83 | G189: 6956.42 | H189: 7295.82 | I189: 7405.23 | J189: 7465.52 | K189: 7344.95 | L189: 7175.25 | M189: 2.22853
A190: 181 | B190: TATAMOTORS | C190: 404.55 | D190: 406.08 | E190: 401.67 | F190: 398.78 | G190: 394.37 | H190: 408.97 | I190: 413.38 | J190: 416.27 | K190: 410.5 | L190: 403.2 | M190: 179.79661
A191: 182 | B191: TATAPOWER | C191: 220.65 | D191: 220.40 | E191: 217.90 | F191: 215.15 | G191: 212.65 | H191: 223.15 | I191: 225.65 | J191: 228.40 | K191: 222.9 | L191: 217.65 | M191: 90.40336
A192: 183 | B192: TATASTEEL | C192: 101.2 | D192: 101.47 | E192: 100.43 | F192: 99.67 | G192: 98.63 | H192: 102.23 | I192: 103.27 | J192: 104.03 | K192: 102.5 | L192: 100.7 | M192: 371.6318
A193: 184 | B193: TTML | C193: 103 | D193: 103.50 | E193: 102.00 | F193: 101.00 | G193: 99.50 | H193: 104.50 | I193: 106.00 | J193: 107.00 | K193: 105 | L193: 102.5 | M193: 5.21961
A194: 185 | B194: TECHM | C194: 1082.5 | D194: 1073.17 | E194: 1060.33 | F194: 1038.17 | G194: 1025.33 | H194: 1095.33 | I194: 1108.17 | J194: 1130.33 | K194: 1086 | L194: 1051 | M194: 30.97049
A195: 186 | B195: RAMCOCEM | C195: 709.45 | D195: 707.80 | E195: 703.65 | F195: 697.85 | G195: 693.70 | H195: 713.60 | I195: 717.75 | J195: 723.55 | K195: 711.95 | L195: 702 | M195: 5.34584
A196: 187 | B196: TITAN | C196: 2670.3 | D196: 2676.55 | E196: 2655.75 | F196: 2641.20 | G196: 2620.40 | H196: 2691.10 | I196: 2711.90 | J196: 2726.45 | K196: 2697.35 | L196: 2662 | M196: 5.05759
A197: 188 | B197: TORNTPHARM | C197: 1577.9 | D197: 1574.25 | E197: 1559.50 | F197: 1541.10 | G197: 1526.35 | H197: 1592.65 | I197: 1607.40 | J197: 1625.80 | K197: 1589 | L197: 1555.85 | M197: 1.77992
A198: 189 | B198: TORNTPOWER | C198: 507.25 | D198: 499.70 | E198: 491.40 | F198: 475.55 | G198: 467.25 | H198: 515.55 | I198: 523.85 | J198: 539.70 | K198: 508 | L198: 483.85 | M198: 8.54864
A199: 190 | B199: TRENT | C199: 1433.95 | D199: 1431.88 | E199: 1421.77 | F199: 1409.58 | G199: 1399.47 | H199: 1444.07 | I199: 1454.18 | J199: 1466.37 | K199: 1442 | L199: 1419.7 | M199: 2.44221
A200: 191 | B200: TRIDENT | C200: 35.35 | D200: 35.52 | E200: 35.08 | F200: 34.82 | G200: 34.38 | H200: 35.78 | I200: 36.22 | J200: 36.48 | K200: 35.95 | L200: 35.25 | M200: 32.95584
A201: 192 | B201: TIINDIA | C201: 2829.9 | D201: 2800.33 | E201: 2730.67 | F201: 2631.43 | G201: 2561.77 | H201: 2899.57 | I201: 2969.23 | J201: 3068.47 | K201: 2870 | L201: 2701.1 | M201: 8.47884
A202: 193 | B202: UPL | C202: 694.45 | D202: 698.52 | E202: 687.08 | F202: 679.72 | G202: 668.28 | H202: 705.88 | I202: 717.32 | J202: 724.68 | K202: 709.95 | L202: 691.15 | M202: 28.9
A203: 194 | B203: ULTRACEMCO | C203: 6415.7 | D203: 6425.63 | E203: 6377.27 | F203: 6338.83 | G203: 6290.47 | H203: 6464.07 | I203: 6512.43 | J203: 6550.87 | K203: 6474 | L203: 6387.2 | M203: 3.135
A204: 195 | B204: UNIONBANK | C204: 51.65 | D204: 50.88 | E204: 49.27 | F204: 46.88 | G204: 45.27 | H204: 53.27 | I204: 54.88 | J204: 57.27 | K204: 52.5 | L204: 48.5 | M204: 337.41205
A205: 196 | B205: UBL | C205: 1615.8 | D205: 1616.97 | E205: 1590.48 | F205: 1565.17 | G205: 1538.68 | H205: 1642.28 | I205: 1668.77 | J205: 1694.08 | K205: 1643.45 | L205: 1591.65 | M205: 5.17782
... 29 more rows

Sheet MidCap Intra
L5: Back To Main Page
A6: FOR INTRA DAY TRADING | K6: =Main!B10 -> 2022-10-27
A9: Sr.no | B9: Scrip | C9: CLOSE RATE | D9: Pivot Point | E9: Supports | H9: Resistances
E10: S1 | F10: S2 | G10: S3 | H10: R1 | I10: R2 | J10: R3 | K10: HIGH | L10: LOW | M10: Total Trade Quanity in Lakhs
A11: 1 | B11: 3MINDIA | C11: 22922.1 | D11: 23018.70 | E11: 22714.40 | F11: 22506.70 | G11: 22202.40 | H11: 23226.40 | I11: 23530.70 | J11: 23738.40 | K11: 23323 | L11: 22811 | M11: 0.01041
A12: 2 | B12: ABB | C12: 3055.25 | D12: 3054.03 | E12: 3021.82 | F12: 2988.38 | G12: 2956.17 | H12: 3087.47 | I12: 3119.68 | J12: 3153.12 | K12: 3086.25 | L12: 3020.6 | M12: 2.63091
A13: 3 | B13: ACC | C13: 2247.5 | D13: 2256.40 | E13: 2233.90 | F13: 2220.30 | G13: 2197.80 | H13: 2270.00 | I13: 2292.50 | J13: 2306.10 | K13: 2278.9 | L13: 2242.8 | M13: 3.83657
A14: 4 | B14: AIAENG | C14: 2648.35 | D14: 2635.52 | E14: 2594.68 | F14: 2541.02 | G14: 2500.18 | H14: 2689.18 | I14: 2730.02 | J14: 2783.68 | K14: 2676.35 | L14: 2581.85 | M14: 0.32094
A15: 5 | B15: APLAPOLLO | C15: 1077.35 | D15: 1084.15 | E15: 1063.20 | F15: 1049.05 | G15: 1028.10 | H15: 1098.30 | I15: 1119.25 | J15: 1133.40 | K15: 1105.1 | L15: 1070 | M15: 1.67079
A16: 6 | B16: AUBANK | C16: 574.9 | D16: 574.72 | E16: 567.68 | F16: 560.47 | G16: 553.43 | H16: 581.93 | I16: 588.97 | J16: 596.18 | K16: 581.75 | L16: 567.5 | M16: 14.69741
A17: 7 | B17: AARTIDRUGS | C17: 460.05 | D17: 460.95 | E17: 455.60 | F17: 451.15 | G17: 445.80 | H17: 465.40 | I17: 470.75 | J17: 475.20 | K17: 466.3 | L17: 456.5 | M17: 0.74125
A18: 8 | B18: AAVAS | C18: 1971.9 | D18: 1982.32 | E18: 1954.68 | F18: 1937.47 | G18: 1909.83 | H18: 1999.53 | I18: 2027.17 | J18: 2044.38 | K18: 2009.95 | L18: 1965.1 | M18: 1.71548
A19: 9 | B19: ABBOTINDIA | C19: 18478.6 | D19: 18507.53 | E19: 18232.72 | F19: 17986.83 | G19: 17712.02 | H19: 18753.42 | I19: 19028.23 | J19: 19274.12 | K19: 18782.35 | L19: 18261.65 | M19: 0.12937
A20: 10 | B20: ADANIENT | C20: 3300.5 | D20: 3313.17 | E20: 3281.33 | F20: 3262.17 | G20: 3230.33 | H20: 3332.33 | I20: 3364.17 | J20: 3383.33 | K20: 3345 | L20: 3294 | M20: 8.79424
A21: 11 | B21: ADANIGREEN | C21: 2079.9 | D21: 2097.45 | E21: 2053.65 | F21: 2027.40 | G21: 1983.60 | H21: 2123.70 | I21: 2167.50 | J21: 2193.75 | K21: 2141.25 | L21: 2071.2 | M21: 9.60922
A22: 12 | B22: ADANIPORTS | C22: 800.35 | D22: 803.40 | E22: 794.05 | F22: 787.75 | G22: 778.40 | H22: 809.70 | I22: 819.05 | J22: 825.35 | K22: 812.75 | L22: 797.1 | M22: 44.8505
A23: 13 | B23: ATGL | C23: 3382.95 | D23: 3355.97 | E23: 3277.98 | F23: 3173.02 | G23: 3095.03 | H23: 3460.93 | I23: 3538.92 | J23: 3643.88 | K23: 3433.95 | L23: 3251 | M23: 2.1633
A24: 14 | B24: ADANITRANS | C24: 3188.45 | D24: 3221.13 | E24: 3117.32 | F24: 3046.18 | G24: 2942.37 | H24: 3292.27 | I24: 3396.08 | J24: 3467.22 | K24: 3324.95 | L24: 3150 | M24: 5.41744
A25: 15 | B25: AWL | C25: 678.4 | D25: 680.82 | E25: 672.63 | F25: 666.87 | G25: 658.68 | H25: 686.58 | I25: 694.77 | J25: 700.53 | K25: 689 | L25: 675.05 | M25: 10.75083
A26: 16 | B26: ABCAPITAL | C26: 115.9 | D26: 115.20 | E26: 113.60 | F26: 111.30 | G26: 109.70 | H26: 117.50 | I26: 119.10 | J26: 121.40 | K26: 116.8 | L26: 112.9 | M26: 31.39193
A27: 17 | B27: ABFRL | C27: 338.45 | D27: 336.97 | E27: 333.28 | F27: 328.12 | G27: 324.43 | H27: 342.13 | I27: 345.82 | J27: 350.98 | K27: 340.65 | L27: 331.8 | M27: 13.89735
A28: 18 | B28: ABSLAMC | C28: 427.6 | D28: 429.32 | E28: 423.28 | F28: 418.97 | G28: 412.93 | H28: 433.63 | I28: 439.67 | J28: 443.98 | K28: 435.35 | L28: 425 | M28: 0.47876
A29: 19 | B29: AEGISCHEM | C29: 299.4 | D29: 298.68 | E29: 293.87 | F29: 288.33 | G29: 283.52 | H29: 304.22 | I29: 309.03 | J29: 314.57 | K29: 303.5 | L29: 293.15 | M29: 7.07904
A30: 20 | B30: AETHER | C30: 1004.2 | D30: 1005.13 | E30: 980.27 | F30: 956.33 | G30: 931.47 | H30: 1029.07 | I30: 1053.93 | J30: 1077.87 | K30: 1030 | L30: 981.2 | M30: 1.54092
A31: 21 | B31: AFFLE | C31: 1181.65 | D31: 1185.22 | E31: 1171.43 | F31: 1161.22 | G31: 1147.43 | H31: 1195.43 | I31: 1209.22 | J31: 1219.43 | K31: 1199 | L31: 1175 | M31: 0.94963
A32: 22 | B32: AJANTPHARM | C32: 1261.8 | D32: 1256.15 | E32: 1243.30 | F32: 1224.80 | G32: 1211.95 | H32: 1274.65 | I32: 1287.50 | J32: 1306.00 | K32: 1269 | L32: 1237.65 | M32: 0.37117
A33: 23 | B33: APLLTD | C33: 548.15 | D33: 550.98 | E33: 543.22 | F33: 538.28 | G33: 530.52 | H33: 555.92 | I33: 563.68 | J33: 568.62 | K33: 558.75 | L33: 546.05 | M33: 1.18085
A34: 24 | B34: ALKEM | C34: 3121.1 | D34: 3118.97 | E34: 3086.18 | F34: 3051.27 | G34: 3018.48 | H34: 3153.88 | I34: 3186.67 | J34: 3221.58 | K34: 3151.75 | L34: 3084.05 | M34: 1.24788
A35: 25 | B35: ALKYLAMINE | C35: 2975.8 | D35: 2970.55 | E35: 2951.10 | F35: 2926.40 | G35: 2906.95 | H35: 2995.25 | I35: 3014.70 | J35: 3039.40 | K35: 2990 | L35: 2945.85 | M35: 0.11535
A36: 26 | B36: ALLCARGO | C36: 426.3 | D36: 424.45 | E36: 412.90 | F36: 399.50 | G36: 387.95 | H36: 437.85 | I36: 449.40 | J36: 462.80 | K36: 436 | L36: 411.05 | M36: 9.97541
A37: 27 | B37: ALOKINDS | C37: 16.25 | D37: 16.38 | E37: 15.97 | F37: 15.68 | G37: 15.27 | H37: 16.67 | I37: 17.08 | J37: 17.37 | K37: 16.8 | L37: 16.1 | M37: 11.29143
A38: 28 | B38: AMARAJABAT | C38: 508.8 | D38: 504.12 | E38: 496.23 | F38: 483.67 | G38: 475.78 | H38: 516.68 | I38: 524.57 | J38: 537.13 | K38: 512 | L38: 491.55 | M38: 6.78218
A39: 29 | B39: AMBER | C39: 2052.9 | D39: 2078.30 | E39: 2021.60 | F39: 1990.30 | G39: 1933.60 | H39: 2109.60 | I39: 2166.30 | J39: 2197.60 | K39: 2135 | L39: 2047 | M39: 1.09713
A40: 30 | B40: AMBUJACEM | C40: 513.1 | D40: 515.52 | E40: 509.23 | F40: 505.37 | G40: 499.08 | H40: 519.38 | I40: 525.67 | J40: 529.53 | K40: 521.8 | L40: 511.65 | M40: 50.07924
A41: 31 | B41: ANGELONE | C41: 1609.45 | D41: 1609.13 | E41: 1593.47 | F41: 1577.48 | G41: 1561.82 | H41: 1625.12 | I41: 1640.78 | J41: 1656.77 | K41: 1624.8 | L41: 1593.15 | M41: 3.70393
A42: 32 | B42: ANURAS | C42: 776.8 | D42: 773.27 | E42: 764.53 | F42: 752.27 | G42: 743.53 | H42: 785.53 | I42: 794.27 | J42: 806.53 | K42: 782 | L42: 761 | M42: 0.87617
A43: 33 | B43: APOLLOHOSP | C43: 4404.05 | D43: 4408.65 | E43: 4367.40 | F43: 4330.75 | G43: 4289.50 | H43: 4445.30 | I43: 4486.55 | J43: 4523.20 | K43: 4449.9 | L43: 4372 | M43: 4.74364
A44: 34 | B44: APOLLOTYRE | C44: 287.45 | D44: 285.65 | E44: 280.60 | F44: 273.75 | G44: 268.70 | H44: 292.50 | I44: 297.55 | J44: 304.40 | K44: 290.7 | L44: 278.8 | M44: 26.51663
A45: 35 | B45: APTUS | C45: 318.85 | D45: 319.87 | E45: 313.98 | F45: 309.12 | G45: 303.23 | H45: 324.73 | I45: 330.62 | J45: 335.48 | K45: 325.75 | L45: 315 | M45: 1.62117
A46: 36 | B46: ASAHIINDIA | C46: 607.1 | D46: 608.20 | E46: 604.05 | F46: 601.00 | G46: 596.85 | H46: 611.25 | I46: 615.40 | J46: 618.45 | K46: 612.35 | L46: 605.15 | M46: 0.32213
A47: 37 | B47: ASHOKLEY | C47: 147.25 | D47: 145.87 | E47: 143.73 | F47: 140.22 | G47: 138.08 | H47: 149.38 | I47: 151.52 | J47: 155.03 | K47: 148 | L47: 142.35 | M47: 101.44571
A48: 38 | B48: ASIANPAINT | C48: 3084.9 | D48: 3099.93 | E48: 3064.87 | F48: 3044.83 | G48: 3009.77 | H48: 3119.97 | I48: 3155.03 | J48: 3175.07 | K48: 3135 | L48: 3079.9 | M48: 10.16316
A49: 39 | B49: ASTERDM | C49: 243.85 | D49: 245.22 | E49: 239.73 | F49: 235.62 | G49: 230.13 | H49: 249.33 | I49: 254.82 | J49: 258.93 | K49: 250.7 | L49: 241.1 | M49: 3.81175
A50: 40 | B50: ASTRAZEN | C50: 3121.35 | D50: 3118.73 | E50: 3092.47 | F50: 3063.58 | G50: 3037.32 | H50: 3147.62 | I50: 3173.88 | J50: 3202.77 | K50: 3145 | L50: 3089.85 | M50: 0.07734
A51: 41 | B51: ASTRAL | C51: 1986.65 | D51: 1998.65 | E51: 1969.30 | F51: 1951.95 | G51: 1922.60 | H51: 2016.00 | I51: 2045.35 | J51: 2062.70 | K51: 2028 | L51: 1981.3 | M51: 2.6726
A52: 42 | B52: ATUL | C52: 8201 | D52: 8251.67 | E52: 8134.38 | F52: 8067.77 | G52: 7950.48 | H52: 8318.28 | I52: 8435.57 | J52: 8502.18 | K52: 8368.95 | L52: 8185.05 | M52: 0.26437
A53: 43 | B53: AUROPHARMA | C53: 519.9 | D53: 521.38 | E53: 516.87 | F53: 513.83 | G53: 509.32 | H53: 524.42 | I53: 528.93 | J53: 531.97 | K53: 525.9 | L53: 518.35 | M53: 7.47337
A54: 44 | B54: AVANTIFEED | C54: 453.2 | D54: 457.08 | E54: 446.62 | F54: 440.03 | G54: 429.57 | H54: 463.67 | I54: 474.13 | J54: 480.72 | K54: 467.55 | L54: 450.5 | M54: 1.94358
A55: 45 | B55: DMART | C55: 4235.6 | D55: 4216.70 | E55: 4183.90 | F55: 4132.20 | G55: 4099.40 | H55: 4268.40 | I55: 4301.20 | J55: 4352.90 | K55: 4249.5 | L55: 4165 | M55: 1.60107
A56: 46 | B56: AXISBANK | C56: 902.85 | D56: 901.68 | E56: 892.77 | F56: 882.68 | G56: 873.77 | H56: 911.77 | I56: 920.68 | J56: 930.77 | K56: 910.6 | L56: 891.6 | M56: 131.87308
A57: 47 | B57: BASF | C57: 2833.6 | D57: 2850.78 | E57: 2807.82 | F57: 2782.03 | G57: 2739.07 | H57: 2876.57 | I57: 2919.53 | J57: 2945.32 | K57: 2893.75 | L57: 2825 | M57: 0.08988
A58: 48 | B58: BSE | C58: 611.15 | D58: 604.20 | E58: 590.70 | F58: 570.25 | G58: 556.75 | H58: 624.65 | I58: 638.15 | J58: 658.60 | K58: 617.7 | L58: 583.75 | M58: 14.63112
A59: 49 | B59: BAJAJ-AUTO | C59: 3654.1 | D59: 3675.03 | E59: 3623.07 | F59: 3592.03 | G59: 3540.07 | H59: 3706.07 | I59: 3758.03 | J59: 3789.07 | K59: 3727 | L59: 3644 | M59: 3.51456
A60: 50 | B60: BAJAJELEC | C60: 1146.85 | D60: 1159.08 | E60: 1126.77 | F60: 1106.68 | G60: 1074.37 | H60: 1179.17 | I60: 1211.48 | J60: 1231.57 | K60: 1191.4 | L60: 1139 | M60: 1.08612
A61: 51 | B61: BAJFINANCE | C61: 7102.9 | D61: 7145.15 | E61: 7047.75 | F61: 6992.60 | G61: 6895.20 | H61: 7200.30 | I61: 7297.70 | J61: 7352.85 | K61: 7242.55 | L61: 7090 | M61: 9.09899
A62: 52 | B62: BAJAJFINSV | C62: 1658.55 | D62: 1671.48 | E62: 1642.07 | F62: 1625.58 | G62: 1596.17 | H62: 1687.97 | I62: 1717.38 | J62: 1733.87 | K62: 1700.9 | L62: 1655 | M62: 18.70289
A63: 53 | B63: BAJAJHLDNG | C63: 6497.45 | D63: 6497.53 | E63: 6420.07 | F63: 6342.68 | G63: 6265.22 | H63: 6574.92 | I63: 6652.38 | J63: 6729.77 | K63: 6575 | L63: 6420.15 | M63: 1.28602
A64: 54 | B64: BALAMINES | C64: 3100.85 | D64: 3094.28 | E64: 3078.57 | F64: 3056.28 | G64: 3040.57 | H64: 3116.57 | I64: 3132.28 | J64: 3154.57 | K64: 3110 | L64: 3072 | M64: 0.297
A65: 55 | B65: BALKRISIND | C65: 1947.2 | D65: 1940.08 | E65: 1925.17 | F65: 1903.13 | G65: 1888.22 | H65: 1962.12 | I65: 1977.03 | J65: 1999.07 | K65: 1955 | L65: 1918.05 | M65: 2.30136
A66: 56 | B66: BALRAMCHIN | C66: 332 | D66: 333.22 | E66: 328.98 | F66: 325.97 | G66: 321.73 | H66: 336.23 | I66: 340.47 | J66: 343.48 | K66: 337.45 | L66: 330.2 | M66: 7.33176
A67: 57 | B67: BANDHANBNK | C67: 267.75 | D67: 265.80 | E67: 262.20 | F67: 256.65 | G67: 253.05 | H67: 271.35 | I67: 274.95 | J67: 280.50 | K67: 269.4 | L67: 260.25 | M67: 69.66245
A68: 58 | B68: BANKBARODA | C68: 148.35 | D68: 147.48 | E68: 143.37 | F68: 138.38 | G68: 134.27 | H68: 152.47 | I68: 156.58 | J68: 161.57 | K68: 151.6 | L68: 142.5 | M68: 427.82169
A69: 59 | B69: BANKINDIA | C69: 56.45 | D69: 54.83 | E69: 52.12 | F69: 47.78 | G69: 45.07 | H69: 59.17 | I69: 61.88 | J69: 66.22 | K69: 57.55 | L69: 50.5 | M69: 337.92078
A70: 60 | B70: MAHABANK | C70: 20.95 | D70: 20.68 | E70: 20.02 | F70: 19.08 | G70: 18.42 | H70: 21.62 | I70: 22.28 | J70: 23.22 | K70: 21.35 | L70: 19.75 | M70: 187.73606
A71: 61 | B71: BATAINDIA | C71: 1804.2 | D71: 1805.03 | E71: 1791.22 | F71: 1778.23 | G71: 1764.42 | H71: 1818.02 | I71: 1831.83 | J71: 1844.82 | K71: 1818.85 | L71: 1792.05 | M71: 1.49646
A72: 62 | B72: BAYERCROP | C72: 4685.3 | D72: 4687.68 | E72: 4656.42 | F72: 4627.53 | G72: 4596.27 | H72: 4716.57 | I72: 4747.83 | J72: 4776.72 | K72: 4718.95 | L72: 4658.8 | M72: 0.04797
A73: 63 | B73: BERGEPAINT | C73: 583.35 | D73: 586.75 | E73: 578.60 | F73: 573.85 | G73: 565.70 | H73: 591.50 | I73: 599.65 | J73: 604.40 | K73: 594.9 | L73: 582 | M73: 7.54247
A74: 64 | B74: BDL | C74: 995.2 | D74: 983.30 | E74: 957.90 | F74: 920.60 | G74: 895.20 | H74: 1020.60 | I74: 1046.00 | J74: 1083.30 | K74: 1008.7 | L74: 946 | M74: 27.53823
A75: 65 | B75: BEL | C75: 105.05 | D75: 104.70 | E75: 103.90 | F75: 102.75 | G75: 101.95 | H75: 105.85 | I75: 106.65 | J75: 107.80 | K75: 105.5 | L75: 103.55 | M75: 132.17298
A76: 66 | B76: BHARATFORG | C76: 806.65 | D76: 798.27 | E76: 783.73 | F76: 760.82 | G76: 746.28 | H76: 821.18 | I76: 835.72 | J76: 858.63 | K76: 812.8 | L76: 775.35 | M76: 30.21828
A77: 67 | B77: BHEL | C77: 71.1 | D77: 69.78 | E77: 67.82 | F77: 64.53 | G77: 62.57 | H77: 73.07 | I77: 75.03 | J77: 78.32 | K77: 71.75 | L77: 66.5 | M77: 1332.72405
A78: 68 | B78: BPCL | C78: 302.6 | D78: 301.65 | E78: 298.30 | F78: 294.00 | G78: 290.65 | H78: 305.95 | I78: 309.30 | J78: 313.60 | K78: 305 | L78: 297.35 | M78: 28.42331
A79: 69 | B79: BHARATRAS | C79: 11422.1 | D79: 11226.33 | E79: 10758.67 | F79: 10095.23 | G79: 9627.57 | H79: 11889.77 | I79: 12357.43 | J79: 13020.87 | K79: 11694 | L79: 10562.9 | M79: 0.1153
A80: 70 | B80: BHARTIARTL | C80: 802.3 | D80: 802.45 | E80: 798.55 | F80: 794.80 | G80: 790.90 | H80: 806.20 | I80: 810.10 | J80: 813.85 | K80: 806.35 | L80: 798.7 | M80: 31.84277
A81: 71 | B81: BIOCON | C81: 272 | D81: 270.98 | E81: 268.17 | F81: 264.33 | G81: 261.52 | H81: 274.82 | I81: 277.63 | J81: 281.47 | K81: 273.8 | L81: 267.15 | M81: 19.4141
A82: 72 | B82: BIRLACORPN | C82: 909.05 | D82: 911.80 | E82: 897.25 | F82: 885.45 | G82: 870.90 | H82: 923.60 | I82: 938.15 | J82: 949.95 | K82: 926.35 | L82: 900 | M82: 0.56826
A83: 73 | B83: BSOFT | C83: 274.1 | D83: 276.03 | E83: 270.07 | F83: 266.03 | G83: 260.07 | H83: 280.07 | I83: 286.03 | J83: 290.07 | K83: 282 | L83: 272 | M83: 27.99096
A84: 74 | B84: BLUEDART | C84: 8267.55 | D84: 8316.18 | E84: 8202.47 | F84: 8137.38 | G84: 8023.67 | H84: 8381.27 | I84: 8494.98 | J84: 8560.07 | K84: 8429.9 | L84: 8251.1 | M84: 0.12565
A85: 75 | B85: BLUESTARCO | C85: 1210.4 | D85: 1209.95 | E85: 1201.45 | F85: 1192.50 | G85: 1184.00 | H85: 1218.90 | I85: 1227.40 | J85: 1236.35 | K85: 1218.45 | L85: 1201 | M85: 0.39981
A86: 76 | B86: BBTC | C86: 862.7 | D86: 865.88 | E86: 852.82 | F86: 842.93 | G86: 829.87 | H86: 875.77 | I86: 888.83 | J86: 898.72 | K86: 878.95 | L86: 856 | M86: 0.84107
A87: 77 | B87: BORORENEW | C87: 565.65 | D87: 568.70 | E87: 556.95 | F87: 548.25 | G87: 536.50 | H87: 577.40 | I87: 589.15 | J87: 597.85 | K87: 580.45 | L87: 560 | M87: 1.91252
A88: 78 | B88: BOSCHLTD | C88: 15646.35 | D88: 15624.78 | E88: 15564.57 | F88: 15482.78 | G88: 15422.57 | H88: 15706.57 | I88: 15766.78 | J88: 15848.57 | K88: 15685 | L88: 15543 | M88: 0.08065
A89: 79 | B89: BRIGADE | C89: 488.35 | D89: 491.78 | E89: 480.62 | F89: 472.88 | G89: 461.72 | H89: 499.52 | I89: 510.68 | J89: 518.42 | K89: 502.95 | L89: 484.05 | M89: 1.56221
A90: 80 | B90: BCG | C90: 35.45 | D90: 35.73 | E90: 34.67 | F90: 33.88 | G90: 32.82 | H90: 36.52 | I90: 37.58 | J90: 38.37 | K90: 36.8 | L90: 34.95 | M90: 82.70213
A91: 81 | B91: BRITANNIA | C91: 3713.1 | D91: 3736.00 | E91: 3667.10 | F91: 3621.10 | G91: 3552.20 | H91: 3782.00 | I91: 3850.90 | J91: 3896.90 | K91: 3804.9 | L91: 3690 | M91: 2.28569
A92: 82 | B92: MAPMYINDIA | C92: 1350.95 | D92: 1348.98 | E92: 1338.97 | F92: 1326.98 | G92: 1316.97 | H92: 1360.97 | I92: 1370.98 | J92: 1382.97 | K92: 1359 | L92: 1337 | M92: 0.25889
A93: 83 | B93: CCL | C93: 481.4 | D93: 481.78 | E93: 475.92 | F93: 470.43 | G93: 464.57 | H93: 487.27 | I93: 493.13 | J93: 498.62 | K93: 487.65 | L93: 476.3 | M93: 0.62064
A94: 84 | B94: CESC | C94: 77.9 | D94: 78.12 | E94: 77.28 | F94: 76.67 | G94: 75.83 | H94: 78.73 | I94: 79.57 | J94: 80.18 | K94: 78.95 | L94: 77.5 | M94: 10.1262
A95: 85 | B95: CGPOWER | C95: 253.2 | D95: 252.87 | E95: 246.43 | F95: 239.67 | G95: 233.23 | H95: 259.63 | I95: 266.07 | J95: 272.83 | K95: 259.3 | L95: 246.1 | M95: 19.44401
A96: 86 | B96: CRISIL | C96: 2986.5 | D96: 2985.33 | E96: 2957.27 | F96: 2928.03 | G96: 2899.97 | H96: 3014.57 | I96: 3042.63 | J96: 3071.87 | K96: 3013.4 | L96: 2956.1 | M96: 0.22264
A97: 87 | B97: CSBBANK | C97: 229.25 | D97: 231.90 | E97: 224.90 | F97: 220.55 | G97: 213.55 | H97: 236.25 | I97: 243.25 | J97: 247.60 | K97: 238.9 | L97: 227.55 | M97: 31.34219
A98: 88 | B98: CAMPUS | C98: 572.9 | D98: 579.20 | E98: 558.95 | F98: 545.00 | G98: 524.75 | H98: 593.15 | I98: 613.40 | J98: 627.35 | K98: 599.45 | L98: 565.25 | M98: 9.51037
A99: 89 | B99: CANFINHOME | C99: 525.85 | D99: 522.73 | E99: 516.92 | F99: 507.98 | G99: 502.17 | H99: 531.67 | I99: 537.48 | J99: 546.42 | K99: 528.55 | L99: 513.8 | M99: 10.84772
A100: 90 | B100: CANBK | C100: 284.2 | D100: 279.67 | E100: 271.33 | F100: 258.47 | G100: 250.13 | H100: 292.53 | I100: 300.87 | J100: 313.73 | K100: 288 | L100: 266.8 | M100: 358.75913
A101: 91 | B101: CAPLIPOINT | C101: 744.75 | D101: 743.12 | E101: 738.23 | F101: 731.72 | G101: 726.83 | H101: 749.63 | I101: 754.52 | J101: 761.03 | K101: 748 | L101: 736.6 | M101: 0.34978
A102: 92 | B102: CGCL | C102: 756.1 | D102: 758.88 | E102: 744.17 | F102: 732.23 | G102: 717.52 | H102: 770.82 | I102: 785.53 | J102: 797.47 | K102: 773.6 | L102: 746.95 | M102: 1.77896
A103: 93 | B103: CARBORUNIV | C103: 851.3 | D103: 855.47 | E103: 836.93 | F103: 822.57 | G103: 804.03 | H103: 869.83 | I103: 888.37 | J103: 902.73 | K103: 874 | L103: 841.1 | M103: 0.59754
A104: 94 | B104: CASTROLIND | C104: 124.95 | D104: 124.40 | E104: 122.95 | F104: 120.95 | G104: 119.50 | H104: 126.40 | I104: 127.85 | J104: 129.85 | K104: 125.85 | L104: 122.4 | M104: 8.64221
A105: 95 | B105: CEATLTD | C105: 1492.85 | D105: 1499.28 | E105: 1478.57 | F105: 1464.28 | G105: 1443.57 | H105: 1513.57 | I105: 1534.28 | J105: 1548.57 | K105: 1520 | L105: 1485 | M105: 0.50239
A106: 96 | B106: CENTRALBK | C106: 20.9 | D106: 20.63 | E106: 20.07 | F106: 19.23 | G106: 18.67 | H106: 21.47 | I106: 22.03 | J106: 22.87 | K106: 21.2 | L106: 19.8 | M106: 145.77062
A107: 97 | B107: CDSL | C107: 1231 | D107: 1230.83 | E107: 1214.57 | F107: 1198.13 | G107: 1181.87 | H107: 1247.27 | I107: 1263.53 | J107: 1279.97 | K107: 1247.1 | L107: 1214.4 | M107: 4.21993
A108: 98 | B108: CENTURYPLY | C108: 633.45 | D108: 634.35 | E108: 629.70 | F108: 625.95 | G108: 621.30 | H108: 638.10 | I108: 642.75 | J108: 646.50 | K108: 639 | L108: 630.6 | M108: 0.36223
A109: 99 | B109: CENTURYTEX | C109: 814.05 | D109: 822.10 | E109: 802.95 | F109: 791.85 | G109: 772.70 | H109: 833.20 | I109: 852.35 | J109: 863.45 | K109: 841.25 | L109: 811 | M109: 1.00679
A110: 100 | B110: CERA | C110: 5421.5 | D110: 5444.73 | E110: 5364.42 | F110: 5307.33 | G110: 5227.02 | H110: 5501.82 | I110: 5582.13 | J110: 5639.22 | K110: 5525.05 | L110: 5387.65 | M110: 0.13313
A111: 101 | B111: CHALET | C111: 364.75 | D111: 366.32 | E111: 360.03 | F111: 355.32 | G111: 349.03 | H111: 371.03 | I111: 377.32 | J111: 382.03 | K111: 372.6 | L111: 361.6 | M111: 2.51589
A112: 102 | B112: CHAMBLFERT | C112: 326.75 | D112: 327.82 | E112: 323.68 | F112: 320.62 | G112: 316.48 | H112: 330.88 | I112: 335.02 | J112: 338.08 | K112: 331.95 | L112: 324.75 | M112: 9.38349
A113: 103 | B113: CHEMPLASTS | C113: 392.65 | D113: 393.07 | E113: 387.63 | F113: 382.62 | G113: 377.18 | H113: 398.08 | I113: 403.52 | J113: 408.53 | K113: 398.5 | L113: 388.05 | M113: 0.70907
A114: 104 | B114: CHOLAHLDNG | C114: 632.35 | D114: 629.42 | E114: 619.83 | F114: 607.32 | G114: 597.73 | H114: 641.93 | I114: 651.52 | J114: 664.03 | K114: 639 | L114: 616.9 | M114: 0.16361
A115: 105 | B115: CHOLAFIN | C115: 715.75 | D115: 715.87 | E115: 709.13 | F115: 702.52 | G115: 695.78 | H115: 722.48 | I115: 729.22 | J115: 735.83 | K115: 722.6 | L115: 709.25 | M115: 9.28958
A116: 106 | B116: CIPLA | C116: 1155.9 | D116: 1155.88 | E116: 1146.92 | F116: 1137.93 | G116: 1128.97 | H116: 1164.87 | I116: 1173.83 | J116: 1182.82 | K116: 1164.85 | L116: 1146.9 | M116: 22.10622
A117: 107 | B117: CUB | C117: 186.75 | D117: 186.90 | E117: 184.85 | F117: 182.95 | G117: 180.90 | H117: 188.80 | I117: 190.85 | J117: 192.75 | K117: 188.95 | L117: 185 | M117: 18.50454
A118: 108 | B118: CLEAN | C118: 1633.05 | D118: 1642.55 | E118: 1610.05 | F118: 1587.05 | G118: 1554.55 | H118: 1665.55 | I118: 1698.05 | J118: 1721.05 | K118: 1675.05 | L118: 1619.55 | M118: 0.60291
A119: 109 | B119: COALINDIA | C119: 239.95 | D119: 239.62 | E119: 238.28 | F119: 236.62 | G119: 235.28 | H119: 241.28 | I119: 242.62 | J119: 244.28 | K119: 240.95 | L119: 237.95 | M119: 69.76548
A120: 110 | B120: COCHINSHIP | C120: 542.15 | D120: 535.78 | E120: 523.57 | F120: 504.98 | G120: 492.77 | H120: 554.37 | I120: 566.58 | J120: 585.17 | K120: 548 | L120: 517.2 | M120: 16.68822
A121: 111 | B121: COFORGE | C121: 3895.3 | D121: 3890.05 | E121: 3850.25 | F121: 3805.20 | G121: 3765.40 | H121: 3935.10 | I121: 3974.90 | J121: 4019.95 | K121: 3929.85 | L121: 3845 | M121: 1.80109
A122: 112 | B122: COLPAL | C122: 1616.6 | D122: 1609.90 | E122: 1599.80 | F122: 1583.00 | G122: 1572.90 | H122: 1626.70 | I122: 1636.80 | J122: 1653.60 | K122: 1620 | L122: 1593.1 | M122: 2.60588
A123: 113 | B123: CAMS | C123: 2615.9 | D123: 2632.48 | E123: 2588.42 | F123: 2560.93 | G123: 2516.87 | H123: 2659.97 | I123: 2704.03 | J123: 2731.52 | K123: 2676.55 | L123: 2605 | M123: 1.1212
A124: 114 | B124: CONCOR | C124: 759.35 | D124: 757.08 | E124: 749.27 | F124: 739.18 | G124: 731.37 | H124: 767.17 | I124: 774.98 | J124: 785.07 | K124: 764.9 | L124: 747 | M124: 25.6379
A125: 115 | B125: COROMANDEL | C125: 979.75 | D125: 988.43 | E125: 965.92 | F125: 952.08 | G125: 929.57 | H125: 1002.27 | I125: 1024.78 | J125: 1038.62 | K125: 1010.95 | L125: 974.6 | M125: 4.23662
A126: 116 | B126: CREDITACC | C126: 976.4 | D126: 975.30 | E126: 963.50 | F126: 950.60 | G126: 938.80 | H126: 988.20 | I126: 1000.00 | J126: 1012.90 | K126: 987.1 | L126: 962.4 | M126: 3.27375
A127: 117 | B127: CROMPTON | C127: 377.9 | D127: 376.27 | E127: 370.63 | F127: 363.37 | G127: 357.73 | H127: 383.53 | I127: 389.17 | J127: 396.43 | K127: 381.9 | L127: 369 | M127: 9.72561
A128: 118 | B128: CUMMINSIND | C128: 1224.7 | D128: 1213.58 | E128: 1196.22 | F128: 1167.73 | G128: 1150.37 | H128: 1242.07 | I128: 1259.43 | J128: 1287.92 | K128: 1230.95 | L128: 1185.1 | M128: 2.92659
A129: 119 | B129: CYIENT | C129: 754.95 | D129: 755.30 | E129: 745.65 | F129: 736.35 | G129: 726.70 | H129: 764.60 | I129: 774.25 | J129: 783.55 | K129: 764.95 | L129: 746 | M129: 2.47972
A130: 120 | B130: DCMSHRIRAM | C130: 1060.45 | D130: 1061.60 | E130: 1034.85 | F130: 1009.25 | G130: 982.50 | H130: 1087.20 | I130: 1113.95 | J130: 1139.55 | K130: 1088.35 | L130: 1036 | M130: 1.11751
A131: 121 | B131: DLF | C131: 369.75 | D131: 370.78 | E131: 366.07 | F131: 362.38 | G131: 357.67 | H131: 374.47 | I131: 379.18 | J131: 382.87 | K131: 375.5 | L131: 367.1 | M131: 29.97168
A132: 122 | B132: DABUR | C132: 532.15 | D132: 533.63 | E132: 529.27 | F132: 526.38 | G132: 522.02 | H132: 536.52 | I132: 540.88 | J132: 543.77 | K132: 538 | L132: 530.75 | M132: 12.31137
A133: 123 | B133: DALBHARAT | C133: 1532.2 | D133: 1541.92 | E133: 1510.98 | F133: 1489.77 | G133: 1458.83 | H133: 1563.13 | I133: 1594.07 | J133: 1615.28 | K133: 1572.85 | L133: 1520.7 | M133: 2.30807
A134: 124 | B134: DEEPAKFERT | C134: 1018.95 | D134: 1022.50 | E134: 1002.00 | F134: 985.05 | G134: 964.55 | H134: 1039.45 | I134: 1059.95 | J134: 1076.90 | K134: 1043 | L134: 1005.55 | M134: 5.15185
A135: 125 | B135: DEEPAKNTR | C135: 2253 | D135: 2244.43 | E135: 2230.12 | F135: 2207.23 | G135: 2192.92 | H135: 2267.32 | I135: 2281.63 | J135: 2304.52 | K135: 2258.75 | L135: 2221.55 | M135: 2.9777
A136: 126 | B136: DELHIVERY | C136: 383.4 | D136: 387.80 | E136: 373.60 | F136: 363.80 | G136: 349.60 | H136: 397.60 | I136: 411.80 | J136: 421.60 | K136: 402 | L136: 378 | M136: 36.47705
A137: 127 | B137: DELTACORP | C137: 221.9 | D137: 223.63 | E137: 219.47 | F137: 217.03 | G137: 212.87 | H137: 226.07 | I137: 230.23 | J137: 232.67 | K137: 227.8 | L137: 221.2 | M137: 44.56536
A138: 128 | B138: DEVYANI | C138: 194.5 | D138: 196.15 | E138: 191.55 | F138: 188.60 | G138: 184.00 | H138: 199.10 | I138: 203.70 | J138: 206.65 | K138: 200.75 | L138: 193.2 | M138: 30.46051
A139: 129 | B139: DHANI | C139: 52.1 | D139: 50.87 | E139: 49.63 | F139: 47.17 | G139: 45.93 | H139: 53.33 | I139: 54.57 | J139: 57.03 | K139: 52.1 | L139: 48.4 | M139: 23.88563
A140: 130 | B140: DBL | C140: 220.1 | D140: 220.67 | E140: 217.08 | F140: 214.07 | G140: 210.48 | H140: 223.68 | I140: 227.27 | J140: 230.28 | K140: 224.25 | L140: 217.65 | M140: 1.52893
A141: 131 | B141: DIVISLAB | C141: 3597.15 | D141: 3594.47 | E141: 3570.03 | F141: 3542.92 | G141: 3518.48 | H141: 3621.58 | I141: 3646.02 | J141: 3673.13 | K141: 3618.9 | L141: 3567.35 | M141: 2.11326
A142: 132 | B142: DIXON | C142: 4324.95 | D142: 4315.73 | E142: 4284.47 | F142: 4243.98 | G142: 4212.72 | H142: 4356.22 | I142: 4387.48 | J142: 4427.97 | K142: 4347 | L142: 4275.25 | M142: 1.29945
A143: 133 | B143: LALPATHLAB | C143: 2624.9 | D143: 2608.42 | E143: 2581.83 | F143: 2538.77 | G143: 2512.18 | H143: 2651.48 | I143: 2678.07 | J143: 2721.13 | K143: 2635 | L143: 2565.35 | M143: 2.75975
A144: 134 | B144: DRREDDY | C144: 4442.35 | D144: 4430.28 | E144: 4383.07 | F144: 4323.78 | G144: 4276.57 | H144: 4489.57 | I144: 4536.78 | J144: 4596.07 | K144: 4477.5 | L144: 4371 | M144: 6.23655
A145: 135 | B145: EIDPARRY | C145: 620.05 | D145: 625.30 | E145: 612.20 | F145: 604.35 | G145: 591.25 | H145: 633.15 | I145: 646.25 | J145: 654.10 | K145: 638.4 | L145: 617.45 | M145: 4.28258
A146: 136 | B146: EIHOTEL | C146: 190.25 | D146: 191.83 | E146: 187.77 | F146: 185.28 | G146: 181.22 | H146: 194.32 | I146: 198.38 | J146: 200.87 | K146: 195.9 | L146: 189.35 | M146: 2.92635
A147: 137 | B147: EPL | C147: 158.85 | D147: 158.67 | E147: 157.33 | F147: 155.82 | G147: 154.48 | H147: 160.18 | I147: 161.52 | J147: 163.03 | K147: 160 | L147: 157.15 | M147: 0.69333
A148: 138 | B148: EASEMYTRIP | C148: 393.3 | D148: 394.05 | E148: 389.30 | F148: 385.30 | G148: 380.55 | H148: 398.05 | I148: 402.80 | J148: 406.80 | K148: 398.8 | L148: 390.05 | M148: 4.8054
A149: 139 | B149: EDELWEISS | C149: 58.8 | D149: 58.83 | E149: 58.17 | F149: 57.53 | G149: 56.87 | H149: 59.47 | I149: 60.13 | J149: 60.77 | K149: 59.5 | L149: 58.2 | M149: 7.27457
A150: 140 | B150: EICHERMOT | C150: 3710.65 | D150: 3694.88 | E150: 3665.77 | F150: 3620.88 | G150: 3591.77 | H150: 3739.77 | I150: 3768.88 | J150: 3813.77 | K150: 3724 | L150: 3650 | M150: 5.71186
A151: 141 | B151: ELGIEQUIP | C151: 524.8 | D151: 518.68 | E151: 505.72 | F151: 486.63 | G151: 473.67 | H151: 537.77 | I151: 550.73 | J151: 569.82 | K151: 531.65 | L151: 499.6 | M151: 12.16692
A152: 142 | B152: EMAMILTD | C152: 476.65 | D152: 479.22 | E152: 469.48 | F152: 462.32 | G152: 452.58 | H152: 486.38 | I152: 496.12 | J152: 503.28 | K152: 488.95 | L152: 472.05 | M152: 1.65693
A153: 143 | B153: ENDURANCE | C153: 1350.75 | D153: 1356.57 | E153: 1334.18 | F153: 1317.62 | G153: 1295.23 | H153: 1373.13 | I153: 1395.52 | J153: 1412.08 | K153: 1378.95 | L153: 1340 | M153: 0.89772
A154: 144 | B154: ENGINERSIN | C154: 65.5 | D154: 65.32 | E154: 64.63 | F154: 63.77 | G154: 63.08 | H154: 66.18 | I154: 66.87 | J154: 67.73 | K154: 66 | L154: 64.45 | M154: 15.57
A155: 145 | B155: EQUITASBNK | C155: 48.1 | D155: 48.00 | E155: 47.65 | F155: 47.20 | G155: 46.85 | H155: 48.45 | I155: 48.80 | J155: 49.25 | K155: 48.35 | L155: 47.55 | M155: 3.44258
A156: 146 | B156: ESCORTS | C156: 2000.85 | D156: 1995.77 | E156: 1980.28 | F156: 1959.72 | G156: 1944.23 | H156: 2016.33 | I156: 2031.82 | J156: 2052.38 | K156: 2011.25 | L156: 1975.2 | M156: 1.82177
A157: 147 | B157: EXIDEIND | C157: 164.15 | D157: 163.17 | E157: 160.23 | F157: 156.32 | G157: 153.38 | H157: 167.08 | I157: 170.02 | J157: 173.93 | K157: 166.1 | L157: 159.25 | M157: 29.89594
A158: 148 | B158: FDC | C158: 298.25 | D158: 298.50 | E158: 294.95 | F158: 291.65 | G158: 288.10 | H158: 301.80 | I158: 305.35 | J158: 308.65 | K158: 302.05 | L158: 295.2 | M158: 1.67858
A159: 149 | B159: NYKAA | C159: 1111.3 | D159: 1122.28 | E159: 1097.02 | F159: 1082.73 | G159: 1057.47 | H159: 1136.57 | I159: 1161.83 | J159: 1176.12 | K159: 1147.55 | L159: 1108 | M159: 5.03028
A160: 150 | B160: FEDERALBNK | C160: 134.2 | D160: 134.30 | E160: 133.05 | F160: 131.90 | G160: 130.65 | H160: 135.45 | I160: 136.70 | J160: 137.85 | K160: 135.55 | L160: 133.15 | M160: 115.65536
A161: 151 | B161: FACT | C161: 116.75 | D161: 116.90 | E161: 115.45 | F161: 114.15 | G161: 112.70 | H161: 118.20 | I161: 119.65 | J161: 120.95 | K161: 118.35 | L161: 115.6 | M161: 0.68553
A162: 152 | B162: FINEORG | C162: 6756.05 | D162: 6785.03 | E162: 6702.02 | F162: 6647.98 | G162: 6564.97 | H162: 6839.07 | I162: 6922.08 | J162: 6976.12 | K162: 6868.05 | L162: 6731 | M162: 0.14355
A163: 153 | B163: FINCABLES | C163: 522.9 | D163: 525.32 | E163: 512.63 | F163: 502.37 | G163: 489.68 | H163: 535.58 | I163: 548.27 | J163: 558.53 | K163: 538 | L163: 515.05 | M163: 16.86968
A164: 154 | B164: FINPIPE | C164: 134 | D164: 134.47 | E164: 132.93 | F164: 131.87 | G164: 130.33 | H164: 135.53 | I164: 137.07 | J164: 138.13 | K164: 136 | L164: 133.4 | M164: 3.04469
A165: 155 | B165: FSL | C165: 105.65 | D165: 105.32 | E165: 103.93 | F165: 102.22 | G165: 100.83 | H165: 107.03 | I165: 108.42 | J165: 110.13 | K165: 106.7 | L165: 103.6 | M165: 23.15269
A166: 156 | B166: FORTIS | C166: 265.75 | D166: 269.25 | E166: 261.50 | F166: 257.25 | G166: 249.50 | H166: 273.50 | I166: 281.25 | J166: 285.50 | K166: 277 | L166: 265 | M166: 11.1271
A167: 157 | B167: GRINFRA | C167: 1217.65 | D167: 1220.70 | E167: 1211.95 | F167: 1206.25 | G167: 1197.50 | H167: 1226.40 | I167: 1235.15 | J167: 1240.85 | K167: 1229.45 | L167: 1215 | M167: 0.05454
A168: 158 | B168: GAIL | C168: 86.55 | D168: 86.67 | E168: 85.78 | F168: 85.02 | G168: 84.13 | H168: 87.43 | I168: 88.32 | J168: 89.08 | K168: 87.55 | L168: 85.9 | M168: 70.86629
A169: 159 | B169: GMMPFAUDLR | C169: 1851.15 | D169: 1848.42 | E169: 1831.78 | F169: 1812.42 | G169: 1795.78 | H169: 1867.78 | I169: 1884.42 | J169: 1903.78 | K169: 1865.05 | L169: 1829.05 | M169: 0.58699
A170: 160 | B170: GMRINFRA | C170: 35.55 | D170: 35.30 | E170: 34.80 | F170: 34.05 | G170: 33.55 | H170: 36.05 | I170: 36.55 | J170: 37.30 | K170: 35.8 | L170: 34.55 | M170: 56.60598
A171: 161 | B171: GALAXYSURF | C171: 2849.4 | D171: 2863.37 | E171: 2816.73 | F171: 2784.07 | G171: 2737.43 | H171: 2896.03 | I171: 2942.67 | J171: 2975.33 | K171: 2910 | L171: 2830.7 | M171: 0.09961
A172: 162 | B172: GARFIBRES | C172: 3509.45 | D172: 3521.70 | E172: 3468.40 | F172: 3427.35 | G172: 3374.05 | H172: 3562.75 | I172: 3616.05 | J172: 3657.10 | K172: 3575 | L172: 3480.65 | M172: 0.09234
A173: 163 | B173: GICRE | C173: 120.4 | D173: 121.03 | E173: 118.77 | F173: 117.13 | G173: 114.87 | H173: 122.67 | I173: 124.93 | J173: 126.57 | K173: 123.3 | L173: 119.4 | M173: 1.75379
A174: 164 | B174: GLAND | C174: 2225.3 | D174: 2207.78 | E174: 2177.57 | F174: 2129.83 | G174: 2099.62 | H174: 2255.52 | I174: 2285.73 | J174: 2333.47 | K174: 2238 | L174: 2160.05 | M174: 2.28975
A175: 165 | B175: GLAXO | C175: 1363.65 | D175: 1367.33 | E175: 1357.37 | F175: 1351.08 | G175: 1341.12 | H175: 1373.62 | I175: 1383.58 | J175: 1389.87 | K175: 1377.3 | L175: 1361.05 | M175: 0.24142
A176: 166 | B176: GLENMARK | C176: 401.6 | D176: 401.83 | E176: 396.02 | F176: 390.43 | G176: 384.62 | H176: 407.42 | I176: 413.23 | J176: 418.82 | K176: 407.65 | L176: 396.25 | M176: 8.89876
A177: 167 | B177: GOCOLORS | C177: 1350.65 | D177: 1353.75 | E177: 1337.45 | F177: 1324.25 | G177: 1307.95 | H177: 1366.95 | I177: 1383.25 | J177: 1396.45 | K177: 1370.05 | L177: 1340.55 | M177: 0.16292
A178: 168 | B178: GODFRYPHLP | C178: 1490.3 | D178: 1474.10 | E178: 1448.20 | F178: 1406.10 | G178: 1380.20 | H178: 1516.20 | I178: 1542.10 | J178: 1584.20 | K178: 1500 | L178: 1432 | M178: 1.59806
A179: 169 | B179: GODREJAGRO | C179: 511.45 | D179: 512.38 | E179: 508.07 | F179: 504.68 | G179: 500.37 | H179: 515.77 | I179: 520.08 | J179: 523.47 | K179: 516.7 | L179: 509 | M179: 0.49574
A180: 170 | B180: GODREJCP | C180: 821 | D180: 819.33 | E180: 814.67 | F180: 808.33 | G180: 803.67 | H180: 825.67 | I180: 830.33 | J180: 836.67 | K180: 824 | L180: 813 | M180: 8.10608
A181: 171 | B181: GODREJIND | C181: 431.8 | D181: 431.52 | E181: 427.28 | F181: 422.77 | G181: 418.53 | H181: 436.03 | I181: 440.27 | J181: 444.78 | K181: 435.75 | L181: 427 | M181: 0.75901
A182: 172 | B182: GODREJPROP | C182: 1212.05 | D182: 1207.05 | E182: 1195.10 | F182: 1178.15 | G182: 1166.20 | H182: 1224.00 | I182: 1235.95 | J182: 1252.90 | K182: 1219 | L182: 1190.1 | M182: 3.39382
A183: 173 | B183: GRANULES | C183: 354.45 | D183: 351.55 | E183: 345.15 | F183: 335.85 | G183: 329.45 | H183: 360.85 | I183: 367.25 | J183: 376.55 | K183: 357.95 | L183: 342.25 | M183: 22.61821
A184: 174 | B184: GRAPHITE | C184: 356.25 | D184: 357.83 | E184: 353.92 | F184: 351.58 | G184: 347.67 | H184: 360.17 | I184: 364.08 | J184: 366.42 | K184: 361.75 | L184: 355.5 | M184: 1.82786
A185: 175 | B185: GRASIM | C185: 1714.7 | D185: 1712.20 | E185: 1695.40 | F185: 1676.10 | G185: 1659.30 | H185: 1731.50 | I185: 1748.30 | J185: 1767.60 | K185: 1729 | L185: 1692.9 | M185: 7.05866
A186: 176 | B186: GESHIP | C186: 524.85 | D186: 520.87 | E186: 509.53 | F186: 494.22 | G186: 482.88 | H186: 536.18 | I186: 547.52 | J186: 562.83 | K186: 532.2 | L186: 505.55 | M186: 3.55978
A187: 177 | B187: GREENPANEL | C187: 383.05 | D187: 378.72 | E187: 369.43 | F187: 355.82 | G187: 346.53 | H187: 392.33 | I187: 401.62 | J187: 415.23 | K187: 388 | L187: 365.1 | M187: 4.52324
A188: 178 | B188: GRINDWELL | C188: 2020.6 | D188: 2033.45 | E188: 1999.15 | F188: 1977.70 | G188: 1943.40 | H188: 2054.90 | I188: 2089.20 | J188: 2110.65 | K188: 2067.75 | L188: 2012 | M188: 0.13981
A189: 179 | B189: GUJALKALI | C189: 887.65 | D189: 892.15 | E189: 879.35 | F189: 871.05 | G189: 858.25 | H189: 900.45 | I189: 913.25 | J189: 921.55 | K189: 904.95 | L189: 883.85 | M189: 1.5222
A190: 180 | B190: GAEL | C190: 250.95 | D190: 252.92 | E190: 248.03 | F190: 245.12 | G190: 240.23 | H190: 255.83 | I190: 260.72 | J190: 263.63 | K190: 257.8 | L190: 250 | M190: 2.27055
A191: 181 | B191: FLUOROCHEM | C191: 3879.25 | D191: 3859.75 | E191: 3819.50 | F191: 3759.75 | G191: 3719.50 | H191: 3919.50 | I191: 3959.75 | J191: 4019.50 | K191: 3900 | L191: 3800 | M191: 1.22897
A192: 182 | B192: GUJGASLTD | C192: 517.2 | D192: 516.20 | E192: 504.10 | F192: 491.00 | G192: 478.90 | H192: 529.30 | I192: 541.40 | J192: 554.50 | K192: 528.3 | L192: 503.1 | M192: 14.55173
A193: 183 | B193: GNFC | C193: 720.15 | D193: 724.57 | E193: 714.13 | F193: 708.12 | G193: 697.68 | H193: 730.58 | I193: 741.02 | J193: 747.03 | K193: 735 | L193: 718.55 | M193: 8.13848
A194: 184 | B194: GPPL | C194: 83.2 | D194: 83.18 | E194: 82.12 | F194: 81.03 | G194: 79.97 | H194: 84.27 | I194: 85.33 | J194: 86.42 | K194: 84.25 | L194: 82.1 | M194: 6.63613
A195: 185 | B195: GSFC | C195: 127.95 | D195: 128.52 | E195: 126.93 | F195: 125.92 | G195: 124.33 | H195: 129.53 | I195: 131.12 | J195: 132.13 | K195: 130.1 | L195: 127.5 | M195: 11.10558
A196: 186 | B196: GSPL | C196: 218.75 | D196: 219.68 | E196: 217.12 | F196: 215.48 | G196: 212.92 | H196: 221.32 | I196: 223.88 | J196: 225.52 | K196: 222.25 | L196: 218.05 | M196: 6.4276
A197: 187 | B197: HEG | C197: 1078.55 | D197: 1080.83 | E197: 1070.57 | F197: 1062.58 | G197: 1052.32 | H197: 1088.82 | I197: 1099.08 | J197: 1107.07 | K197: 1091.1 | L197: 1072.85 | M197: 0.59348
A198: 188 | B198: HCLTECH | C198: 1026.5 | D198: 1028.22 | E198: 1019.18 | F198: 1011.87 | G198: 1002.83 | H198: 1035.53 | I198: 1044.57 | J198: 1051.88 | K198: 1037.25 | L198: 1020.9 | M198: 30.68136
A199: 189 | B199: HDFCAMC | C199: 2060.15 | D199: 2056.92 | E199: 2041.08 | F199: 2022.02 | G199: 2006.18 | H199: 2075.98 | I199: 2091.82 | J199: 2110.88 | K199: 2072.75 | L199: 2037.85 | M199: 1.64332
A200: 190 | B200: HDFCBANK | C200: 1450.9 | D200: 1454.57 | E200: 1441.33 | F200: 1431.77 | G200: 1418.53 | H200: 1464.13 | I200: 1477.37 | J200: 1486.93 | K200: 1467.8 | L200: 1445 | M200: 68.86697
A201: 191 | B201: HDFCLIFE | C201: 533.45 | D201: 536.58 | E201: 528.37 | F201: 523.28 | G201: 515.07 | H201: 541.67 | I201: 549.88 | J201: 554.97 | K201: 544.8 | L201: 531.5 | M201: 23.62781
A202: 192 | B202: HFCL | C202: 78.35 | D202: 78.93 | E202: 77.52 | F202: 76.68 | G202: 75.27 | H202: 79.77 | I202: 81.18 | J202: 82.02 | K202: 80.35 | L202: 78.1 | M202: 51.76936
A203: 193 | B203: HLEGLAS | C203: 663.35 | D203: 670.88 | E203: 650.47 | F203: 637.58 | G203: 617.17 | H203: 683.77 | I203: 704.18 | J203: 717.07 | K203: 691.3 | L203: 658 | M203: 0.45711
A204: 194 | B204: HAPPSTMNDS | C204: 987.45 | D204: 991.05 | E204: 982.15 | F204: 976.85 | G204: 967.95 | H204: 996.35 | I204: 1005.25 | J204: 1010.55 | K204: 999.95 | L204: 985.75 | M204: 1.76666
A205: 195 | B205: HATSUN | C205: 943.95 | D205: 956.95 | E205: 926.00 | F205: 908.05 | G205: 877.10 | H205: 974.90 | I205: 1005.85 | J205: 1023.80 | K205: 987.9 | L205: 939 | M205: 0.25176
A206: 196 | B206: HAVELLS | C206: 1175.75 | D206: 1174.20 | E206: 1162.70 | F206: 1149.65 | G206: 1138.15 | H206: 1187.25 | I206: 1198.75 | J206: 1211.80 | K206: 1185.7 | L206: 1161.15 | M206: 7.64317
... 320 more rows

Sheet Bulk Deals
E6: Back To Main Page
A7: Subject : | B7: BULK DEAL | D7: =Main!B10 -> 2022-10-27
A9: Date | B9: Scrip code | C9: Scrip Name | D9: Client Name | E9: Buy / Sell | F9: Quantity Traded | G9: Trade Price / Wt.Avg.trade price | H9: Exchange
A10: 2022-10-25 | B10: 540615 | C10: 7NR | D10: NIRAV MAHENDRABHAI KOTHARI | E10: SELL | F10: 1,700,000 | G10: 1.56 | H10: BSE
A11: 2022-10-25 | B11: 543621 | C11: CARGOSOL | D11: SANJAY POPATLAL JAIN | E11: BUY | F11: 60,000 | G11: 78.05 | H11: BSE
A12: 2022-10-25 | B12: 543621 | C12: CARGOSOL | D12: SANJAY POPATLAL JAIN | E12: SELL | F12: 60,000 | G12: 79.33 | H12: BSE
A13: 2022-10-25 | B13: 543618 | C13: CARGOTRANS | D13: RAJESH KUMAR SINGLA . | E13: BUY | F13: 30,000 | G13: 85.23 | H13: BSE
A14: 2022-10-25 | B14: 542866 | C14: COLABCLOUD | D14: ABHINAV COMMOSALES | E14: SELL | F14: 15,056 | G14: 37.8 | H14: BSE
A15: 2022-10-25 | B15: 542866 | C15: COLABCLOUD | D15: ABHISHEK GUPTA | E15: BUY | F15: 19,121 | G15: 37.8 | H15: BSE
A16: 2022-10-25 | B16: 543606 | C16: CONTAINE | D16: BONANZA PORTFOLIO LIMITED | E16: SELL | F16: 32,000 | G16: 35.6 | H16: BSE
A17: 2022-10-25 | B17: 539405 | C17: DITCO | D17: MORESHWAR NARAYAN PATIL | E17: BUY | F17: 19,685 | G17: 19 | H17: BSE
A18: 2022-10-25 | B18: 539405 | C18: DITCO | D18: REKHA GUPTA | E18: SELL | F18: 25,000 | G18: 19 | H18: BSE
A19: 2022-10-25 | B19: 530197 | C19: FUNDVISER | D19: SANGHAVI RAJESHBHAI NAGINDAS | E19: SELL | F19: 30,000 | G19: 19.78 | H19: BSE
A20: 2022-10-25 | B20: 530197 | C20: FUNDVISER | D20: NAYNABEN RAJESHKUMAR SANGHVI | E20: BUY | F20: 30,151 | G20: 19.77 | H20: BSE
A21: 2022-10-25 | B21: 543620 | C21: INA | D21: SHAH SHARAD KANAYALAL | E21: BUY | F21: 216,000 | G21: 130.47 | H21: BSE
A22: 2022-10-25 | B22: 543620 | C22: INA | D22: VISHAL BIPINCHANDRA DOSHI | E22: SELL | F22: 519,000 | G22: 123.29 | H22: BSE
A23: 2022-10-25 | B23: 543620 | C23: INA | D23: VISHAL BIPINCHANDRA DOSHI | E23: BUY | F23: 240,000 | G23: 122.4 | H23: BSE
A24: 2022-10-25 | B24: 543620 | C24: INA | D24: MULTIPLIER SHARE & STOCK ADVISORS PRIVATE LIMITED | E24: SELL | F24: 138,000 | G24: 131.2 | H24: BSE
A25: 2022-10-25 | B25: 543620 | C25: INA | D25: MULTIPLIER SHARE & STOCK ADVISORS PRIVATE LIMITED | E25: BUY | F25: 90,000 | G25: 124.35 | H25: BSE
A26: 2022-10-25 | B26: 540730 | C26: MEHAI | D26: KAMAL JEET GUPTA | E26: SELL | F26: 71,631 | G26: 17.82 | H26: BSE
A27: 2022-10-25 | B27: 540730 | C27: MEHAI | D27: KAMAL JEET GUPTA | E27: BUY | F27: 31 | G27: 17.8 | H27: BSE
A28: 2022-10-25 | B28: 543637 | C28: PACE | D28: FINDOC INVESTMART PVT LTD | E28: SELL | F28: 195,600 | G28: 114.85 | H28: BSE
A29: 2022-10-25 | B29: 506852 | C29: PACL | D29: QUANT MUTUAL FUND | E29: BUY | F29: 4,556,962 | G29: 79 | H29: BSE
A30: 2022-10-25 | B30: 506852 | C30: PACL | D30: BONANZA COMMODITY BROKERS PRIVATE LIMITED | E30: SELL | F30: 1,731,969 | G30: 79.67 | H30: BSE
A31: 2022-10-25 | B31: 506852 | C31: PACL | D31: BONANZA COMMODITY BROKERS PRIVATE LIMITED | E31: BUY | F31: 1,736,970 | G31: 79.23 | H31: BSE
A32: 2022-10-25 | B32: 506852 | C32: PACL | D32: PARAMONE CONCEPTS LIMITED | E32: SELL | F32: 2,100,000 | G32: 79.18 | H32: BSE
A33: 2022-10-25 | B33: 540821 | C33: SADHNA | D33: RAJSHREE GOEL | E33: SELL | F33: 1,103,900 | G33: 10.85 | H33: BSE
A34: 2022-10-25 | B34: 506906 | C34: SCBL | D34: VIVEK KANDA | E34: BUY | F34: 75,000 | G34: 5.73 | H34: BSE
A35: 2022-10-25 | B35: 506906 | C35: SCBL | D35: MANNISHTALWAAR | E35: SELL | F35: 113,737 | G35: 5.73 | H35: BSE
A36: 2022-10-25 | B36: 543598 | C36: SISL | D36: VIKAS ASHOK KUMAR | E36: BUY | F36: 11,200 | G36: 81.7 | H36: BSE
A37: 2022-10-25 | B37: 543598 | C37: SISL | D37: AMARCHAND VIMAL CHAND | E37: SELL | F37: 9,600 | G37: 81.7 | H37: BSE
A38: 2022-10-25 | B38: 511447 | C38: SYLPH | D38: POONAM GUPTA | E38: SELL | F38: 125,440 | G38: 13.52 | H38: BSE
A39: 2022-10-25 | B39: 511447 | C39: SYLPH | D39: ARVIND KUMAR BHANDARI | E39: BUY | F39: 249,000 | G39: 13.59 | H39: BSE
A40: 2022-10-25 | B40: 511447 | C40: SYLPH | D40: METALLURGICAL ENGINEERING AND EQUIPMENTS LIMITED | E40: BUY | F40: 225,000 | G40: 13.64 | H40: BSE
A41: 2022-10-25 | B41: 511447 | C41: SYLPH | D41: TANGO COMMOSALES LLP | E41: SELL | F41: 270,000 | G41: 13.59 | H41: BSE
A42: 2022-10-25 | B42: 511447 | C42: SYLPH | D42: RAVI PARASMALJI DOSHI | E42: BUY | F42: 100,000 | G42: 13.6 | H42: BSE
A43: 2022-10-25 | B43: 511447 | C43: SYLPH | D43: LAXMAN HARKISHAN NARANG | E43: SELL | F43: 100,791 | G43: 13.72 | H43: BSE
A44: 2022-10-25 | B44: 511447 | C44: SYLPH | D44: ZEEL SANJAY SONI | E44: SELL | F44: 177,788 | G44: 13.6 | H44: BSE
A45: 2022-10-25 | B45: 511447 | C45: SYLPH | D45: LAXMAN HARKISHAN NARANG | E45: BUY | F45: 100,791 | G45: 13.49 | H45: BSE
A46: 2022-10-25 | B46: 539278 | C46: SYMBIOX | D46: SHANTABEN DAYASAKAR DAVE | E46: BUY | F46: 264,178 | G46: 11.08 | H46: BSE
A47: 2022-10-25 | B47: 539278 | C47: SYMBIOX | D47: SALIM KASAMBHAI FULANI | E47: SELL | F47: 163,434 | G47: 11.08 | H47: BSE
A48: 2022-10-25 | B48: 539278 | C48: SYMBIOX | D48: SHANTABEN DAYASAKAR DAVE | E48: SELL | F48: 824,322 | G48: 11.08 | H48: BSE
A49: 2022-10-25 | B49: 521228 | C49: TATIAGLOB | D49: GUMMALAPURAM ESTATES PRIVATE LTD | E49: SELL | F49: 1,134,040 | G49: 1.19 | H49: BSE
A50: 2022-10-25 | B50: 539310 | C50: THINKINK | D50: DARDA KIRAN HUF | E50: BUY | F50: 265,000 | G50: 70.44 | H50: BSE
A51: 2022-10-25 | B51: ATALREAL | C51: Atal Realtech Limited | D51: VIPULKUMAR PRAVINCHANDRA KOTADIYA | E51: BUY | F51: 100,800 | G51: 56.61 | H51: NSE
A52: 2022-10-25 | B52: CALSOFT | C52: California Soft Ltd. | D52: BP EQUITIES PRIVATE LIMITED | E52: BUY | F52: 86,696 | G52: 25.35 | H52: NSE
A53: 2022-10-25 | B53: CALSOFT | C53: California Soft Ltd. | D53: CHETAN RASIKLAL SHAH | E53: BUY | F53: 165,484 | G53: 25.29 | H53: NSE
A54: 2022-10-25 | B54: CALSOFT | C54: California Soft Ltd. | D54: MANISH VERMA | E54: BUY | F54: 106,500 | G54: 25.16 | H54: NSE
A55: 2022-10-25 | B55: CALSOFT | C55: California Soft Ltd. | D55: INDRA KIRAN VENTURES | E55: BUY | F55: 100,584 | G55: 24.76 | H55: NSE
A56: 2022-10-25 | B56: CSBBANK | C56: CSB Bank Limited | D56: MAYBANK SECURITIES PTE LTD | E56: BUY | F56: 2,639,673 | G56: 232.3 | H56: NSE
A57: 2022-10-25 | B57: DLINKINDIA | C57: D-Link India Ltd | D57: QE SECURITIES | E57: BUY | F57: 173,588 | G57: 256.2 | H57: NSE
A58: 2022-10-25 | B58: DLINKINDIA | C58: D-Link India Ltd | D58: GRAVITON RESEARCH CAPITAL LLP | E58: BUY | F58: 370,562 | G58: 254.69 | H58: NSE
A59: 2022-10-25 | B59: DLINKINDIA | C59: D-Link India Ltd | D59: XTX MARKETS LLP | E59: BUY | F59: 262,044 | G59: 253.39 | H59: NSE
A60: 2022-10-25 | B60: HEADSUP | C60: Heads UP Ventures Limited | D60: TWO ROADS TRADING PRIVATE LIMITED | E60: BUY | F60: 115,506 | G60: 13.66 | H60: NSE
A61: 2022-10-25 | B61: KSHITIJPOL | C61: Kshitij Polyline Limited | D61: ZENAB AIYUB YACOOBALI | E61: BUY | F61: 63,831 | G61: 264.58 | H61: NSE
A62: 2022-10-25 | B62: KSHITIJPOL | C62: Kshitij Polyline Limited | D62: SHAIBAL GHOSH | E62: BUY | F62: 52,576 | G62: 264.57 | H62: NSE
A63: 2022-10-25 | B63: MCX | C63: Multi Commodity Exchange | D63: XTX MARKETS LLP | E63: BUY | F63: 331,872 | G63: 1470.55 | H63: NSE
A64: 2022-10-25 | B64: MCX | C64: Multi Commodity Exchange | D64: GRAVITON RESEARCH CAPITAL LLP | E64: BUY | F64: 254,576 | G64: 1471.52 | H64: NSE
A65: 2022-10-25 | B65: OMKARCHEM | C65: Omkar Spl Chem Ltd | D65: MUDUPULAVEMULA SURENDRANADHA REDDY | E65: BUY | F65: 134,472 | G65: 27 | H65: NSE
A66: 2022-10-25 | B66: OMKARCHEM | C66: Omkar Spl Chem Ltd | D66: CHIRAG BHARAT SHAH | E66: BUY | F66: 145,569 | G66: 28 | H66: NSE
A67: 2022-10-25 | B67: OMKARCHEM | C67: Omkar Spl Chem Ltd | D67: ANKITA VISHAL SHAH | E67: BUY | F67: 170,681 | G67: 27.36 | H67: NSE
A68: 2022-10-25 | B68: SDBL | C68: Som Dist & Brew Ltd | D68: CHETAN RASIKLAL SHAH | E68: BUY | F68: 480,352 | G68: 106.91 | H68: NSE
A69: 2022-10-25 | B69: SDBL | C69: Som Dist & Brew Ltd | D69: MULTIPLIER SHARE & STOCK ADVISORS PRIVATE LIMITED | E69: BUY | F69: 535,029 | G69: 106.97 | H69: NSE
A70: 2022-10-25 | B70: SMARTLINK | C70: Smartlink Holdings Ltd | D70: GRAVITON RESEARCH CAPITAL LLP | E70: BUY | F70: 91,143 | G70: 174.16 | H70: NSE
A71: 2022-10-25 | B71: SOUTHBANK | C71: South Indian Bank Ltd. | D71: M/S. PRARTHANA ENTERPRISES | E71: BUY | F71: 35,285,229 | G71: 13.29 | H71: NSE
A72: 2022-10-25 | B72: SOUTHBANK | C72: South Indian Bank Ltd. | D72: PRABHULAL LALLUBHAI PAREKH | E72: BUY | F72: 10,847,251 | G72: 13.2 | H72: NSE
A73: 2022-10-25 | B73: SOUTHBANK | C73: South Indian Bank Ltd. | D73: ACHINTYA COMMODITIES PRIVATE LIMITED | E73: BUY | F73: 21,259,050 | G73: 13.16 | H73: NSE
A74: 2022-10-25 | B74: SOUTHBANK | C74: South Indian Bank Ltd. | D74: HI GROWTH CORPORATE SERVICES PVT LTD | E74: BUY | F74: 38,279,630 | G74: 13.14 | H74: NSE
A75: 2022-10-25 | B75: CALSOFT | C75: California Soft Ltd. | D75: MANISH VERMA | E75: SELL | F75: 106,500 | G75: 24.03 | H75: NSE
A76: 2022-10-25 | B76: CALSOFT | C76: California Soft Ltd. | D76: CHETAN RASIKLAL SHAH | E76: SELL | F76: 180,484 | G76: 25.35 | H76: NSE
A77: 2022-10-25 | B77: CALSOFT | C77: California Soft Ltd. | D77: INDRA KIRAN VENTURES | E77: SELL | F77: 100,584 | G77: 25.35 | H77: NSE
A78: 2022-10-25 | B78: CALSOFT | C78: California Soft Ltd. | D78: BP EQUITIES PRIVATE LIMITED | E78: SELL | F78: 48,636 | G78: 25.2 | H78: NSE
A79: 2022-10-25 | B79: CSBBANK | C79: CSB Bank Limited | D79: NOMURA SINGAPORE LIMITED | E79: SELL | F79: 2,639,673 | G79: 232.3 | H79: NSE
A80: 2022-10-25 | B80: DLINKINDIA | C80: D-Link India Ltd | D80: GRAVITON RESEARCH CAPITAL LLP | E80: SELL | F80: 370,562 | G80: 255.26 | H80: NSE
A81: 2022-10-25 | B81: DLINKINDIA | C81: D-Link India Ltd | D81: XTX MARKETS LLP | E81: SELL | F81: 250,329 | G81: 254.7 | H81: NSE
A82: 2022-10-25 | B82: DLINKINDIA | C82: D-Link India Ltd | D82: QE SECURITIES | E82: SELL | F82: 181,585 | G82: 255.26 | H82: NSE
A83: 2022-10-25 | B83: HEADSUP | C83: Heads UP Ventures Limited | D83: TWO ROADS TRADING PRIVATE LIMITED | E83: SELL | F83: 115,506 | G83: 13.56 | H83: NSE
A84: 2022-10-25 | B84: KORE | C84: Jay Jalaram Techno Ltd | D84: CREDENT ASSET MANAGEMENT SERVICES PRIVATE LIMITED PMS A/C ORBIS0000154 | E84: SELL | F84: 60,000 | G84: 104.3 | H84: NSE
A85: 2022-10-25 | B85: KSHITIJPOL | C85: Kshitij Polyline Limited | D85: SHAIBAL GHOSH | E85: SELL | F85: 28,373 | G85: 264.65 | H85: NSE
A86: 2022-10-25 | B86: KSHITIJPOL | C86: Kshitij Polyline Limited | D86: ZENAB AIYUB YACOOBALI | E86: SELL | F86: 56,442 | G86: 264.65 | H86: NSE
A87: 2022-10-25 | B87: MCX | C87: Multi Commodity Exchange | D87: XTX MARKETS LLP | E87: SELL | F87: 331,502 | G87: 1473.03 | H87: NSE
A88: 2022-10-25 | B88: MCX | C88: Multi Commodity Exchange | D88: GRAVITON RESEARCH CAPITAL LLP | E88: SELL | F88: 265,376 | G88: 1465.95 | H88: NSE
A89: 2022-10-25 | B89: OMKARCHEM | C89: Omkar Spl Chem Ltd | D89: CHIRAG BHARAT SHAH | E89: SELL | F89: 128,862 | G89: 27.38 | H89: NSE
A90: 2022-10-25 | B90: OMKARCHEM | C90: Omkar Spl Chem Ltd | D90: MUDUPULAVEMULA SURENDRANADHA REDDY | E90: SELL | F90: 134,472 | G90: 27.36 | H90: NSE
A91: 2022-10-25 | B91: OMKARCHEM | C91: Omkar Spl Chem Ltd | D91: ANKITA VISHAL SHAH | E91: SELL | F91: 170,681 | G91: 27.45 | H91: NSE
A92: 2022-10-25 | B92: SDBL | C92: Som Dist & Brew Ltd | D92: MULTIPLIER SHARE & STOCK ADVISORS PRIVATE LIMITED | E92: SELL | F92: 624,535 | G92: 106.88 | H92: NSE
A93: 2022-10-25 | B93: SDBL | C93: Som Dist & Brew Ltd | D93: CHETAN RASIKLAL SHAH | E93: SELL | F93: 474,631 | G93: 107.07 | H93: NSE
A94: 2022-10-25 | B94: SHRADHA | C94: Shradha Infraprojects Ltd | D94: ANUJ SHANTILAL BADJATE | E94: SELL | F94: 54,297 | G94: 82.65 | H94: NSE
A95: 2022-10-25 | B95: SMARTLINK | C95: Smartlink Holdings Ltd | D95: GRAVITON RESEARCH CAPITAL LLP | E95: SELL | F95: 91,143 | G95: 173.92 | H95: NSE
A96: 2022-10-25 | B96: SOUTHBANK | C96: South Indian Bank Ltd. | D96: PRABHULAL LALLUBHAI PAREKH | E96: SELL | F96: 10,867,251 | G96: 13.22 | H96: NSE
A97: 2022-10-25 | B97: SOUTHBANK | C97: South Indian Bank Ltd. | D97: ACHINTYA COMMODITIES PRIVATE LIMITED | E97: SELL | F97: 20,686,761 | G97: 13.16 | H97: NSE
A98: 2022-10-25 | B98: SOUTHBANK | C98: South Indian Bank Ltd. | D98: HI GROWTH CORPORATE SERVICES PVT LTD | E98: SELL | F98: 38,401,630 | G98: 13.13 | H98: NSE
A99: 2022-10-25 | B99: SOUTHBANK | C99: South Indian Bank Ltd. | D99: M/S. PRARTHANA ENTERPRISES | E99: SELL | F99: 33,730,346 | G99: 13.34 | H99: NSE

Sheet Call Tracker (Equity & F&O)
M5: Back To Main Page
A6: Retail Research Technical Calls & Fundamental Performance Report for the month of Oct-2022
M7: =Main!B10 -> 2022-10-27
B8: Positional Call
A9: Sr.no | B9: Date | D9: Company | E9: Rec | F9: Rec Price | G9: Stop Loss*** | H9: Call Closed At | I9: Target | J9: Remark | K9: Profit / Loss per Share | L9: All charges | M9: Net Gain / Loss % | N9: Status | O9: Closed Date | P9: Market Closing Price
A10: 1 | B10: 2022-09-06 | D10: COLPAL | E10: Buy | F10: 1610-1640 | G10: 1535 | I10: 1750-1800 | J10: Open | R10: H
A11: 2 | B11: 2022-09-12 | D11: GMMPFAUDLR | E11: Buy | F11: 1915 | G11: 1800 | H11: 1995 | I11: 2050-2150 | J11: Part profit of Rs.80/- | K11: =H11-F11 -> 80 | L11: =(F11*-0.7)/100 -> -13.41 | M11: =(K11+L11)/F11 -> 3.48% | N11: Successful | O11: 2022-09-13 | R11: N
A12: 3 | B12: 2022-09-19 | D12: BALKRISIND | E12: Buy | F12: 1900-1930 | G12: 1780 | I12: 2100-2200 | J12: Open | R12: H
A13: 4 | B13: 2022-09-20 | D13: MINDTREE | E13: Buy | F13: 3170 | G13: 2940 | H13: 3380 | I13: 3400-3600 | J13: Profit of Rs.210/- | K13: =H13-F13 -> 210 | L13: =(F13*-0.7)/100 -> -22.19 | M13: =(K13+L13)/F13 -> 5.92% | N13: Successful | O13: 2022-10-11 | R13: H
A14: 5 | B14: 2022-09-26 | D14: PIIND | E14: Buy | F14: 2995 | G14: 2740 | H14: 3150 | I14: 3300-3500 | J14: Part profit of Rs.155/- | K14: 155 | L14: =(F14*-0.7)/100 -> -20.97 | M14: 4.48% | N14: Successful | O14: 2022-10-19 | R14: H
A15: 6 | B15: 2022-09-26 | D15: REDINGTON | E15: Buy | F15: 138 | G15: 129 | H15: 145 | I15: 150-160 | J15: Profit of Rs.7/- | K15: =H15-F15 -> 7 | L15: =(F15*-0.7)/100 -> -0.97 | M15: =(K15+L15)/F15 -> 4.37% | N15: Successful | O15: 2022-10-04 | R15: H
A16: 7 | B16: 2022-09-27 | D16: IGL | E16: Buy | F16: 406 | G16: 379 | H16: 399 | I16: 440-460 | J16: Loss of Rs.7 | K16: =H16-F16 -> -7 | L16: =(F16*-0.07)/100 -> -0.28 | M16: =(K16+L16)/F16 -> -1.79% | N16: Unsuccessful | O16: 2022-10-10 | R16: H
A17: 8 | B17: 2022-09-30 | D17: VTL | E17: Buy | F17: 325 | G17: 298 | H17: 346 | I17: 360-390 | J17: Profit of Rs.21/- | K17: =H17-F17 -> 21 | L17: =(F17*-0.4)/100 -> -1.30 | M17: =(K17+L17)/F17 -> 6.06% | N17: Successful | O17: 2022-10-06 | R17: H
A18: 9 | B18: 2022-10-06 | D18: ICICIGI | E18: Buy | F18: 1145-1165 | G18: 1075 | I18: 1250-1300 | J18: Open | R18: H
A19: 10 | B19: 2022-10-06 | D19: BATAINDIA | E19: Buy | F19: 1795-1815 | G19: 1690 | I19: 1920-2000 | J19: Open | R19: H
A20: 11 | B20: 2022-10-10 | D20: KPITTECH | E20: Buy | F20: 655 | G20: 615 | H20: 701.5 | I20: 700-720 | J20: Profit of Rs.46.5/- | K20: =H20-F20 -> 46.5 | L20: =(F20*-0.7)/100 -> -4.59 | M20: =(K20+L20)/F20 -> 6.40% | N20: Successful | O20: 2022-10-21 | R20: H
A21: 12 | B21: 2022-10-11 | D21: REDINGTON | E21: Buy | F21: 137-139 | G21: 127 | I21: 150-160 | J21: Open | R21: H
A22: 13 | B22: 2022-10-12 | D22: BEL | E22: Buy | F22: 101 | G22: 94 | H22: 107 | I22: 110-115 | J22: Profit of Rs.6/- | K22: =H22-F22 -> 6 | L22: =(F22*-0.7)/100 -> -0.71 | M22: =(K22+L22)/F22 -> 5.24% | N22: Successful | O22: 2022-10-19 | R22: H
A23: 14 | B23: 2022-10-14 | D23: BALAMINES | E23: Buy | F23: 3040-3070 | G23: 2795 | I23: 3400-3600 | J23: Open | R23: H
A24: 15 | B24: 2022-10-18 | D24: MINDTREE | E24: Buy | F24: 3340-3380 | G24: 3180 | I24: 3600-3700 | J24: Open | R24: H
A25: 16 | B25: 2022-10-21 | D25: KIMS | E25: Buy | F25: 1400-1420 | G25: 1320 | I25: 1550-1600 | J25: Open | R25: N
A29: CLBS = Closing Basis ***
A30: Dividend adjusted <> | F30: Reinitiated $
A31: Part book {} | D31: s | F31: Revised stoploss #
B33: Momentum Call
A34: Sr.no | B34: Date | D34: Company | E34: Rec | F34: Rec Price | G34: Stop Loss | H34: Call Closed At | I34: Target | J34: Remark | K34: Profit / Loss per Share/Lot | L34: All charges | M34: Net Gain / Loss % | N34: Status | O34: Closed Date
A35: 1 | B35: 2022-09-27 | D35: TCS | E35: Buy | F35: 3005 | G35: 2890 | H35: 3095 | I35: 3120-3200 | J35: Profit of Rs.90/- | K35: =H35-F35 -> 90 | L35: =(F35*-0.7)/100 -> -21.04 | M35: =(K35+L35)/F35 -> 2.30% | N35: Successful | O35: 2022-10-04 | R35: H
A36: 2 | B36: 2022-09-29 | D36: LTI | E36: Buy | F36: 4520 | G36: 4395 | H36: 4650 | I36: 4650-4750 | J36: Profit of Rs.130/- | K36: =H36-F36 -> 130 | L36: =(F36*-0.7)/100 -> -31.64 | M36: =(K36+L36)/F36 -> 2.18% | N36: Successful | O36: 2022-10-06 | R36: H
A37: 3 | B37: 2022-09-29 | D37: ICICIBANK | E37: Buy | F37: 849 | G37: 825 | H37: 871.5 | I37: 880-900 | J37: Profit of Rs.22.5/- | K37: =H37-F37 -> 22.5 | L37: =(F37*-0.7)/100 -> -5.94 | M37: =(K37+L37)/F37 -> 1.95% | N37: Successful | O37: 2022-10-04 | R37: H
A38: 4 | B38: 2022-09-30 | D38: COALINDIA | E38: Buy | F38: 214.5 | G38: 207 | H38: 220 | I38: 224-230 | J38: Profit of Rs.5.5/- | K38: 5.5 | L38: =(F38*-0.7)/100 -> -1.50 | M38: 1.86% | N38: Successful | O38: 2022-10-04 | R38: H
A39: 5 | B39: 2022-09-30 | D39: BIRLACORPN | E39: Buy | F39: 962 | G39: 927 | H39: 927 | I39: 1010-1030 | J39: Loss of Rs.35/- | K39: =H39-F39 -> -35 | L39: =(F39*-0.7)/100 -> -6.73 | M39: =(K39+L39)/F39 -> -4.34% | N39: Unsuccessful | O39: 2022-10-10 | R39: N
A40: 6 | B40: 2022-10-07 | D40: JUBLINGREA | E40: Buy | F40: 548 | G40: 530 | H40: 559 | I40: 570-590 | J40: Profit of Rs.11/- | K40: =H40-F40 -> 11 | L40: =(F40*-0.07)/100 -> -0.38 | M40: =(K40+L40)/F40 -> 1.94% | N40: Successful | O40: 2022-10-07 | R40: H
A41: 7 | B41: 2022-10-07 | D41: JUBLINGREA | E41: Buy | F41: 546 | G41: 529 | H41: 555 | I41: 570-590 | J41: Profit of Rs.9/- | K41: =H41-F41 -> 9 | L41: =(F41*-0.7)/100 -> -3.82 | M41: =(K41+L41)/F41 -> 0.95% | N41: Successful | O41: 2022-10-10 | R41: H
A42: 8 | B42: 2022-10-07 | D42: ASTRAL | E42: Buy | F42: 2250 | G42: 2185 | H42: 2185 | I42: 2350-2400 | J42: Loss of Rs.65/- | K42: -65 | L42: =(F42*-0.7)/100 -> -15.75 | M42: -3.59% | N42: Unsuccessful | O42: 2022-10-11 | R42: H
A43: 9 | B43: 2022-10-12 | D43: BHARTIARTL | E43: Buy | F43: 775.5 | G43: 750 | H43: 796 | I43: 810-830 | J43: Profit of Rs.20.5/- | K43: 20.5 | L43: =(F43*-0.7)/100 -> -5.43 | M43: 1.94% | N43: Successful | O43: 2022-10-21 | R43: H
A44: 10 | B44: 2022-10-12 | D44: ICICIBANK | E44: Buy | F44: 862.5 | G44: 837 | H44: 886.5 | I44: 890-910 | J44: Profit of Rs.24/- | K44: =H44-F44 -> 24 | L44: =(F44*-0.7)/100 -> -6.04 | M44: =(K44+L44)/F44 -> 2.08% | N44: Successful | O44: 2022-10-17 | R44: H
A45: 11 | B45: 2022-10-13 | D45: JUBLINGREA | E45: Buy | F45: 538 | G45: 523 | H45: 523 | I45: 560-580 | J45: Loss of Rs.15/- | K45: -15 | L45: =(F45*-0.7)/100 -> -3.77 | M45: -3.49% | N45: Unsuccessful | O45: 2022-10-17 | R45: H
A46: 12 | B46: 2022-10-19 | D46: CARBORUNIV | E46: Buy | F46: 869-873 | G46: 845 | I46: 900-920 | J46: Open | R46: H
A47: 13 | B47: 2022-10-19 | D47: TATACONSUM | E47: Buy | F47: 770-774 | G47: 750 | I47: 800-820 | J47: Open | R47: H
A48: 14 | B48: 2022-10-19 | D48: ULTRACEMCO | E48: Buy | F48: 6340-6380 | G48: 6140 | I48: 6700-6800 | J48: Open | R48: H
A51: CLBS = Closing Basis *** | H51: *
A52: Dividend adjusted <> | F52: Reinitiated $
F53: Revised stoploss #
A55: Master Trade High Risk
A56: Sr.no | B56: Date | D56: Company | E56: Rec | F56: Rec Price | G56: Stop Loss | H56: Call Closed At | I56: Target | J56: Remark | K56: Profit / Loss per share | L56: All charges | M56: Gain / Loss per Lot | N56: Lot | O56: Status | P56: Closed Date
A57: 1 | B57: 2022-09-30 | D57: VOLTAS OCT FUT | E57: Sell | F57: 911 | G57: 936 | H57: 895 | I57: 880-870 | J57: Profit of Rs 16/- | K57: =F57-H57 -> 16 | L57: =(H57*N57)*0.07% -> 313.25 | M57: =(K57*N57)-L57 -> 7686.8 | N57: 500 | O57: Successful | P57: 2022-10-03 | R57: N
A58: 2 | B58: 2022-09-30 | D58: SBILIFE OCT FUT | E58: Sell | F58: 1258 | G58: 1276 | H58: 1245 | I58: 1235-1220 | J58: Profit of Rs 13/- | K58: =F58-H58 -> 13 | L58: 653.63 | M58: 9096.4 | N58: 750 | O58: Successful | P58: 2022-10-03 | R58: H
A59: 3 | B59: 2022-09-30 | D59: HCLTECH OCT FUT | E59: Buy | F59: 925 | G59: 905 | H59: 937.5 | I59: 950-970 | J59: Profit of Rs.12.50/- | K59: =H59-F59 -> 12.5 | L59: 459.38 | M59: 8290.6 | N59: 700 | O59: Successful | P59: 2022-10-04 | R59: H
A60: 4 | B60: 2022-09-30 | D60: RELIANCE OCT FUT | E60: Buy | F60: 2400 | G60: 2345 | H60: 2435 | I60: 2460-2500 | J60: Profit of Rs.35/- | K60: =H60-F60 -> 35 | L60: =(H60*N60)*0.07% -> 426.13 | M60: =(K60*N60)-L60 -> 8323.9 | N60: 250 | O60: Successful | P60: 2022-10-06 | R60: H
A61: 5 | B61: 2022-10-03 | D61: TECHM OCT FUT | E61: Buy | F61: 1006.5 | G61: 987 | H61: 1019.5 | I61: 1030-1050 | J61: Profit of Rs.13/- | K61: =H61-F61 -> 13 | L61: =(H61*N61)*0.07% -> 428.19 | M61: =(K61*N61)-L61 -> 7371.8 | N61: 600 | O61: Successful | P61: 2022-10-03 | R61: H
A62: 6 | B62: 2022-10-03 | D62: SUNPHARMA OCT FUT | E62: Buy | F62: 948 | G62: 928 | H62: 957.5 | I62: 970-980 | J62: Profit of Rs.9.5/- | K62: =H62-F62 -> 9.5 | L62: =(H62*N62)*0.07% -> 469.18 | M62: =(K62*N62)-L62 -> 6180.8 | N62: 700 | O62: Successful | P62: 2022-10-06 | R62: H
A63: 7 | B63: 2022-10-04 | D63: GSPL OCT FUT | E63: Buy | F63: 229.5 | G63: 224.5 | H63: 224.5 | I63: 236-242 | J63: Loss of Rs.5/- | K63: =H63-F63 -> -5 | L63: =(H63*N63)*0.07% -> 392.88 | M63: =(K63*N63)-L63 -> -12892.9 | N63: 2500 | O63: Unsuccessful | P63: 2022-10-04 | R63: N
A64: 8 | B64: 2022-10-04 | D64: VOLTAS OCT FUT | E64: Sell | F64: 926 | G64: 954 | H64: 926 | I64: 900-880 | J64: No profit no loss | K64: =F64-H64 -> 0 | L64: 324.10 | M64: -324.1 | N64: 500 | O64: Neutral | P64: 2022-10-06 | R64: N
A65: 9 | B65: 2022-10-04 | D65: SBILIFE OCT FUT | E65: Sell | F65: 1266.5 | G65: 1286 | H65: 1266.5 | I65: 1245-1230 | J65: No profit no loss | K65: =F65-H65 -> 0 | L65: 664.91 | M65: -664.9 | N65: 750 | O65: Neutral | P65: 2022-10-06 | R65: H
A66: 10 | B66: 2022-10-04 | D66: APOLLOHOSP OCT FUT | E66: Buy | F66: 4420 | G66: 4310 | H66: 4310 | I66: 4530-4600 | J66: Loss of Rs.110/- | K66: =H66-F66 -> -110 | L66: =(H66*N66)*0.07% -> 377.13 | M66: =(K66*N66)-L66 -> -14127.1 | N66: 125 | O66: Unsuccessful | P66: 2022-10-10 | R66: N
A67: 11 | B67: 2022-10-06 | D67: ACC OCT FUT | E67: Buy | F67: 2290 | G67: 2340 | H67: 2340 | I67: 2440-2470 | J67: Loss of Rs.50/- | K67: 50 | L67: 409.50 | M67: 12090.5 | N67: 250 | O67: Unsuccessful | P67: 2022-10-11 | R67: N
A68: 12 | B68: 2022-10-06 | D68: HDFCLIFE OCT FUT | E68: Buy | F68: 534 | G68: 523 | H68: 523 | I68: 550-560 | J68: Loss of Rs.11/- | K68: =H68-F68 -> -11 | L68: =(H68*N68)*0.07% -> 402.71 | M68: =(K68*N68)-L68 -> -12502.7 | N68: 1100 | O68: Unsuccessful | P68: 2022-10-10 | R68: H
A69: 13 | B69: 2022-10-07 | D69: NIFTY OCT FUT | E69: Buy | F69: 17250 | G69: 17140 | H69: 17350 | I69: 17400-17500 | J69: Profit of Rs.100/- | K69: =H69-F69 -> 100 | L69: =(H69*N69)*0.07% -> 607.25 | M69: =(K69*N69)-L69 -> 4392.8 | N69: 50 | O69: Successful | P69: 2022-10-07 | R69: H
A70: 14 | B70: 2022-10-07 | D70: UPL OCT FUT | E70: Buy | F70: 695 | G70: 684 | H70: 684 | I70: 710-720 | J70: Loss of Rs.11/- | K70: -11 | L70: 574.56 | M70: -13774.6 | N70: 1200 | O70: Unsuccessful | P70: 2022-10-10 | R70: H
A71: 15 | B71: 2022-10-07 | D71: LUPIN OCT FUT | E71: Buy | F71: 724 | G71: 710 | H71: 710 | I71: 740-750 | J71: Loss of Rs.14/- | K71: =H71-F71 -> -14 | L71: =(H71*N71)*0.07% -> 422.45 | M71: =(K71*N71)-L71 -> -12322.5 | N71: 850 | O71: Unsuccessful | P71: 2022-10-10 | R71: N
A72: 16 | B72: 2022-10-10 | D72: SIEMENS OCT FUT | E72: Buy | F72: 2792.5 | G72: 2745 | H72: 2750 | I72: 2850-2870 | J72: Loss of Rs.42.5/- | K72: -42.5 | L72: 529.38 | M72: -12216.9 | N72: 275 | O72: Unsuccessful | P72: 2022-10-11 | R72: N
A73: 17 | B73: 2022-10-10 | D73: RELIANCE OCT FUT | E73: Buy | F73: 2392.5 | G73: 2340 | H73: 2426.5 | I73: 2460-2500 | J73: Profit of Rs.34/- | K73: 34 | L73: 424.64 | M73: 8075.4 | N73: 250 | O73: Successful | P73: 2022-10-18 | R73: H
A74: 18 | B74: 2022-10-10 | D74: COLPAL OCT FUT | E74: Buy | F74: 1577.5 | G74: 1540 | H74: 1584 | I74: 1620-1640 | J74: Profit of Rs.6.5/- | K74: 6.5 | L74: 388.08 | M74: 1886.9 | N74: 350 | O74: Successful | P74: 2022-10-20 | R74: H
A75: 19 | B75: 2022-10-18 | D75: CROMPTON OCT FUT | E75: Buy | F75: 381 | G75: 372 | H75: 387 | I75: 390-395 | J75: Profit of Rs.6/- | K75: =H75-F75 -> 6 | L75: =(H75*N75)*0.07% -> 406.35 | M75: =(K75*N75)-L75 -> 8593.7 | N75: 1500 | O75: Successful | P75: 2022-10-18 | R75: N
A76: 20 | B76: 2022-10-18 | D76: TECHM OCT FUT | E76: Buy | F76: 1021 | G76: 998 | H76: 1036 | I76: 1050-1060 | J76: Profit of Rs.15/- | K76: 15 | L76: 435.12 | M76: 8564.9 | N76: 600 | O76: Successful | P76: 2022-10-20 | R76: N
A77: 21 | B77: 2022-10-19 | D77: CROMPTON OCT FUT | E77: Buy | F77: 381.5 | G77: 372 | H77: 372 | I77: 395-400 | J77: Loss of Rs.9.5/- | K77: -9.5 | L77: 390.60 | M77: -14640.6 | N77: 1500 | O77: Unsuccessful | P77: 2022-10-25 | R77: N
A78: 22 | B78: 2022-10-19 | D78: ICICIGI OCT FUT | E78: Buy | F78: 1141 | G78: 1114 | H78: 1157 | I78: 1170-1190 | J78: Profit of Rs.16/- | K78: =H78-F78 -> 16 | L78: =(H78*N78)*0.07% -> 344.21 | M78: =(K78*N78)-L78 -> 6455.8 | N78: 425 | O78: Successful | P78: 2022-10-25 | R78: H
A79: 23 | B79: 2022-10-21 | D79: HDFCBANK OCT FUT | E79: Buy | F79: 1436 | G79: 1412 | H79: 1464.5 | I79: 1470-1485 | J79: Profit of Rs.28.5/- | K79: =H79-F79 -> 28.5 | L79: =(H79*N79)*0.07% -> 563.83 | M79: =(K79*N79)-L79 -> 15111.2 | N79: 550 | O79: Successful | P79: 2022-10-24 | R79: H
A84: Master Trade Medium Risk
A85: Sr.no | B85: Date | D85: Company | E85: Rec | F85: Rec Price | G85: Stop Loss | H85: Call Closed At | I85: Target | J85: Remark | K85: Profit/ Loss per lot | L85: All charges | M85: Gain / Loss per Lot | N85: Lot | O85: Status | P85: Closed Date
A86: 1 | B86: 2022-10-10 | D86: INFY 1460 CE OCT | E86: Buy | F86: 30.5 | G86: 13 | H86: 36 | I86: 50-60 | J86: Profit of Rs.5.5/- | K86: =H86-F86 -> 5.5 | L86: 100.00 | M86: =(K86*N86)-L86 -> 1550.0 | N86: 300 | O86: Successful | P86: 2022-10-10 | R86: H
A87: 2 | B87: 2022-10-10 | D87: TATACONSUM OCT 780 CE | E87: Buy | F87: 14.5 | G87: 9 | H87: 9 | I87: 20-23 | J87: Loss of Rs.5.5/- | K87: =H87-F87 -> -5.5 | L87: 100.00 | M87: =(K87*N87)-L87 -> -5050.0 | N87: 900 | O87: Unsuccessful | P87: 2022-10-11 | R87: H
A88: 3 | B88: 2022-10-10 | D88: AMARAJABAT OCT 500 CE | E88: Buy | F88: 12.5 | G88: 7.5 | H88: 7.75 | I88: 18-22.0 | J88: Loss of Rs.4.75/- | K88: =H88-F88 -> -4.75 | L88: 100.00 | M88: =(K88*N88)-L88 -> -4850.0 | N88: 1000 | O88: Unsuccessful | P88: 2022-10-12 | R88: N
A89: 4 | B89: 2022-10-11 | D89: ICICIGI OCT 1160 CE | E89: Buy | F89: 28 | G89: 15 | H89: 31 | I89: 40-50 | J89: Profit of Rs.3/- | K89: 3 | L89: 100.00 | M89: 1175.0 | N89: 425 | O89: Successful | P89: 2022-10-19 | R89: H
A90: 5 | B90: 2022-10-11 | D90: INFY 1460 CE 29-SEP | E90: Buy | F90: 30.5 | G90: 13 | H90: 42.5 | I90: 55-65 | J90: Profit of Rs.12/- | K90: =H90-F90 -> 12 | L90: 100.00 | M90: =(K90*N90)-L90 -> 3500.0 | N90: 300 | O90: Successful | P90: 2022-10-14 | R90: H
A91: 6 | B91: 2022-10-11 | D91: NIFTY 17200 CE 13-OCT | E91: Buy | F91: 72 | G91: 30 | H91: 30 | I91: 120-150 | J91: Loss of Rs.42/- | K91: =H91-F91 -> -42 | L91: 100.00 | M91: =(K91*N91)-L91 -> -2200.0 | N91: 50 | O91: Unsuccessful | P91: 2022-10-12 | R91: N
A92: 7 | B92: 2022-10-11 | D92: LUPIN 700 CE OCT | E92: Buy | F92: 16 | G92: 10.5 | H92: 10.5 | I92: 22-26 | J92: Loss of Rs.5.5/- | K92: =H92-F92 -> -5.5 | L92: 100.00 | M92: =(K92*N92)-L92 -> -4775.0 | N92: 850 | O92: Unsuccessful | P92: 2022-10-12 | R92: N
A93: 8 | B93: 2022-10-13 | D93: NIFTY 17300 CE 27-OCT | E93: Buy | F93: 125 | G93: 60 | H93: 145 | I93: 200-280 | J93: Profit of Rs.20/- | K93: 20 | L93: 100.00 | M93: 900.0 | N93: 50 | O93: Successful | P93: 2022-10-13 | R93: H
A94: 9 | B94: 2022-10-14 | D94: NIFTY 17500 CE 27-OCT | E94: Buy | F94: 127 | G94: 60 | H94: 156 | I94: 200-280 | J94: Profit of Rs.29/- | K94: =H94-F94 -> 29 | L94: 100.00 | M94: =(K94*N94)-L94 -> 1350.0 | N94: 50 | O94: Successful | P94: 2022-10-14 | R94: H
A95: 10 | B95: 2022-10-19 | D95: ICICIBANK 900 CE 27-OCT | E95: Buy | F95: 10 | G95: 6 | H95: 14.75 | I95: 16-20 | J95: Profit of Rs.4.75/- | K95: =H95-F95 -> 4.75 | L95: 100.00 | M95: =(K95*N95)-L95 -> 6431.3 | N95: 1375 | O95: Successful | P95: 2022-10-21 | R95: H
A96: 11 | B96: 2022-10-19 | D96: TECHM 1040 CE 27-OCT | E96: Buy | F96: 11 | G96: 4 | H96: 14 | I96: 20-25 | J96: Profit of Rs.3/- | K96: =H96-F96 -> 3 | L96: 100.00 | M96: =(K96*N96)-L96 -> 1700.0 | N96: 600 | O96: Successful | P96: 2022-10-20 | R96: H
A97: 12 | B97: 2022-10-19 | D97: ACC 2260 CE 27-OCT | E97: Buy | F97: 37 | G97: 19 | H97: 45 | I97: 60-80 | J97: Profit of Rs.8/- | K97: =H97-F97 -> 8 | L97: 100.00 | M97: =(K97*N97)-L97 -> 1900.0 | N97: 250 | O97: Successful | P97: 2022-10-20 | R97: N
A98: 13 | B98: 2022-10-20 | D98: NIFTY 17500 CE 20-OCT | E98: Buy | F98: 14.5 | H98: 26.5 | I98: 30-40 | J98: Profit of Rs.12/- | K98: =H98-F98 -> 12 | L98: 100.00 | M98: =(K98*N98)-L98 -> 500.0 | N98: 50 | O98: Successful | P98: 2022-10-20 | R98: N
A99: 14 | B99: 2022-10-20 | D99: BANKNIFTY 40100 CE 27-OCT | E99: Buy | F99: 450 | G99: 220 | H99: 450 | I99: 700-800 | J99: Profit of Rs.79/- | K99: 0 | L99: 100.00 | M99: 0.0 | N99: 25 | O99: Successful | P99: 2022-10-20 | R99: H
D100: BANKNIFTY 40200 CE 20-OCT | E100: Sell | F100: 80 | H100: 1 | K100: =F100-H100 -> 79 | L100: 100.00 | M100: =K100*N99 -> 1975.0
A101: 15 | B101: 2022-10-20 | D101: HINDUNILVR 2620 CE 27-OCT | E101: Buy | F101: 31 | G101: 15 | H101: 42 | I101: 50-60 | J101: Profit of Rs.11/- | K101: =H101-F101 -> 11 | L101: 100.00 | M101: =(K101*N101)-L101 -> 3200.0 | N101: 300 | O101: Successful | P101: 2022-10-21 | R101: N
A102: 16 | B102: 2022-10-25 | D102: NIFTY 17750 CE OCT | E102: Buy | F102: 42-44 | G102: 10 | I102: 80-100 | J102: Open
A103: 17 | B103: 2022-10-25 | D103: BANKNIFTY 41600 CE OCT | E103: Sell | F103: 100 | G103: 201 | H103: 37.5 | I103: 0.1 | J103: Profit of Rs.62.5/- | K103: =F103-H103 -> 62.5 | L103: 100.00 | M103: =(K103*N103)-L103 -> 1462.5 | N103: 25 | O103: Successful | P103: 2022-10-25
A107: Techno -Funda (positional)
A108: Sr.no | B108: Date | D108: Company | E108: Rec | F108: Rec Price | G108: Stop Loss*** | H108: Call Closed At | I108: Target | J108: Remark | K108: Profit / Loss per Share/Lot | L108: All charges | M108: Net Gain / Loss % | N108: Status | O108: Closed Date | P108: Market Closing Price
A109: 1 | B109: 2022-10-06 | D109: HDFCBANK | E109: Buy | F109: 1360-1450 | G109: 1240 | I109: 1700-1800 | J109: Open | R109: H
A110: 2 | B110: 2022-10-06 | D110: AMBIKCO | E110: Buy | F110: 1420-1620 | G110: 1220 | I110: 2000-2300 | J110: Open | R110: H
A112: CLBS = Closing Basis *** | F112: Reinitiated $
A113: Dividend adjusted <> | F113: Revised stoploss # | H113: .................
B117: Investment Idea
A118: Sr.no | B118: Date | D118: Company | E118: Rec | F118: Rec Price | G118: Point of Review | H118: Close Rate | I118: Target | J118: Remark | K118: Profit / Loss per Share | L118: Gain / Loss % | M118: Status | N118: Closed Date
A119: 1 | B119: 2013-11-01 | D119: L&T Finance Holding | E119: Accu | F119: 82.00 | G119: - | H119: 100 | I119: 100.00 | J119: Target Achieved | K119: =H119-F119 -> 18.00 | L119: =K119/F119 -> 21.95% | M119: Successful | N119: 2016-10-14
A120: 2 | B120: 2014-06-04 | D120: Finolex Inds | E120: Buy | F120: 257.00 | G120: - | H120: 300 | I120: 300.00 | J120: Target Achieved | K120: 43.00 | L120: 16.73% | M120: Successful | N120: 2014-07-02
A121: 3 | B121: 2014-07-08 | D121: JK Cement | E121: Buy | F121: 393.00 | G121: - | H121: 468 | I121: 468.00 | J121: Target Achieved | K121: 75.00 | L121: 19.08% | M121: Successful | N121: 2014-08-12
A122: 4 | B122: 2014-08-06 | D122: Finolex Cables | E122: Buy | F122: 205.00 | G122: - | H122: 275 | I122: 250.00 | J122: Target Achieved | K122: 70.00 | L122: 34.15% | M122: Successful | N122: 2014-11-19
A123: 5 | B123: 2014-09-04 | D123: Exide Inds | E123: Buy | F123: 162.00 | G123: - | H123: 190 | I123: 190.00 | J123: Target Achieved | K123: 28.00 | L123: 17.28% | M123: Successful | N123: 2015-01-02
A124: 6 | B124: 2014-09-04 | D124: Deepak Nitrite | E124: Buy | F124: 75.00 | G124: - | H124: 91.5 | I124: 95-100 | J124: Profit of Rs.16.50/- | K124: 16.50 | L124: 22.00% | M124: Successful | N124: 2014-11-11
A125: 7 | B125: 2014-10-01 | D125: Mercks | E125: Buy | F125: 850.00 | G125: - | H125: 982.5 | I125: 1050.00 | J125: Profit of Rs.132.50/- | K125: 132.50 | L125: 15.59% | M125: Successful | N125: 2015-02-04
A126: 8 | B126: 2014-10-01 | D126: Grindwell Norton | E126: Buy | F126: 475.00 | G126: - | H126: 515 | I126: 600.00 | J126: Profit of Rs.40/- | K126: 40.00 | L126: 8.42% | M126: Successful | N126: 2014-10-27
A127: 9 | B127: 2014-10-01 | D127: Snowman Logistics | E127: Buy | F127: 86.00 | G127: - | H127: 99 | I127: 140.00 | J127: Profit of Rs.13.00/- | K127: 13.00 | L127: 15.12% | M127: Successful | N127: 2014-10-27
A128: 10 | B128: 2014-10-14 | D128: Birla Corp | E128: Buy | F128: 496.60 | G128: - | H128: 621 | I128: 580.00 | J128: Target Achieved | K128: 124.40 | L128: 25.05% | M128: Successful | N128: 2016-08-23
A129: 11 | B129: 2014-10-14 | D129: Ultratech Cem | E129: Buy | F129: 2481.90 | G129: - | H129: 2840 | I129: 2870.00 | J129: Profit of Rs.358.10/- | K129: 358.10 | L129: 14.43% | M129: Successful | N129: 2015-01-13
A130: 12 | B130: 2014-10-16 | D130: Sintex Inds | E130: Buy | F130: 84.50 | G130: - | H130: 93 | I130: 110.00 | J130: Profit of Rs.8.50/- | K130: 8.50 | L130: 10.06% | M130: Successful | N130: 2014-10-27
A131: 13 | B131: 2014-10-16 | D131: HSIL | E131: Buy | F131: 401.00 | G131: - | H131: 428 | I131: 450.00 | J131: Profit of Rs.27.00/- | K131: 27.00 | L131: 6.73% | M131: Successful | N131: 2015-01-16
A132: 14 | B132: 2014-10-16 | D132: Eveready Inds | E132: Buy | F132: 101.00 | G132: - | H132: 112 | I132: 120.00 | J132: Profit of Rs.11.00/- | K132: 11.00 | L132: 10.89% | M132: Successful | N132: 2014-10-27
A133: 15 | B133: 2014-11-11 | D133: Pennar Inds | E133: Buy | F133: 59.00 | G133: - | H133: 76 | I133: 76.00 | J133: Target Achieved | K133: 17.00 | L133: 28.81% | M133: Successful | N133: 2017-10-24
A134: 16 | B134: 2014-11-11 | D134: Snowman Logistics | E134: Buy | F134: 99.00 | G134: - | H134: 120 | I134: 120.00 | J134: Profit of Rs.21/- | K134: 21.00 | L134: 21.21% | M134: Successful | N134: 2014-11-17
A135: 17 | B135: 2014-11-13 | D135: Dharamsi Morarji Chem | E135: Buy | F135: 22.00 | G135: - | H135: 33.55 | I135: 32.00 | J135: Profit of Rs 11.55/- | K135: 11.55 | L135: 52.50% | M135: Successful | N135: 2015-07-03
A136: 18 | B136: 2014-12-03 | D136: Tatachem | E136: Buy | F136: 440.00 | G136: - | H136: 520 | I136: 520.00 | J136: Profit of Rs 80.00/- | K136: 80.00 | L136: 18.18% | M136: Successful | N136: 2015-07-23
A137: 19 | B137: 2014-12-03 | D137: Advanta | E137: Buy | F137: 360.00 | G137: - | H137: 427 | I137: 425.00 | J137: Profit of Rs.67.00/- | K137: 67.00 | L137: 18.61% | M137: Successful | N137: 2015-02-23
A138: 20 | B138: 2015-01-08 | D138: GDL | E138: Buy | F138: 360.00 | G138: - | H138: 455 | I138: 420.00 | J138: Profit of Rs.95.00/- | K138: 95.00 | L138: 26.39% | M138: Successful | N138: 2015-01-20
A139: 21 | B139: 2015-01-08 | D139: NRB Bearing | E139: Buy | F139: 130.00 | H139: 175.5 | I139: 165.00 | J139: Profit of Rs 45.50/- | K139: 45.50 | L139: 35.00% | M139: Successful | N139: 2017-12-19
A140: 22 | B140: 2015-02-05 | D140: GSFC | E140: Accu | F140: 98.00 | H140: 120 | I140: 120.00 | J140: Target Achieved | K140: 22.00 | L140: 22.45% | M140: Successful | N140: 2017-01-18
A141: 23 | B141: 2015-02-05 | D141: Sundrmfast | E141: Accu | F141: 196.00 | H141: 262 | I141: 255.00 | J141: Target Achieved | K141: 66.00 | L141: 33.67% | M141: Successful | N141: 2016-08-17
A142: 24 | B142: 2015-03-04 | D142: GPPL | E142: Accu | F142: 235 | H142: 77.00 | I142: 280-285 | J142: Loss of Rs.158/- | K142: -158.00 | L142: -67.23% | M142: Unsuccessful | N142: 2019-02-26
A143: 25 | B143: 2015-03-04 | D143: ORIENTCEM | E143: Accu | F143: 185.00 | H143: 224 | I143: 220-225 | J143: Target Achieved | K143: 39.00 | L143: 21.08% | M143: Successful | N143: 2016-10-04
A144: 26 | B144: 2015-03-27 | D144: PFS | E144: Accu | F144: 49.5 | H144: 15.85 | I144: 67.00 | J144: Loss of Rs.33.65/- | K144: -33.65 | L144: -68% | M144: Unsuccessful | N144: 2019-06-11
A145: 27 | B145: 2015-03-30 | D145: Walchandnagar Ind Ltd | E145: Accu | F145: 183.50 | H145: 219 | I145: 218.00 | J145: Profit of Rs.35.50/- | K145: 35.50 | L145: 19.35% | M145: Successful | N145: 2015-04-09
A146: 28 | B146: 2015-04-20 | D146: Kalpataru Power Transmission Ltd | E146: Accu | F146: =(227+237)/2 -> 232.00 | H146: 298 | I146: 298.00 | J146: Target Achieved | K146: 66.00 | L146: 28.45% | M146: Successful | N146: 2017-03-29
A147: 29 | B147: 2015-05-04 | D147: Mastek Ltd | E147: Buy | F147: 385.00 | H147: =212.5+331 -> 543.5 | I147: 510.00 | J147: Profit of Rs 158.50/- | K147: 158.50 | L147: 41.17% | M147: Successful | N147: 2015-08-19
A148: 30 | B148: 2015-05-04 | D148: Suprajit Eng | E148: Buy | F148: 115.50 | H148: 146 | I148: 142.00 | J148: Profit of Rs 30.50/- | K148: 30.50 | L148: 26.41% | M148: Successful | N148: 2015-07-17
A149: 31 | B149: 2015-05-27 | D149: TCI | E149: Buy | F149: 237.50 | H149: 279.5 | I149: 278.00 | J149: Target Achieved | K149: 42.00 | L149: 17.68% | M149: Successful | N149: 2015-08-06
A150: 32 | B150: 2015-06-19 | D150: HSIL | E150: Accu | F150: 340.00 | H150: 448 | I150: 448.00 | J150: Target Achieved | K150: 108.00 | L150: 31.76% | M150: Successful | N150: 2017-10-10
A151: 33 | B151: 2015-07-06 | D151: Capital First | E151: Accu | F151: 390.00 | H151: 460 | I151: 460.00 | J151: Target Achieved | K151: 70.00 | L151: 17.95% | M151: Successful | N151: 2016-04-18
A152: 34 | B152: 2015-07-10 | D152: Dolphin OffShore | E152: Accu | F152: 122.5 | H152: 61.00 | I152: 172.00 | J152: Loss of Rs.61.50/- | K152: -61.50 | L152: -50.20% | M152: Unsuccessful | N152: 2018-08-21
A153: 35 | B153: 2015-08-03 | D153: Allcargo logistics | E153: Accu | F153: 297.50 | H153: 350 | I153: 360.00 | J153: Profit of Rs 52.50/- | K153: 52.50 | L153: 17.65% | M153: Successful | N153: 2015-08-16
A154: 36 | B154: 2015-08-03 | D154: Camline Fine | E154: Accu | F154: 115.50 | H154: 149 | I154: 140.00 | J154: Profit of Rs 33.50/- | K154: 33.50 | L154: 29.00% | M154: Successful | N154: 2017-01-05
A155: 37 | B155: 2015-09-04 | D155: TCI | E155: Accu | F155: 226.00 | H155: 292 | I155: 292.00 | J155: Target Achieved | K155: 66.00 | L155: 29.20% | M155: Successful | N155: 2015-10-09
A156: 38 | B156: 2015-09-07 | D156: Kalpataru Power Transmission Ltd | E156: Accu | F156: 232.50 | H156: 312.5 | I156: 310.00 | J156: Target Achieved | K156: 80.00 | L156: 34.41% | M156: Successful | N156: 2017-03-29
A157: 39 | B157: 2015-09-21 | D157: LLOYD ELECTRIC & ENG LTD | E157: Accu | F157: 196.50 | H157: 238 | I157: 238.00 | J157: Target Achieved | K157: 41.50 | L157: 21.12% | M157: Successful | N157: 2015-10-14
A158: 40 | B158: 2015-09-24 | D158: L&T Finance Holding | E158: Accu | F158: 65.00 | H158: 82 | I158: 82.00 | J158: Target Achieved | K158: 17.00 | L158: 26.15% | M158: Successful | N158: 2016-07-27
A159: 41 | B159: 2015-10-14 | D159: KEC International ltd | E159: Accu | F159: 144.00 | H159: 182.5 | I159: 181.00 | J159: Target Achieved | K159: 38.50 | L159: 26.74% | M159: Successful | N159: 2017-03-23
A160: 42 | B160: 2015-10-14 | D160: Gruh Finance | E160: Accu | F160: 264.00 | H160: 311 | I160: 311.00 | J160: Target Achieved | K160: 47.00 | L160: 17.80% | M160: Successful | N160: 2016-08-22
A161: 43 | B161: 2015-11-10 | D161: Pidilitind | E161: Buy | F161: 549.50 | H161: 630 | I161: 630.00 | J161: Target Achieved | K161: 80.50 | L161: 14.65% | M161: Successful | N161: 2016-02-19
A162: 44 | B162: 2015-12-04 | D162: Zensar Technology | E162: Accu | F162: 1027.50 | H162: 1315 | I162: 1250.00 | J162: Target Achieved | K162: 287.50 | L162: 27.98% | M162: Successful | N162: 2018-05-24
A163: 45 | B163: 2015-12-29 | D163: Vinati Organics Ltd | E163: Accu | F163: 465.00 | H163: 540 | I163: 540.00 | J163: Target Achieved | K163: 75.00 | L163: 16.13% | M163: Successful | N163: 2016-06-09
A164: 46 | B164: 2016-01-11 | D164: GSFC | E164: Buy | F164: 81.00 | H164: 110 | I164: 110.00 | J164: Target Achieved | K164: 29.00 | L164: 35.80% | M164: Successful | N164: 2017-01-10
A165: 47 | B165: 2016-01-13 | D165: SSWL | E165: Buy | F165: 417.50 | H165: 547 | I165: 535.00 | J165: Target Achieved | K165: 129.50 | L165: 31.02% | M165: Successful | N165: 2016-07-27
A166: 48 | B166: 2016-02-08 | D166: Persistent System Ltd | E166: Accu | F166: 650.00 | H166: 800 | I166: 800.00 | J166: Target Achieved | K166: 150.00 | L166: 23.08% | M166: Successful | N166: 2018-02-23
A167: 49 | B167: 2016-03-04 | D167: UPL | E167: Accu | F167: 437.50 | H167: 504.5 | I167: 522.00 | J167: Profit of Rs.67/- | K167: 67.00 | L167: 15.31% | M167: Successful | N167: 2016-04-20
A168: 50 | B168: 2016-03-09 | D168: Ashoka Buildcon Ltd | E168: Accu | F168: 189.50 | H168: 218 | I168: 218.00 | J168: Target Achieved | K168: 28.50 | L168: 15.04% | M168: Successful | N168: 2017-10-26
A169: 51 | B169: 2016-04-11 | D169: PTC INDIA FIN SERV LTD | E169: Accu | F169: 36.5 | H169: 15.85 | I169: 60.00 | J169: Loss of Rs.20.65/- | K169: -20.65 | L169: -56.58% | M169: Unsuccessful | N169: 2019-06-11
A170: 52 | B170: 2016-04-12 | D170: CAMLINFINE $ | E170: Accu | F170: 93.00 | H170: 149 | I170: 140.00 | J170: Profit of Rs 56/- | K170: 56.00 | L170: 60.22% | M170: Successful | N170: 2017-01-05
A171: 53 | B171: 2016-04-12 | D171: Greaves Cotton Ltd. | E171: Accu | F171: 130.00 | H171: 150 | I171: 150-155 | J171: Target Achieved | K171: 20.00 | L171: 15.38% | M171: Successful | N171: 2016-07-13
A172: 54 | B172: 2016-04-13 | D172: DHFL | E172: Accu | F172: 196.00 | H172: 299 | I172: 299.00 | J172: Target Achieved | K172: 103.00 | L172: 52.55% | M172: Successful | N172: 2016-09-07
A173: 55 | B173: 2016-04-13 | D173: Magma | E173: Accu | F173: 88.00 | H173: 103 | I173: 103.00 | J173: Target Achieved | K173: 15.00 | L173: 17.05% | M173: Successful | N173: 2016-06-09
A174: 56 | B174: 2016-05-02 | D174: KEC International ltd $ | E174: Accu | F174: 127.50 | H174: 148 | I174: 148-150 | J174: Target Achieved | K174: =H174-F174 -> 20.50 | L174: =K174/F174 -> 16.08% | M174: Successful | N174: 2016-07-13
A175: 57 | B175: 2016-05-03 | D175: Mindtree | E175: Accu | F175: 675.00 | H175: 815 | I175: 790-800 | J175: Target Achieved | K175: =H175-F175 -> 140.00 | L175: =K175/F175 -> 20.74% | M175: Successful | N175: 2018-02-23
A176: 58 | B176: 2016-06-01 | D176: Atulauto | E176: Accu | F176: 500 | H176: 232.50 | I176: 565-570 | J176: Loss of Rs.267.50 /- | K176: =H176-F176 -> -267.50 | L176: =K176/F176 -> -53.50% | M176: Unsuccessful | N176: 2019-09-27
A177: 59 | B177: 2016-06-06 | D177: TRITURBINE | E177: Accu | F177: 110.00 | H177: 126.5 | I177: 125.00 | J177: Profit of Rs.16.50/- | K177: =H177-F177 -> 16.50 | L177: =K177/F177 -> 15.00% | M177: Successful | N177: 2016-07-01
A178: 60 | B178: 2016-06-17 | D178: Pennar Industries Ltd | E178: Accu | F178: 44.00 | H178: 69.5 | I178: 69.50 | J178: Profit of Rs.25.50/- | K178: =H178-F178 -> 25.50 | L178: =K178/F178 -> 57.95% | M178: Successful | N178: 2017-08-30
A179: 61 | B179: 2016-06-28 | D179: EVEREADY | E179: Accu | F179: 262.50 | H179: 340 | I179: 333.00 | J179: Profit of Rs.77.50/- | K179: 77.50 | L179: 29.52% | M179: Successful | N179: 2017-10-09
A180: 62 | B180: 2016-06-28 | D180: FIEMIND | E180: Accu | F180: 840.00 | H180: 1230 | I180: 1230.00 | J180: Target Achieved | K180: 390.00 | L180: 46.43% | M180: Successful | N180: 2016-10-06
A181: 63 | B181: 2016-07-05 | D181: Bajaj Corp Ltd | E181: Accu | F181: 395 | H181: =(468.5+342.5)/2 -> 405.50 | I181: 510.00 | J181: Profit of Rs.10.50/- | K181: =H181-F181 -> 10.50 | L181: =K181/F181 -> 3% | M181: Neutral | N181: 2019-05-21
A182: 64 | B182: 2016-08-02 | D182: GPPL $ | E182: Buy | F182: =169.5-12.8 -> 156.7 | H182: 77.00 | I182: 198-200 | J182: Loss of Rs.79.7/- | K182: -79.70 | L182: -50.86% | M182: Unsuccessful | N182: 2019-02-26
A183: 65 | B183: 2016-08-04 | D183: WONDERLA HOLIDAYS LTD | E183: Accu | F183: 400 | H183: 305.00 | I183: 475.00 | J183: Loss of Rs.95/- | K183: -95.00 | L183: -23.75% | M183: Unsuccessful | N183: 2019-05-21
A184: 66 | B184: 2016-08-11 | D184: CAMLINFINE | E184: Accu | F184: 86.50 | H184: 130 | I184: 130.00 | J184: Profit of Rs.43.50/- | K184: 43.50 | L184: 50.29% | M184: Successful | N184: 2017-12-22
A185: 67 | B185: 2016-08-18 | D185: GRANULES | E185: Accu | F185: 133.5 | H185: 126.50 | I185: 178.00 | J185: Exit | K185: -7.00 | L185: -5.24% | M185: Unsuccessful | N185: 2016-09-02
A186: 68 | B186: 2016-08-31 | D186: VA TECH WABAG | E186: Accu | F186: 560.00 | H186: 725 | I186: 725.00 | J186: Target Achieved | K186: 165.00 | L186: 29.46% | M186: Successful | N186: 2016-03-27
A187: 69 | B187: 2016-09-01 | D187: SKIPPER LIMITED | E187: Accu | F187: 160.50 | H187: 210 | I187: 210.00 | J187: Target Achieved | K187: 49.50 | L187: 30.84% | M187: Successful | N187: 2017-05-16
A188: 70 | B188: 2016-10-03 | D188: IFBIND | E188: Accu | F188: 430.00 | H188: 596 | I188: 575.00 | J188: Profit of Rs.166/- | K188: 166.00 | L188: 38.60% | M188: Successful | N188: 2017-02-03
A189: 71 | B189: 2016-10-14 | D189: ASIANTILES | E189: Accu | F189: 280.00 | H189: 345 | I189: 345.00 | J189: Target Achieved | K189: =H189-F189 -> 65.00 | L189: =K189/F189 -> 23.21% | M189: Successful | N189: 2017-03-20
A190: 72 | B190: 2016-10-14 | D190: DEEPIND | E190: Accu | F190: 245.00 | H190: 325.5 | I190: 330.00 | J190: Profit of Rs.80.5/- | K190: 80.50 | L190: =K190/F190 -> 32.86% | M190: Successful | N190: 2017-02-03
A191: 73 | B191: 2016-10-17 | D191: DCBBANK | E191: Accu | F191: 125.00 | H191: 160 | I191: 160.00 | J191: Target Achieved | K191: 35.00 | L191: 28.00% | M191: Successful | N191: 2017-03-09
A192: 74 | B192: 2016-10-17 | D192: ORIENTREF | E192: Accu | F192: 114.00 | H192: 145 | I192: 145.00 | J192: Target Achieved | K192: 31.00 | L192: =K192/F192 -> 27.19% | M192: Successful | N192: 2017-05-04
A193: 75 | B193: 2016-10-17 | D193: GANECOS | E193: Accu | F193: 212.00 | H193: 280 | I193: 276.00 | J193: Profit of Rs.68/- | K193: 68.00 | L193: =K193/F193 -> 32.08% | M193: Successful | N193: 2017-05-03
A194: 76 | B194: 2016-11-04 | D194: NBCC | E194: Accu | F194: 155.00 | H194: 210 | I194: 210.00 | J194: Profit of Rs.55/- | K194: 55.00 | L194: =K194/F194 -> 35.48% | M194: Successful | N194: 2017-07-28
A195: 77 | B195: 2016-12-06 | D195: PRECAM | E195: Accu | F195: 150.5 | H195: 72.50 | I195: 174.00 | J195: Loss of Rs.78/- | K195: -78.00 | L195: -51.83% | M195: Unsuccessful | N195: 2018-08-21
A196: 78 | B196: 2016-12-08 | D196: INFRATEL | E196: Accu | F196: 380.00 | H196: 478 | I196: 468.00 | J196: Target Achieved | K196: =H196-F196 -> 98.00 | L196: =K196/F196 -> 25.79% | M196: Successful | N196: 2017-10-17
A197: 79 | B197: 2016-12-30 | D197: GODREJPROP | E197: Accu | F197: 305.00 | H197: 375 | I197: 375.00 | J197: Target Achieved | K197: =H197-F197 -> 70.00 | L197: =K197/F197 -> 22.95% | M197: Successful | N197: 2017-02-02
A198: 80 | B198: 2017-01-04 | D198: DEEPAKNTR | E198: Accu | F198: 99.50 | H198: 158 | I198: 158.00 | J198: Target Achieved | K198: =H198-F198 -> 58.50 | L198: =K198/F198 -> 58.79% | M198: Successful | N198: 2017-06-12
A199: 81 | B199: 2017-01-04 | D199: DEEPAKNTR | E199: Accu | F199: 99.50 | H199: 158 | I199: 158.00 | J199: Target Achieved | K199: 58.50 | L199: 58.79% | M199: Successful | N199: 2017-06-12
A200: 82 | B200: 2017-02-20 | D200: RECLTD | E200: Accu | F200: 140.50 | H200: 220 | I200: 220.00 | J200: Target Achieved | K200: =H200-F200 -> 79.50 | L200: =K200/F200 -> 56.58% | M200: Successful | N200: 2017-05-09
A201: 83 | B201: 2017-02-20 | D201: SUBROS | E201: Accu | F201: 202.50 | H201: 234 | I201: 234.00 | J201: Target Achieved | K201: 31.50 | L201: 15.56% | M201: Successful | N201: 2017-04-11
A202: 84 | B202: 2017-03-24 | D202: VRLLOG | E202: Accu | F202: 300.50 | H202: 417.5 | I202: 420.00 | J202: Profit of Rs.117/- | K202: =H202-F202 -> 117.00 | L202: =K202/F202 -> 38.94% | M202: Successful | N202: 2017-12-01
A203: 85 | B203: 2017-03-24 | D203: FIEMIND | E203: Accu | F203: 850.00 | H203: 1042.5 | I203: 1023.00 | J203: Profit of Rs 192.50/- | K203: 192.50 | L203: 22.65% | M203: Successful | N203: 2017-04-05
A204: 86 | B204: 2017-04-05 | D204: RATNAMANI | E204: Accu | F204: 785.00 | H204: 930 | I204: 920.00 | J204: Profit of Rs.145/- | K204: =H204-F204 -> 145.00 | L204: =K204/F204 -> 18.47% | M204: Successful | N204: 2017-08-29
A205: 87 | B205: 2017-04-06 | D205: ZEEMEDIA | E205: Accu | F205: 40 | H205: 13.10 | I205: 60.00 | J205: Loss of Rs.26.9/- | K205: -26.90 | L205: -67.25% | M205: Unsuccessful | N205: 2018-02-07
A206: 88 | B206: 2017-04-12 | D206: DABUR | E206: Accu | F206: 289.50 | H206: 354 | I206: 360.00 | J206: Profit of Rs.64.5/- | K206: =H206-F206 -> 64.50 | L206: =K206/F206 -> 22.28% | M206: Successful | N206: 2017-11-01
A207: 89 | B207: 2017-04-20 | D207: KPRMILL | E207: Accu | F207: 700.00 | H207: 840 | I207: 840.00 | J207: Profit of Rs.140/- | K207: 140.00 | L207: 20.00% | M207: Successful | N207: 2017-06-07
A208: 90 | B208: 2017-06-01 | D208: ESSELPACK | E208: Accu | F208: 130.00 | H208: 144.25 | I208: 170.00 | J208: Profit of Rs.14.25/- | K208: 14.25 | L208: 10.96% | M208: Successful | N208: 2019-07-29
A209: 91 | B209: 2017-06-15 | D209: KEI | E209: Accu | F209: 214.50 | H209: 262 | I209: 262.00 | J209: Profit of Rs.47.5/- | K209: 47.50 | L209: 22.14% | M209: Successful | N209: 2017-08-30
A210: 92 | B210: 2017-07-17 | D210: MAYURUNIQ | E210: Accu | F210: 370.00 | H210: 447.5 | I210: 450.00 | J210: Target Achieved | K210: 77.50 | L210: 20.95% | M210: Successful | N210: 2017-10-27
A211: 93 | B211: 2017-07-27 | D211: RAMCOCEM | E211: Accu | F211: 657.50 | H211: 825 | I211: 820.00 | J211: Target Achieved | K211: 167.50 | L211: 25.48% | M211: Successful | N211: 2017-12-21
A212: 94 | B212: 2017-08-17 | D212: FINPIPE | E212: Accu | F212: 605.00 | H212: 750 | I212: 750.00 | J212: Profit of Rs.145/- | K212: 145.00 | L212: 23.97% | M212: Successful | N212: 2017-10-19
A213: 95 | B213: 2017-09-01 | D213: SHK | E213: Accu | F213: 255 | H213: 217.25 | I213: 320.00 | J213: Loss of Rs.37.75/- | K213: -37.75 | L213: -15% | M213: Unsuccessful | N213: 2019-07-15
A214: 96 | B214: 2017-09-19 | D214: SKIPPER | E214: Accu | F214: 215.00 | H214: 258 | I214: 258.00 | J214: Target Achieved | K214: 43.00 | L214: 20.00% | M214: Successful | N214: 2017-11-01
A215: 97 | B215: 2017-09-19 | D215: SKIPPER | E215: Accu | F215: 215.00 | H215: 258 | I215: 258.00 | J215: Target Achieved | K215: 43.00 | L215: 20.00% | M215: Successful | N215: 2017-11-01
A216: 98 | B216: 2017-09-20 | D216: CAMLINFINE$ | E216: Accu | F216: 75.00 | H216: 90 | I216: 90.00 | J216: Profit of Rs.15.00/- | K216: =H216-F216 -> 15.00 | L216: =K216/F216 -> 20.00% | M216: Successful | N216: 2017-10-11
A217: 99 | B217: 2017-10-03 | D217: GNA | E217: Accu | F217: 315.00 | H217: 392 | I217: 384.00 | J217: Profit of Rs.77/- | K217: 77.00 | L217: 24.44% | M217: Successful | N217: 2017-10-09
A218: 100 | B218: 2017-10-05 | D218: NOCIL | E218: Accu | F218: 145.00 | H218: 179 | I218: 180.00 | J218: Profit of Rs.34/- | K218: 34.00 | L218: 23.45% | M218: Successful | N218: 2017-10-17
A219: 101 | B219: 2017-10-06 | D219: CENTURYPLY | E219: Accu | F219: 256.00 | H219: 323 | I219: 320.00 | J219: Target Achieved | K219: 67.00 | L219: 26.17% | M219: Successful | N219: 2017-11-28
A220: 102 | B220: 2017-10-09 | D220: EIHOTEL | E220: Accu | F220: 137.50 | H220: 184 | I220: 183.00 | J220: Profit of Rs.46.5/- | K220: 46.50 | L220: 33.82% | M220: Successful | N220: 2018-01-08
A221: 103 | B221: 2017-10-10 | D221: NRBBEARING | E221: Accu | F221: 125.50 | H221: 158 | I221: 155.00 | J221: Profit of Rs.32.5/- | K221: 32.50 | L221: 25.90% | M221: Successful | N221: 2017-11-28
A222: 104 | B222: 2017-10-10 | D222: BOROSIL | E222: Accu | F222: 895.00 | H222: 1122.5 | I222: 1078.00 | J222: Profit of Rs.227.5/- | K222: 227.50 | L222: 25.42% | M222: Successful | N222: 2018-01-17
... 78 more rows
